{"text_format":"1","workbook":"xlsx","n_sheets":29,"sheets":["Mapping_Options","MRSA_MAN_PREV","CODED_MAN","MODELTEMPLATE","CAT_SAMPSTR_zooSampstr","CAT_PRGTYP_zooSampContext","CAT_SAMPMD","CAT_SAMPLR","CAT_SAMPNT_zooss","CAT_SAMPUNTYP","CAT_UNIT","CAT_YESNO","CAT_STUNMD","CAT_COUNTRY_EUSRrepCountry","CAT_COUNTRY","CAT_NUTS_nuts2024","CAT_MTXTYP","CAT_FoodEx2","CAT_PARAMTYP","CAT_PARAM_microParam","CAT_PARAM_mrsaGenes","CAT_ANLYREFMD","CAT_ANLYTYP","CAT_ANLYMD_prvam","CAT_POSNEG","CAT_VALTYP","CAT_LMTTYP","CAT_RESEVAL","CAT_AMTYPE"],"not_rendered":{"charts":0,"images":7,"macros":1,"external_links":0,"defined_names":28,"comments":2,"pivot_tables":0},"unopened":[],"bounds":{"document_bytes":16777216,"sheet_cells":100000,"rows_first":2000,"rows_last":500,"rows_between":2000,"halvings":0,"cell_chars":16384,"cell_head_chars":4096},"cells_cut":0,"cells_raw":0,"read":"whole","date_system":"1900"}

{"sheet":"Mapping_Options","index":0,"n_rows":19,"n_cols":12,"rows_kept":19,"cut":false,"hidden":false,"merged":[[0,0,0,6],[1,0,1,6],[2,0,2,6],[3,2,3,6],[4,0,4,6],[5,2,5,6],[6,0,6,6],[7,2,7,6],[8,0,8,6],[9,2,9,6],[15,0,15,6],[16,1,16,6],[18,1,18,6],[10,0,10,6],[11,2,11,6],[12,0,12,6],[13,0,13,6],[14,1,14,6]]}
["EFSA's Manual Mapping Tool (for 2025 MRSA sample based data submission)\nFor help please contact: zoonoses_support@efsa.europa.eu",null,null,null,null,null,null,null,"Normal mapping:     Code","EFSA terms"]
[null,null,null,null,null,null,null,null,"Normal mapping:     Code+Term","Memberstate mapped terms"]
[]
[1,null,"The Refresh button re-calculates all formula cells in the  CODED worksheet."]
[]
[2,null,"This field allows you to increase the number of rows in your coded data sheet. (NB. Large increments can take up to a few minutes to finish due to the many formulas in the coded worksheet)\nThis field also adds new dropdown list rows for data entry into the _MAN_ worksheet. ",null,null,null,null,null,null,null,null," "]
[]
[3,null,"This button will create an XML file of all the records in the _MAN_ worksheet ,that do not have \"amType\" set to update \"U\" or Delete \"D\""]
[" "]
[4,null,"These buttons allow you to Update or Delete already \"accepted\" data in the DCF, with the status \"ACCEPTED DWH\". All records in the _MAN_ worksheet that have their  \"amType\" set to update \"U\" or Delete \"D\" will be exported to DCF formatted XML file, by selecting the one of the buttons provided."]
[]
[5,null,"If for any reason there is a problem in the CODED or _MAN  worksheet, this button will FIX any currupted or broken formulas. For Example, if you \"cut and paste\" values in the _FACT_(MODEL_NAME) worksheet some formulas in the CODED sheet can be broken and a rebuild will fix these errors."]
[]
[]
[]
[]
[null,"\n\n"]
[]
[null,"Developed by Kenneth Mulligan, MESE Unit, EFSA"]

{"sheet":"MRSA_MAN_PREV","index":1,"n_rows":2,"n_cols":60,"rows_kept":2,"cut":false,"hidden":false,"merged":[]}
["sampStrategy","progType","sampMethod","sampler","sampPoint","sampEventId","sampUnitType","sampUnitSize","sampUnitSizeUnit","sampUnitIds","sampUnitIds_batchId","sampUnitIds_slaughterHouseId","sampUnitIds_sampHoldingId","sampUnitIds_subUnitId","sampEventInfo","sampEventInfo_durationTransport","sampEventInfo_durationLairage","sampEventInfo_washingLairage","sampEventInfo_stunningMethod","sampEventInfo_beforeBleeding","sampEventInfo_prevSlaughteredBatches","sampId","repCountry","sampCountry","sampArea","repYear","sampY","sampM","sampD","sampSize","sampSizeUnit","sampMatType","sampMatCode","origCountry","origArea","analysisY","analysisM","analysisD","anPortSeq","isolId","labId","paramType","paramCode","paramCode_base","paramCode_t","paramCode_ST","paramCode_CC","paramCode_genes","anMethRefCode","anMethType","anMethCode","resId","resQualValue","resType","evalLimitType","evalCode","evalInfo","evalInfo_sampTkAsses","evalInfo_sampEventAsses","amType"]
["ST10A | Objective sampling","K027A | Survey - EU baseline survey","N002A | Pooled/batch","CX02A | Official sampling","E311A | Slaughterhouse",null,"G200A | slaughter batch",null,"G199A | animal",null,null,null,null,null,null,null,null,null,null,null,null,null,null,null,null,null,null,null,null,null,"G199A | animal","S000A | Animal sample",null,null,null,null,null,null,1,null,null,"P001A | Individual",null,"RF-00003853-MCG | Methicillin resistant Staphylococcus aureus (MRSA)",null,null,null,null,"R049A | EURL method","AT01A | Detection",null,null,null,"BIN | Qualitative Value (Binary)","W012A | Presence"]

{"sheet":"CODED_MAN","index":2,"n_rows":2,"n_cols":60,"rows_kept":2,"cut":false,"hidden":false,"merged":[]}
["sampStrategy","progType","sampMethod","sampler","sampPoint","sampEventId","sampUnitType","sampUnitSize","sampUnitSizeUnit","sampUnitIds","sampUnitIds_batchId","sampUnitIds_slaughterHouseId","sampUnitIds_sampHoldingId","sampUnitIds_subUnitId","sampEventInfo","sampEventInfo_durationTransport","sampEventInfo_durationLairage","sampEventInfo_washingLairage","sampEventInfo_stunningMethod","sampEventInfo_beforeBleeding","sampEventInfo_prevSlaughteredBatches","sampId","repCountry","sampCountry","sampArea","repYear","sampY","sampM","sampD","sampSize","sampSizeUnit","sampMatType","sampMatCode","origCountry","origArea","analysisY","analysisM","analysisD","anPortSeq","isolId","labId","paramType","paramCode","paramCode_base","paramCode_t","paramCode_ST","paramCode_CC","paramCode_genes","anMethRefCode","anMethType","anMethCode","resId","resQualValue","resType","evalLimitType","evalCode","evalInfo","evalInfo_sampTkAsses","evalInfo_sampEventAsses","amType"]
[{"$f":"splitTermCode(MRSA_MAN_PREV!A2 )","v":"ST10A"},{"$f":"splitTermCode(MRSA_MAN_PREV!B2 )","v":"K027A"},{"$f":"splitTermCode(MRSA_MAN_PREV!C2 )","v":"N002A"},{"$f":"splitTermCode(MRSA_MAN_PREV!D2 )","v":"CX02A"},{"$f":"splitTermCode(MRSA_MAN_PREV!E2 )","v":"E311A"},{"$f":"IF(MRSA_MAN_PREV!F2 =\"\",\"NULL\",MRSA_MAN_PREV!F2 )","v":"NULL"},{"$f":"splitTermCode(MRSA_MAN_PREV!G2 )","v":"G200A"},{"$f":"IF(MRSA_MAN_PREV!H2 =\"\",\"NULL\",MRSA_MAN_PREV!H2 )","v":"NULL"},{"$f":"splitTermCode(MRSA_MAN_PREV!I2 )","v":"G199A"},{"$f":"formatCompoundField(\"sampUnitIds\",IF(K2 <>\"NUll\",$K$1 &\"=\"&K2 &\"$\",\"\")&IF(L2 <>\"NUll\",$L$1 &\"=\"&L2 &\"$\",\"\")&IF(M2 <>\"NUll\",$M$1 &\"=\"&M2 &\"$\",\"\")&IF(N2 <>\"NUll\",$N$1 &\"=\"&N2 &\"$\",\"\"))","v":"NULL"},{"$f":"IF(MRSA_MAN_PREV!K2 =\"\",\"NULL\",MRSA_MAN_PREV!K2 )","v":"NULL"},{"$f":"IF(MRSA_MAN_PREV!L2 =\"\",\"NULL\",MRSA_MAN_PREV!L2 )","v":"NULL"},{"$f":"IF(MRSA_MAN_PREV!M2 =\"\",\"NULL\",MRSA_MAN_PREV!M2 )","v":"NULL"},{"$f":"IF(MRSA_MAN_PREV!N2 =\"\",\"NULL\",MRSA_MAN_PREV!N2 )","v":"NULL"},{"$f":"formatCompoundField(\"sampEventInfo\",IF(P2 <>\"NUll\",$P$1 &\"=\"&P2 &\"$\",\"\")&IF(Q2 <>\"NUll\",$Q$1 &\"=\"&Q2 &\"$\",\"\")&IF(R2 <>\"NUll\",$R$1 &\"=\"&R2 &\"$\",\"\")&IF(S2 <>\"NUll\",$S$1 &\"=\"&S2 &\"$\",\"\")&IF(T2 <>\"NUll\",$T$1 &\"=\"&T2 &\"$\",\"\")&IF(U2 <>\"NUll\",$U$1 &\"=\"&U2 &\"$\",\"\"))","v":"NULL"},{"$f":"IF(MRSA_MAN_PREV!P2 =\"\",\"NULL\",MRSA_MAN_PREV!P2 )","v":"NULL"},{"$f":"IF(MRSA_MAN_PREV!Q2 =\"\",\"NULL\",MRSA_MAN_PREV!Q2 )","v":"NULL"},{"$f":"splitTermCode(MRSA_MAN_PREV!R2 )","v":"NULL"},{"$f":"splitTermCode(MRSA_MAN_PREV!S2 )","v":"NULL"},{"$f":"splitTermCode(MRSA_MAN_PREV!T2 )","v":"NULL"},{"$f":"IF(MRSA_MAN_PREV!U2 =\"\",\"NULL\",MRSA_MAN_PREV!U2 )","v":"NULL"},{"$f":"IF(MRSA_MAN_PREV!V2 =\"\",\"NULL\",MRSA_MAN_PREV!V2 )","v":"NULL"},{"$f":"splitTermCode(MRSA_MAN_PREV!W2 )","v":"NULL"},{"$f":"splitTermCode(MRSA_MAN_PREV!X2 )","v":"NULL"},{"$f":"splitTermCode(MRSA_MAN_PREV!Y2 )","v":"NULL"},{"$f":"IF(MRSA_MAN_PREV!Z2 =\"\",\"NULL\",MRSA_MAN_PREV!Z2 )","v":"NULL"},{"$f":"IF(MRSA_MAN_PREV!AA2 =\"\",\"NULL\",MRSA_MAN_PREV!AA2 )","v":"NULL"},{"$f":"IF(MRSA_MAN_PREV!AB2 =\"\",\"NULL\",MRSA_MAN_PREV!AB2 )","v":"NULL"},{"$f":"IF(MRSA_MAN_PREV!AC2 =\"\",\"NULL\",MRSA_MAN_PREV!AC2 )","v":"NULL"},{"$f":"IF(MRSA_MAN_PREV!AD2 =\"\",\"NULL\",MRSA_MAN_PREV!AD2 )","v":"NULL"},{"$f":"splitTermCode(MRSA_MAN_PREV!AE2 )","v":"G199A"},{"$f":"splitTermCode(MRSA_MAN_PREV!AF2 )","v":"S000A"},{"$f":"splitTermCode(MRSA_MAN_PREV!AG2 )","v":"NULL"},{"$f":"splitTermCode(MRSA_MAN_PREV!AH2 )","v":"NULL"},{"$f":"splitTermCode(MRSA_MAN_PREV!AI2 )","v":"NULL"},{"$f":"IF(MRSA_MAN_PREV!AJ2 =\"\",\"NULL\",MRSA_MAN_PREV!AJ2 )","v":"NULL"},{"$f":"IF(MRSA_MAN_PREV!AK2 =\"\",\"NULL\",MRSA_MAN_PREV!AK2 )","v":"NULL"},{"$f":"IF(MRSA_MAN_PREV!AL2 =\"\",\"NULL\",MRSA_MAN_PREV!AL2 )","v":"NULL"},{"$f":"IF(MRSA_MAN_PREV!AM2 =\"\",\"NULL\",MRSA_MAN_PREV!AM2 )","v":1},{"$f":"IF(MRSA_MAN_PREV!AN2 =\"\",\"NULL\",MRSA_MAN_PREV!AN2 )","v":"NULL"},{"$f":"IF(MRSA_MAN_PREV!AO2 =\"\",\"NULL\",MRSA_MAN_PREV!AO2 )","v":"NULL"},{"$f":"splitTermCode(MRSA_MAN_PREV!AP2 )","v":"P001A"},{"$f":"formatCompoundField(\"paramCode\",IF(AR2 <>\"NUll\",AR2 &\"#\",\"\")&IF(AS2 <>\"NUll\",$AS$1 &\"=\"&AS2 &\"$\",\"\")&IF(AT2 <>\"NUll\",$AT$1 &\"=\"&AT2 &\"$\",\"\")&IF(AU2 <>\"NUll\",$AU$1 &\"=\"&AU2 &\"$\",\"\")&IF(AV2 <>\"NUll\",$AV$1 &\"=\"&AV2 &\"$\",\"\"))","v":"RF-00003853-MCG"},{"$f":"splitTermCode(MRSA_MAN_PREV!AR2 )","v":"RF-00003853-MCG"},{"$f":"IF(MRSA_MAN_PREV!AS2 =\"\",\"NULL\",MRSA_MAN_PREV!AS2 )","v":"NULL"},{"$f":"IF(MRSA_MAN_PREV!AT2 =\"\",\"NULL\",MRSA_MAN_PREV!AT2 )","v":"NULL"},{"$f":"IF(MRSA_MAN_PREV!AU2 =\"\",\"NULL\",MRSA_MAN_PREV!AU2 )","v":"NULL"},{"$f":"splitRepeatableTerms(MRSA_MAN_PREV!AV2,\"*\",\"genes\")","v":"NULL"},{"$f":"splitTermCode(MRSA_MAN_PREV!AW2 )","v":"R049A"},{"$f":"splitTermCode(MRSA_MAN_PREV!AX2 )","v":"AT01A"},{"$f":"splitTermCode(MRSA_MAN_PREV!AY2 )","v":"NULL"},{"$f":"IF(MRSA_MAN_PREV!AZ2 =\"\",\"NULL\",MRSA_MAN_PREV!AZ2 )","v":"NULL"},{"$f":"splitTermCode(MRSA_MAN_PREV!BA2 )","v":"NULL"},{"$f":"splitTermCode(MRSA_MAN_PREV!BB2 )","v":"BIN"},{"$f":"splitTermCode(MRSA_MAN_PREV!BC2 )","v":"W012A"},{"$f":"splitTermCode(MRSA_MAN_PREV!BD2 )","v":"NULL"},{"$f":"formatCompoundField(\"evalInfo\",IF(BF2 <>\"NUll\",$BF$1 &\"=\"&BF2 &\"$\",\"\")&IF(BG2 <>\"NUll\",$BG$1 &\"=\"&BG2 &\"$\",\"\"))","v":"NULL"},{"$f":"splitTermCode(MRSA_MAN_PREV!BF2 )","v":"NULL"},{"$f":"splitTermCode(MRSA_MAN_PREV!BG2 )","v":"NULL"},{"$f":"splitTermCode(MRSA_MAN_PREV!BH2 )","v":"NULL"}]

{"sheet":"MODELTEMPLATE","index":3,"n_rows":10,"n_cols":60,"rows_kept":10,"cut":false,"hidden":true,"merged":[]}
["sampStrategy","progType","sampMethod","sampler","sampPoint","sampEventId","sampUnitType","sampUnitSize","sampUnitSizeUnit","sampUnitIds","sampUnitIds_batchId","sampUnitIds_slaughterHouseId","sampUnitIds_sampHoldingId","sampUnitIds_subUnitId","sampEventInfo","sampEventInfo_durationTransport","sampEventInfo_durationLairage","sampEventInfo_washingLairage","sampEventInfo_stunningMethod","sampEventInfo_beforeBleeding","sampEventInfo_prevSlaughteredBatches","sampId","repCountry","sampCountry","sampArea","repYear","sampY","sampM","sampD","sampSize","sampSizeUnit","sampMatType","sampMatCode","origCountry","origArea","analysisY","analysisM","analysisD","anPortSeq","isolId","labId","paramType","paramCode","paramCode_base","paramCode_t","paramCode_ST","paramCode_CC","paramCode_genes","anMethRefCode","anMethType","anMethCode","resId","resQualValue","resType","evalLimitType","evalCode","evalInfo","evalInfo_sampTkAsses","evalInfo_sampEventAsses","amType"]
["CAT_SAMPSTR_zooSampstr","CAT_PRGTYP_zooSampContext","CAT_SAMPMD","CAT_SAMPLR","CAT_SAMPNT_zooss",null,"CAT_SAMPUNTYP",null,"CAT_UNIT",null,null,null,null,null,null,null,null,"CAT_YESNO","CAT_STUNMD","CAT_YESNO",null,null,"CAT_COUNTRY_EUSRrepCountry","CAT_COUNTRY","CAT_NUTS_nuts2024",null,null,null,null,null,"CAT_UNIT","CAT_MTXTYP","CAT_FoodEx2","CAT_COUNTRY","CAT_NUTS_nuts2024",null,null,null,null,null,null,"CAT_PARAMTYP",null,"CAT_PARAM_microParam",null,null,null,"CAT_PARAM_mrsaGenes","CAT_ANLYREFMD","CAT_ANLYTYP","CAT_ANLYMD_prvam",null,"CAT_POSNEG","CAT_VALTYP","CAT_LMTTYP","CAT_RESEVAL",null,"CAT_RESEVAL","CAT_RESEVAL","CAT_AMTYPE"]
[null,null,null,null,null,null,null,null,null,"compound","sampUnitIds","sampUnitIds","sampUnitIds","sampUnitIds","compound","sampEventInfo","sampEventInfo","sampEventInfo","sampEventInfo","sampEventInfo","sampEventInfo",null,null,null,null,null,null,null,null,null,null,null,null,null,null,null,null,null,null,null,null,null,"compound","paramCode","paramCode","paramCode","paramCode","paramCode",null,null,null,null,null,null,null,null,"compound","evalInfo","evalInfo"]
["standard","standard","standard","standard","standard",null,"standard",null,"standard",null,"standard",null,null,null,null,"standard",null,"standard","standard","standard",null,null,"standard","standard","standard",null,null,null,null,null,"standard","standard","standard","standard","standard",null,null,null,null,null,null,"standard",null,"base",null,null,null,"repeatable","standard","standard","standard",null,"standard","standard","standard","standard",null,"standard","standard","standard"]
["mandatory","mandatory","mandatory","mandatory","mandatory","mandatory","mandatory","mandatory","mandatory",null,"mandatory","mandatory","mandatory","mandatory",null,null,null,null,null,"mandatory",null,"mandatory","mandatory","mandatory",null,"mandatory","mandatory","mandatory","mandatory","mandatory","mandatory","mandatory","mandatory","mandatory",null,"mandatory","mandatory","mandatory","mandatory",null,"mandatory","mandatory","mandatory","mandatory",null,null,null,null,"mandatory","mandatory","mandatory","mandatory","mandatory","mandatory","mandatory","mandatory","mandatory","mandatory","mandatory"]
["This data element is mandatory. It contains codes linked to the zooSampstr hierarchy of the SAMPSTR catalogue. It describes the underlying strategy for selecting the samples from the population. Based on the Technical specifications for a baseline survey ","This data element is mandatory. It contains codes linked to the zooSampContext hierarchy of the PRGTYP catalogue. It identifies the type of programme under which the sample has been collected. The only term allowed is ‘Survey - EU baseline survey’ (code K","This data element is mandatory. It contains codes linked to the SAMPMD catalogue. It defines the method used to take the samples. Based on the Technical specifications for a baseline survey on the prevalence of methicillin-resistant Staphylococcus aureus ","This data element is mandatory. It contains codes linked to the SAMPLR catalogue. It defines the organisation public or private, that performed the sampling. The only term allowed is ‘Official sampling’ (code CX02A).","This data element is mandatory and contains codes linked to the zooss hierarchy of the SAMPNT catalogue. This list of elements is intended to indicate the type of establishment from which the sample was taken. Based on the Technical specifications for a b","This data element is mandatory and contains the unique identifier of the sampling event. The sampEventId must be unique at country level. In the case of MRSA BS, the sampling event identification code (sampEventId) should be equal with the identification ","This data element is mandatory. It contains codes linked to the SAMPUNTYP catalogue. It indicates to which sampling unit the assessment refers (sampEventAsses). Based on the Technical specifications for a baseline survey on the prevalence of methicillin-r","This data element is mandatory. It refers to the number of the animals of the sampled slaugher batch. ","This data element is mandatory. It contains codes linked to the UNIT catalogue. Based on the Technical specifications for a baseline survey on the prevalence of methicillin-resistant Staphylococcus aureus (MRSA) in pigs the only term allowed is ‘Animal’ (","This compound element contains attributes and can be used to report identification codes for the sampling unit.","The ‘Slaughter batch identification code’ (sampUnitIds.batchId) attribute is mandatory and contains the identification code of the slaughter batch. There is no obligation for data providers regarding the format of the batch/slaughter batch identification ","The ‘Slaughterhouse identification code’ (sampUnitIds.slaughterHouseId) attribute is mandatory. It contains the identification code of the slautherhouse in which sampling was performed. The slaughterhouse identification code will be used to link the analy","The ‘Sampling holding/establishemnt identification code’ (sampUnitIds.sampHoldingId) attribute is mandatory. It contains the identification code of the holding/establishment from which pigs sampled were coming from. The holding/establishment identificatio","The ‘Sampling farm identification code’ (sampUnitIds.sampSubUnitId) attribute is mandatory. It contains the identification code of the farm from which pigs sampled were coming from. In case when the holding has a unique farm, the code of the farm must be ","This compound data element can be used to report additional information on the sampling event, e.g. the duration of the transport, the duration of lairage, the stunning method.","The ‘Duration of transport’ (sampEventInfo.durationTransport) attribute is optional. The duration of transportation before arrival of the slaughter batch to the slaughterhouse should be reported in hours.","The ‘Duration of lairage’ (sampEventInfo.durationLairage) attribute is optional. The duration of lairage before slaughter of the slaughter batch should be reported in hours.","The ‘Misting of the sampled slaughter batch during lairage’ (sampEventInfo.washingLairage) attribute is optional. It contains codes linked to the YESNO catalogue. It refers to the misting of the sampled slaughter batch during lairage.","The ‘Stunning method’ (sampEventInfo.stunningMethod) attribute is optional. It contains codes linked to the STUNMD catalogue. It refers to the method used for stunning of the sampled slaughter batch. The values allowed are ‘Electrical’ (code SM000001A), ‘","The ‘Sampling before bleeding’ (sampEventInfo.beforeBleeding) attribute is mandatory. It contains codes linked to the YESNO catalogue. Information if the samples are taken before bleeding should be reported.","The ‘Number of the previous slaughter batches’ (batchsampEventInfo.prevSlaughteredBatches) is optional. It refers to the number of batches slaughtered on the same day before the sampled slaughter batch.","This element is mandatory and is a free-text element of up to 100 characters. It contains the identification code of the collected sample. There is no obligation for data providers regarding the format of the sample taken identification code sampId; howev","This data element is mandatory. It contains codes linked to the EUSRrepCountry hierarchy of the COUNTRY catalogue. This element contains the country for which the data are reported.","This data element is mandatory. It contains codes linked to the COUNTRY catalogue. It refers to the country in which the sample was taken for laboratory testing.","This data element is optional. It contains codes linked to the NUTS2024 hierarchy of the Nuts Gaul catalogue, indicating the area where the slaughterhouse from which the samples were taken was located.","This data element is mandatory. This element contains the year for which the data are reported and it should be 2025. It is a numerical data element consisting of four digits.","This data element is mandatory. It is a numerical data element allowing four digits . The sampling year refers to the collection date of the biological sample and must be a date before or the same as the Isolation year/month/day.","This data element is mandatory. It is a numerical data element allowing maximum of two digits. The sampling month refers to the collection date of the biological sample and must be a date before or the same as the Isolation year/month/day. ","This data element is mandatory. It is a numerical data element allowing maximum of two digits. The sampling date refers to the collection date of the biological sample and must be a date before or the same as the Isolation year/month/day. Reporting of the","The data element ‘Sample taken size’ (sampSize) is mandatory. It indicates in this case, the number of swabs taken from different animals and pooled together in the same pooled sample.","The data element ‘Sample taken size unit’ (sampSizeUnit) is mandatory. It contains codes from the UNIT catalogue. It indicates the unit in which the amount of the sample taken is expressed. For the MRSA BS the only term allowed is ‘Animal’ (code G199A).","This data element is mandatory. It contains codes linked to the MTXTYP catalogue. It describes the biological source of the sample. Based on the Technical specifications for a baseline survey on the prevalence of methicillin-resistant Staphylococcus aureu","This data element is mandatory. This is a compound data element which contains the source and 2 facets (F02 and F21)","This data element is mandatory. It contains codes linked to the COUNTRY catalogue. For the MRSA BS the country of origin of the sample taken should be always equal with the reporting country.","This data element is optional. It contains codes linked to the NUTS2024 hierarchy of the Nuts Gaul catalogue. The ‘area of origin’ provides more detailed geographical information on locations of the farms from which the pigs sampled were originated.","This data element is mandatory. It indicates the year in which the analysis was completed.","This data element is mandatory. It indicates the month in which the analysis was completed.","This data element is mandatory. It indicates the day in which the analysis was completed.","This data element is mandatory. The ‘sample analysed portion sequence’ is a sequence number (1, 2, 3, etc.) listing the different sequencies of tests performed on the same sample. The value of ‘1’ should be used if the sample was analysed only with one me","This data element is mandatory when MRSA was detected in sample analysed. It should be unique for each data provider. In case data providers are collecting isolates from different laboratories, they should ensure that different isolates are transmitted wi","TThis data element is mandatory. Its data type is free text of up to 50 characters. It contains the identification code of the laboratory that provides the result. This code should be nationally unique.","This element is mandatory. It contains codes linked to the PARAMTYP catalogue. The only term to be used is ‘Individual’ (code P001A).","This data element is mandatory. It contains codes linked to the microParam hierarchy of the PARAM catalogue. The value in paramCode.base must be ‘Methicillin-resistant Staphylococcus aureus (MRSA)’ (code RF-00003853-MCG). Four facets are available for rep","This data element is mandatory. It contains codes linked to the microParam hierarchy of the PARAM catalogue. The value in paramCode.base must be ‘Methicillin-resistant Staphylococcus aureus (MRSA)’ (code RF-00003853-MCG).","The facet paramCode.t  is mandatory to be reported when WGS was performed and can be used to report the spa-type by using numeric values. ","The facet paramCode.ST  is mandatory to be reported when WGS was performed and can be used to report the MLST by using numeric values. ","The facet  paramCode.CC is mandatory and is used to report the clonal complex by using numeric values. ","The facet paramCode.genes can be used to report the genes identified by the PCR tests. The allowed values reported in the paramCode.genes are: mecA (code RF-00015596-PAR), lukF-PV (code RF-00015580-PAR),","This data element is mandatory. It contains codes linked to the ANLYREFMD catalogue. For the MRSA BS the only method allowed to be reported is ‘EURL method’ (code ‘R049A’). ","This data element is mandatory. It contains codes linked to the ANLYTYP catalogue. It identifies the type of analytical method used to perform the analysis. The only analytical method type allowed is ‘Detection’ (code AT01A).","This data element is mandatory. It contains codes linked to the prvam hierarchy of the ANLYMD catalogue. It indicates the test method used to perform the analysis. The available analytical methods for isolation and confirmation of MRSA are the following: ","This data element is mandatory. It contains the identification code of an analytical result in the submitted file. The result’s identification code must be maintained and be unique at country level. It will be used to identify records during future update","This data element is mandatory. The data type is a code from the POSNEG catalogue. The only terms allowed for MRSA BS are ‘Positive’ (code POS) and ‘Negative’ (code NEG). ‘Positive’ (code POS) should be reported when MRSA was confirmed. ","This is a mandatory data element. It contains codes linked to the VALTYP catalogue. It indicates the type of result. The only term allowed for MRSA BS is ‘Qualitative Value’ (code BIN).","This data element is mandatory. It contains codes linked to the LMTTYP catalogue and it is used to report the type of legal limit used to assess the result value. The only term allowed for MRSA BS is ‘Presence’ (code W012A) .","This data element is mandatory. It contains codes linked to the RESEVAL catalogue. For MRSA BS, the only terms allowed are: ‘Detected’ (code J041A) and ‘Not detected’ (code J040A). ‘Detected’ (code J041A) should be reported when MRSA was confirmed.","This compound element contains attributes to report additional specific information and comments for the evaluation section. In particular, the overall evaluation of the ‘sample taken’ or the ‘sampling event’ are reported in this element.","The sample taken assessment (sampTkAsses) attribute is mandatory. It contains codes linked to the RESEVAL catalogue. It contains the assessment of the sample taken, i.e. either ‘Satisfactory’ (code J034A) or ‘Unsatisfactory’ (code J036A).","The sampling event assessment (sampEventAsses) attribute is mandatory. It contains codes linked to the RESEVAL catalogue. It contains the assessment of the sampling event, i.e. either ‘Satisfactory’ (code J034A) or ‘Unsatisfactory’ (code J036A).","This data element is mandatory when amendments are performed. It allows Member States to modify records of datasets which are ‘ACCEPTED DWH’. As defined in the Guidance on Data Exchange version 2.0, a dataset enters into the ‘Accepted DWH’ state when the "]
["=splitTermCode(MRSA_MAN_PREV!A2 )","=splitTermCode(MRSA_MAN_PREV!B2 )","=splitTermCode(MRSA_MAN_PREV!C2 )","=splitTermCode(MRSA_MAN_PREV!D2 )","=splitTermCode(MRSA_MAN_PREV!E2 )","=IF(MRSA_MAN_PREV!F2 =\"\",\"NULL\",MRSA_MAN_PREV!F2 )","=splitTermCode(MRSA_MAN_PREV!G2 )","=IF(MRSA_MAN_PREV!H2 =\"\",\"NULL\",MRSA_MAN_PREV!H2 )","=splitTermCode(MRSA_MAN_PREV!I2 )","=formatCompoundField(\"sampUnitIds\",IF(K2 <>\"NUll\",$K$1 &\"=\"&K2 &\"$\",\"\")&IF(L2 <>\"NUll\",$L$1 &\"=\"&L2 &\"$\",\"\")&IF(M2 <>\"NUll\",$M$1 &\"=\"&M2 &\"$\",\"\")&IF(N2 <>\"NUll\",$N$1 &\"=\"&N2 &\"$\",\"\"))","=IF(MRSA_MAN_PREV!K2 =\"\",\"NULL\",MRSA_MAN_PREV!K2 )","=IF(MRSA_MAN_PREV!L2 =\"\",\"NULL\",MRSA_MAN_PREV!L2 )","=IF(MRSA_MAN_PREV!M2 =\"\",\"NULL\",MRSA_MAN_PREV!M2 )","=IF(MRSA_MAN_PREV!N2 =\"\",\"NULL\",MRSA_MAN_PREV!N2 )","=formatCompoundField(\"sampEventInfo\",IF(P2 <>\"NUll\",$P$1 &\"=\"&P2 &\"$\",\"\")&IF(Q2 <>\"NUll\",$Q$1 &\"=\"&Q2 &\"$\",\"\")&IF(R2 <>\"NUll\",$R$1 &\"=\"&R2 &\"$\",\"\")&IF(S2 <>\"NUll\",$S$1 &\"=\"&S2 &\"$\",\"\")&IF(T2 <>\"NUll\",$T$1 &\"=\"&T2 &\"$\",\"\")&IF(U2 <>\"NUll\",$U$1 &\"=\"&U2 &\"$\",\"\"))","=IF(MRSA_MAN_PREV!P2 =\"\",\"NULL\",MRSA_MAN_PREV!P2 )","=IF(MRSA_MAN_PREV!Q2 =\"\",\"NULL\",MRSA_MAN_PREV!Q2 )","=splitTermCode(MRSA_MAN_PREV!R2 )","=splitTermCode(MRSA_MAN_PREV!S2 )","=splitTermCode(MRSA_MAN_PREV!T2 )","=IF(MRSA_MAN_PREV!U2 =\"\",\"NULL\",MRSA_MAN_PREV!U2 )","=IF(MRSA_MAN_PREV!V2 =\"\",\"NULL\",MRSA_MAN_PREV!V2 )","=splitTermCode(MRSA_MAN_PREV!W2 )","=splitTermCode(MRSA_MAN_PREV!X2 )","=splitTermCode(MRSA_MAN_PREV!Y2 )","=IF(MRSA_MAN_PREV!Z2 =\"\",\"NULL\",MRSA_MAN_PREV!Z2 )","=IF(MRSA_MAN_PREV!AA2 =\"\",\"NULL\",MRSA_MAN_PREV!AA2 )","=IF(MRSA_MAN_PREV!AB2 =\"\",\"NULL\",MRSA_MAN_PREV!AB2 )","=IF(MRSA_MAN_PREV!AC2 =\"\",\"NULL\",MRSA_MAN_PREV!AC2 )","=IF(MRSA_MAN_PREV!AD2 =\"\",\"NULL\",MRSA_MAN_PREV!AD2 )","=splitTermCode(MRSA_MAN_PREV!AE2 )","=splitTermCode(MRSA_MAN_PREV!AF2 )","=splitTermCode(MRSA_MAN_PREV!AG2 )","=splitTermCode(MRSA_MAN_PREV!AH2 )","=splitTermCode(MRSA_MAN_PREV!AI2 )","=IF(MRSA_MAN_PREV!AJ2 =\"\",\"NULL\",MRSA_MAN_PREV!AJ2 )","=IF(MRSA_MAN_PREV!AK2 =\"\",\"NULL\",MRSA_MAN_PREV!AK2 )","=IF(MRSA_MAN_PREV!AL2 =\"\",\"NULL\",MRSA_MAN_PREV!AL2 )","=IF(MRSA_MAN_PREV!AM2 =\"\",\"NULL\",MRSA_MAN_PREV!AM2 )","=IF(MRSA_MAN_PREV!AN2 =\"\",\"NULL\",MRSA_MAN_PREV!AN2 )","=IF(MRSA_MAN_PREV!AO2 =\"\",\"NULL\",MRSA_MAN_PREV!AO2 )","=splitTermCode(MRSA_MAN_PREV!AP2 )","=formatCompoundField(\"paramCode\",IF(AR2 <>\"NUll\",AR2 &\"#\",\"\")&IF(AS2 <>\"NUll\",$AS$1 &\"=\"&AS2 &\"$\",\"\")&IF(AT2 <>\"NUll\",$AT$1 &\"=\"&AT2 &\"$\",\"\")&IF(AU2 <>\"NUll\",$AU$1 &\"=\"&AU2 &\"$\",\"\")&IF(AV2 <>\"NUll\",$AV$1 &\"=\"&AV2 &\"$\",\"\"))","=splitTermCode(MRSA_MAN_PREV!AR2 )","=IF(MRSA_MAN_PREV!AS2 =\"\",\"NULL\",MRSA_MAN_PREV!AS2 )","=IF(MRSA_MAN_PREV!AT2 =\"\",\"NULL\",MRSA_MAN_PREV!AT2 )","=IF(MRSA_MAN_PREV!AU2 =\"\",\"NULL\",MRSA_MAN_PREV!AU2 )","=splitRepeatableTerms(MRSA_MAN_PREV!AV2,\"*\",\"genes\")","=splitTermCode(MRSA_MAN_PREV!AW2 )","=splitTermCode(MRSA_MAN_PREV!AX2 )","=splitTermCode(MRSA_MAN_PREV!AY2 )","=IF(MRSA_MAN_PREV!AZ2 =\"\",\"NULL\",MRSA_MAN_PREV!AZ2 )","=splitTermCode(MRSA_MAN_PREV!BA2 )","=splitTermCode(MRSA_MAN_PREV!BB2 )","=splitTermCode(MRSA_MAN_PREV!BC2 )","=splitTermCode(MRSA_MAN_PREV!BD2 )","=formatCompoundField(\"evalInfo\",IF(BF2 <>\"NUll\",$BF$1 &\"=\"&BF2 &\"$\",\"\")&IF(BG2 <>\"NUll\",$BG$1 &\"=\"&BG2 &\"$\",\"\"))","=splitTermCode(MRSA_MAN_PREV!BF2 )","=splitTermCode(MRSA_MAN_PREV!BG2 )","=splitTermCode(MRSA_MAN_PREV!BH2 )"]
[]
[null,null,null,null,null,"VARCHAR2",null,"NUMBER",null,"VARCHAR2","VARCHAR2","VARCHAR2","VARCHAR2","VARCHAR2","VARCHAR2","NUMBER","NUMBER",null,null,null,"NUMBER","VARCHAR2",null,null,null,"NUMBER","NUMBER","NUMBER","NUMBER","NUMBER",null,null,null,null,null,"NUMBER","NUMBER","NUMBER","VARCHAR2","VARCHAR2","VARCHAR2",null,"VARCHAR2",null,"NUMBER","NUMBER","NUMBER",null,null,null,null,"VARCHAR2"]
[null,null,null,null,null,100,null,"10,3",null,4000,250,250,250,250,4000,10,10,null,null,null,10,100,null,null,null,4,4,2,2,"10,6",null,null,null,null,null,4,2,2,100,20,50,null,4000,null,10,10,10,null,null,null,null,100]

{"sheet":"CAT_SAMPSTR_zooSampstr","index":4,"n_rows":2,"n_cols":6,"rows_kept":2,"cut":false,"hidden":false,"merged":[]}
["MemberState_TERMS","EFSA_TERM","CAT_SAMPSTR_zooSampstr","SSD_Code","term","level_0"]
[null,null,"ST10A | Objective sampling","ST10A","Objective sampling"]

{"sheet":"CAT_PRGTYP_zooSampContext","index":5,"n_rows":2,"n_cols":6,"rows_kept":2,"cut":false,"hidden":false,"merged":[]}
["MemberState_TERMS","EFSA_TERM","CAT_PRGTYP_zooSampContext","SSD_Code","term","level_0"]
[null,null,"K027A | Survey - EU baseline survey","K027A","Survey - EU baseline survey"]

{"sheet":"CAT_SAMPMD","index":6,"n_rows":2,"n_cols":6,"rows_kept":2,"cut":false,"hidden":false,"merged":[]}
["MemberState_TERMS","EFSA_TERM","CAT_SAMPMD","SSD_Code","term","level_0"]
[null,null,"N002A | Pooled/batch","N002A","Pooled/batch"]

{"sheet":"CAT_SAMPLR","index":7,"n_rows":2,"n_cols":6,"rows_kept":2,"cut":false,"hidden":false,"merged":[]}
["MemberState_TERMS","EFSA_TERM","CAT_SAMPLR","SSD_Code","term","level_0"]
[null,null,"CX02A | Official sampling","CX02A","Official sampling"]

{"sheet":"CAT_SAMPNT_zooss","index":8,"n_rows":2,"n_cols":6,"rows_kept":2,"cut":false,"hidden":false,"merged":[]}
["MemberState_TERMS","EFSA_TERM","CAT_SAMPNT_zooss","SSD_Code","term","level_0"]
[null,null,"E311A | Slaughterhouse","E311A","Slaughterhouse"]

{"sheet":"CAT_SAMPUNTYP","index":9,"n_rows":2,"n_cols":6,"rows_kept":2,"cut":false,"hidden":false,"merged":[]}
["MemberState_TERMS","EFSA_TERM","CAT_SAMPUNTYP","SSD_Code","term","level_0"]
[null,null,"G200A | slaughter batch","G200A","slaughter batch"]

{"sheet":"CAT_UNIT","index":10,"n_rows":2,"n_cols":6,"rows_kept":2,"cut":false,"hidden":false,"merged":[]}
["MemberState_TERMS","EFSA_TERM","CAT_UNIT","SSD_Code","term","level_0"]
[null,null,"G199A | animal","G199A","animal"]

{"sheet":"CAT_YESNO","index":11,"n_rows":4,"n_cols":6,"rows_kept":4,"cut":false,"hidden":false,"merged":[]}
["MemberState_TERMS","EFSA_TERM","CAT_YESNO","SSD_Code","term","level_0"]
[null,null,"N | No","N","No"]
[null,null,"U | Unknown","U","Unknown"]
[null,null,"Y | Yes","Y","Yes"]

{"sheet":"CAT_STUNMD","index":12,"n_rows":4,"n_cols":6,"rows_kept":4,"cut":false,"hidden":false,"merged":[]}
["MemberState_TERMS","EFSA_TERM","CAT_STUNMD","SSD_Code","term","level_0"]
[null,null,"SM002A | Carbon dioxide","SM002A","Carbon dioxide"]
[null,null,"SM001A | Electrical","SM001A","Electrical"]
[null,null,"SM003A | Other","SM003A","Other"]

{"sheet":"CAT_COUNTRY_EUSRrepCountry","index":13,"n_rows":40,"n_cols":6,"rows_kept":40,"cut":false,"hidden":false,"merged":[]}
["MemberState_TERMS","EFSA_TERM","CAT_COUNTRY_EUSRrepCountry","SSD_Code","term","level_0"]
[null,null,"AL | Albania","AL","Albania"]
[null,null,"AT | Austria","AT","Austria"]
[null,null,"BE | Belgium","BE","Belgium"]
[null,null,"BA | Bosnia and Herzegovina","BA","Bosnia and Herzegovina"]
[null,null,"BG | Bulgaria","BG","Bulgaria"]
[null,null,"HR | Croatia","HR","Croatia"]
[null,null,"CY | Cyprus","CY","Cyprus"]
[null,null,"CZ | Czechia","CZ","Czechia"]
[null,null,"DK | Denmark","DK","Denmark"]
[null,null,"EE | Estonia","EE","Estonia"]
[null,null,"FI | Finland","FI","Finland"]
[null,null,"FR | France","FR","France"]
[null,null,"DE | Germany","DE","Germany"]
[null,null,"GR | Greece","GR","Greece"]
[null,null,"HU | Hungary","HU","Hungary"]
[null,null,"IS | Iceland","IS","Iceland"]
[null,null,"IE | Ireland","IE","Ireland"]
[null,null,"IT | Italy","IT","Italy"]
[null,null,"XK | Kosovo","XK","Kosovo"]
[null,null,"LV | Latvia","LV","Latvia"]
[null,null,"LT | Lithuania","LT","Lithuania"]
[null,null,"LU | Luxembourg","LU","Luxembourg"]
[null,null,"MT | Malta","MT","Malta"]
[null,null,"ME | Montenegro","ME","Montenegro"]
[null,null,"NL | Netherlands","NL","Netherlands"]
[null,null,"NO | Norway","NO","Norway"]
[null,null,"PL | Poland","PL","Poland"]
[null,null,"PT | Portugal","PT","Portugal"]
[null,null,"MK | Republic of North Macedonia","MK","Republic of North Macedonia"]
[null,null,"RO | Romania","RO","Romania"]
[null,null,"RS | Serbia","RS","Serbia"]
[null,null,"SK | Slovakia","SK","Slovakia"]
[null,null,"SI | Slovenia","SI","Slovenia"]
[null,null,"ES | Spain","ES","Spain"]
[null,null,"SE | Sweden","SE","Sweden"]
[null,null,"CH | Switzerland","CH","Switzerland"]
[null,null,"TR | Türkiye","TR","Türkiye"]
[null,null,"GB | United Kingdom","GB","United Kingdom"]
[null,null,"XI | United Kingdom (Northern Ireland)","XI","United Kingdom (Northern Ireland)"]

{"sheet":"CAT_COUNTRY","index":14,"n_rows":40,"n_cols":6,"rows_kept":40,"cut":false,"hidden":false,"merged":[]}
["MemberState_TERMS","EFSA_TERM","CAT_COUNTRY","SSD_Code","term","level_0"]
[null,null,"AL | Albania","AL","Albania"]
[null,null,"AT | Austria","AT","Austria"]
[null,null,"BE | Belgium","BE","Belgium"]
[null,null,"BA | Bosnia and Herzegovina","BA","Bosnia and Herzegovina"]
[null,null,"BG | Bulgaria","BG","Bulgaria"]
[null,null,"HR | Croatia","HR","Croatia"]
[null,null,"CY | Cyprus","CY","Cyprus"]
[null,null,"CZ | Czechia","CZ","Czechia"]
[null,null,"DK | Denmark","DK","Denmark"]
[null,null,"EE | Estonia","EE","Estonia"]
[null,null,"FI | Finland","FI","Finland"]
[null,null,"FR | France","FR","France"]
[null,null,"DE | Germany","DE","Germany"]
[null,null,"GR | Greece","GR","Greece"]
[null,null,"HU | Hungary","HU","Hungary"]
[null,null,"IS | Iceland","IS","Iceland"]
[null,null,"IE | Ireland","IE","Ireland"]
[null,null,"IT | Italy","IT","Italy"]
[null,null,"XK | Kosovo","XK","Kosovo"]
[null,null,"LV | Latvia","LV","Latvia"]
[null,null,"LT | Lithuania","LT","Lithuania"]
[null,null,"LU | Luxembourg","LU","Luxembourg"]
[null,null,"MT | Malta","MT","Malta"]
[null,null,"ME | Montenegro","ME","Montenegro"]
[null,null,"NL | Netherlands","NL","Netherlands"]
[null,null,"NO | Norway","NO","Norway"]
[null,null,"PL | Poland","PL","Poland"]
[null,null,"PT | Portugal","PT","Portugal"]
[null,null,"MK | Republic of North Macedonia","MK","Republic of North Macedonia"]
[null,null,"RO | Romania","RO","Romania"]
[null,null,"RS | Serbia","RS","Serbia"]
[null,null,"SK | Slovakia","SK","Slovakia"]
[null,null,"SI | Slovenia","SI","Slovenia"]
[null,null,"ES | Spain","ES","Spain"]
[null,null,"SE | Sweden","SE","Sweden"]
[null,null,"CH | Switzerland","CH","Switzerland"]
[null,null,"TR | Türkiye","TR","Türkiye"]
[null,null,"GB | United Kingdom","GB","United Kingdom"]
[null,null,"XI | United Kingdom (Northern Ireland)","XI","United Kingdom (Northern Ireland)"]

{"sheet":"CAT_NUTS_nuts2024","index":15,"n_rows":1934,"n_cols":6,"rows_kept":1934,"cut":false,"hidden":false,"merged":[]}
["MemberState_TERMS","EFSA_TERM","CAT_NUTS_nuts2024","SSD_Code","term","level_0"]
[null,null,"AL | Albania","AL","Albania"]
[null,null,"AL0 | Shqipëria","AL0","Shqipëria"]
[null,null,"AL01 | Veri","AL01","Veri"]
[null,null,"AL011 | Dibër","AL011","Dibër"]
[null,null,"AL012 | Durrës","AL012","Durrës"]
[null,null,"AL013 | Kukës","AL013","Kukës"]
[null,null,"AL014 | Lezhë","AL014","Lezhë"]
[null,null,"AL015 | Shkodër","AL015","Shkodër"]
[null,null,"AL02 | Qender","AL02","Qender"]
[null,null,"AL021 | Elbasan","AL021","Elbasan"]
[null,null,"AL022 | Tiranë","AL022","Tiranë"]
[null,null,"AL03 | Jug","AL03","Jug"]
[null,null,"AL031 | Berat","AL031","Berat"]
[null,null,"AL032 | Fier","AL032","Fier"]
[null,null,"AL033 | Gjirokastër","AL033","Gjirokastër"]
[null,null,"AL034 | Korcë","AL034","Korcë"]
[null,null,"AL035 | Vlorë","AL035","Vlorë"]
[null,null,"ALZ | Extra-Regio level 1 (Albania)","ALZ","Extra-Regio level 1 (Albania)"]
[null,null,"ALZZ | Extra-Regio level 2 (Albania)","ALZZ","Extra-Regio level 2 (Albania)"]
[null,null,"ALZZZ | Extra-Regio level 3 (Albania)","ALZZZ","Extra-Regio level 3 (Albania)"]
[null,null,"AT | AUSTRIA","AT","AUSTRIA"]
[null,null,"AT1 | OSTÖSTERREICH","AT1","OSTÖSTERREICH"]
[null,null,"AT11 | Burgenland (AT)","AT11","Burgenland (AT)"]
[null,null,"AT111 | Mittelburgenland","AT111","Mittelburgenland"]
[null,null,"AT112 | Nordburgenland","AT112","Nordburgenland"]
[null,null,"AT113 | Südburgenland","AT113","Südburgenland"]
[null,null,"AT12 | Niederösterreich","AT12","Niederösterreich"]
[null,null,"AT121 | Mostviertel-Eisenwurzen","AT121","Mostviertel-Eisenwurzen"]
[null,null,"AT122 | Niederösterreich-Süd","AT122","Niederösterreich-Süd"]
[null,null,"AT123 | Sankt Pölten","AT123","Sankt Pölten"]
[null,null,"AT124 | Waldviertel","AT124","Waldviertel"]
[null,null,"AT125 | Weinviertel","AT125","Weinviertel"]
[null,null,"AT126 | Wiener Umland/Nordteil","AT126","Wiener Umland/Nordteil"]
[null,null,"AT127 | Wiener Umland/Südteil","AT127","Wiener Umland/Südteil"]
[null,null,"AT13 | Wien (NUTS level 2)","AT13","Wien (NUTS level 2)"]
[null,null,"AT130 | Wien (NUTS level 3)","AT130","Wien (NUTS level 3)"]
[null,null,"AT2 | SÜDÖSTERREICH","AT2","SÜDÖSTERREICH"]
[null,null,"AT21 | Kärnten","AT21","Kärnten"]
[null,null,"AT211 | Klagenfurt-Villach","AT211","Klagenfurt-Villach"]
[null,null,"AT212 | Oberkärnten","AT212","Oberkärnten"]
[null,null,"AT213 | Unterkärnten","AT213","Unterkärnten"]
[null,null,"AT22 | Steiermark","AT22","Steiermark"]
[null,null,"AT221 | Graz","AT221","Graz"]
[null,null,"AT222 | Liezen","AT222","Liezen"]
[null,null,"AT223 | Östliche Obersteiermark","AT223","Östliche Obersteiermark"]
[null,null,"AT224 | Oststeiermark","AT224","Oststeiermark"]
[null,null,"AT225 | West- und Südsteiermark","AT225","West- und Südsteiermark"]
[null,null,"AT226 | Westliche Obersteiermark","AT226","Westliche Obersteiermark"]
[null,null,"AT3 | WESTÖSTERREICH","AT3","WESTÖSTERREICH"]
[null,null,"AT31 | Oberösterreich","AT31","Oberösterreich"]
[null,null,"AT311 | Innviertel","AT311","Innviertel"]
[null,null,"AT312 | Linz-Wels","AT312","Linz-Wels"]
[null,null,"AT313 | Mühlviertel","AT313","Mühlviertel"]
[null,null,"AT314 | Steyr-Kirchdorf","AT314","Steyr-Kirchdorf"]
[null,null,"AT315 | Traunviertel","AT315","Traunviertel"]
[null,null,"AT32 | Salzburg","AT32","Salzburg"]
[null,null,"AT321 | Lungau","AT321","Lungau"]
[null,null,"AT322 | Pinzgau-Pongau","AT322","Pinzgau-Pongau"]
[null,null,"AT323 | Salzburg und Umgebung","AT323","Salzburg und Umgebung"]
[null,null,"AT33 | Tirol","AT33","Tirol"]
[null,null,"AT331 | Außerfern","AT331","Außerfern"]
[null,null,"AT332 | Innsbruck","AT332","Innsbruck"]
[null,null,"AT333 | Osttirol","AT333","Osttirol"]
[null,null,"AT334 | Tiroler Oberland","AT334","Tiroler Oberland"]
[null,null,"AT335 | Tiroler Unterland","AT335","Tiroler Unterland"]
[null,null,"AT34 | Vorarlberg","AT34","Vorarlberg"]
[null,null,"AT341 | Bludenz-Bregenzer Wald","AT341","Bludenz-Bregenzer Wald"]
[null,null,"AT342 | Rheintal-Bodenseegebiet","AT342","Rheintal-Bodenseegebiet"]
[null,null,"ATZ | Extra-Regio NUTS 1 (ÖSTERREICH)","ATZ","Extra-Regio NUTS 1 (ÖSTERREICH)"]
[null,null,"ATZZ | Extra-Regio NUTS 2 (ÖSTERREICH)","ATZZ","Extra-Regio NUTS 2 (ÖSTERREICH)"]
[null,null,"ATZZZ | Extra-Regio NUTS 3 (ÖSTERREICH)","ATZZZ","Extra-Regio NUTS 3 (ÖSTERREICH)"]
[null,null,"BA | Bosnia and Herzegovina","BA","Bosnia and Herzegovina"]
[null,null,"BE | BELGIUM","BE","BELGIUM"]
[null,null,"BE1 | RÉGION DE BRUXELLES-CAPITALE / BRUSSELS HOOFDSTEDELIJK GEWEST (NUTS level 1)","BE1","RÉGION DE BRUXELLES-CAPITALE / BRUSSELS HOOFDSTEDELIJK GEWEST (NUTS level 1)"]
[null,null,"BE10 | Région de Bruxelles-Capitale / Brussels Hoofdstedelijk Gewest (NUTS level 2)","BE10","Région de Bruxelles-Capitale / Brussels Hoofdstedelijk Gewest (NUTS level 2)"]
[null,null,"BE100 | Arr. de Bruxelles-Capitale/Arr. Brussel-Hoofdstad","BE100","Arr. de Bruxelles-Capitale/Arr. Brussel-Hoofdstad"]
[null,null,"BE2 | VLAAMS GEWEST","BE2","VLAAMS GEWEST"]
[null,null,"BE21 | Prov. Antwerpen","BE21","Prov. Antwerpen"]
[null,null,"BE211 | Arr. Antwerpen","BE211","Arr. Antwerpen"]
[null,null,"BE212 | Arr. Mechelen","BE212","Arr. Mechelen"]
[null,null,"BE213 | Arr. Turnhout","BE213","Arr. Turnhout"]
[null,null,"BE22 | Prov. Limburg (BE)","BE22","Prov. Limburg (BE)"]
[null,null,"BE223 | Arr. Tongeren","BE223","Arr. Tongeren"]
[null,null,"BE224 | Arr. Hasselt (NUTS 2021)","BE224","Arr. Hasselt (NUTS 2021)"]
[null,null,"BE225 | Arr. Maaseik (NUTS 2021)","BE225","Arr. Maaseik (NUTS 2021)"]
[null,null,"BE23 | Prov. Oost-Vlaanderen","BE23","Prov. Oost-Vlaanderen"]
[null,null,"BE231 | Arr. Aalst","BE231","Arr. Aalst"]
[null,null,"BE232 | Arr. Dendermonde","BE232","Arr. Dendermonde"]
[null,null,"BE233 | Arr. Eeklo","BE233","Arr. Eeklo"]
[null,null,"BE234 | Arr. Gent","BE234","Arr. Gent"]
[null,null,"BE235 | Arr. Oudenaarde","BE235","Arr. Oudenaarde"]
[null,null,"BE236 | Arr. Sint-Niklaas","BE236","Arr. Sint-Niklaas"]
[null,null,"BE24 | Prov. Vlaams-Brabant","BE24","Prov. Vlaams-Brabant"]
[null,null,"BE241 | Arr. Halle-Vilvoorde","BE241","Arr. Halle-Vilvoorde"]
[null,null,"BE242 | Arr. Leuven","BE242","Arr. Leuven"]
[null,null,"BE25 | Prov. West-Vlaanderen","BE25","Prov. West-Vlaanderen"]
[null,null,"BE251 | Arr. Brugge","BE251","Arr. Brugge"]
[null,null,"BE252 | Arr. Diksmuide","BE252","Arr. Diksmuide"]
[null,null,"BE253 | Arr. Ieper","BE253","Arr. Ieper"]
[null,null,"BE254 | Arr. Kortrijk","BE254","Arr. Kortrijk"]
[null,null,"BE255 | Arr. Oostende","BE255","Arr. Oostende"]
[null,null,"BE256 | Arr. Roeselare","BE256","Arr. Roeselare"]
[null,null,"BE257 | Arr. Tielt","BE257","Arr. Tielt"]
[null,null,"BE258 | Arr. Veurne","BE258","Arr. Veurne"]
[null,null,"BE3 | Région wallonne","BE3","Région wallonne"]
[null,null,"BE31 | Prov. Brabant wallon","BE31","Prov. Brabant wallon"]
[null,null,"BE310 | Arr. Nivelles","BE310","Arr. Nivelles"]
[null,null,"BE32 | Prov. Hainaut","BE32","Prov. Hainaut"]
[null,null,"BE323 | Arr. Mons","BE323","Arr. Mons"]
[null,null,"BE328 | Arr. Tournai-Mouscron","BE328","Arr. Tournai-Mouscron"]
[null,null,"BE329 | Arr. La Louvière","BE329","Arr. La Louvière"]
[null,null,"BE32A | Arr. Ath (NUTS 2021)","BE32A","Arr. Ath (NUTS 2021)"]
[null,null,"BE32B | Arr. Charleroi (NUTS 2021)","BE32B","Arr. Charleroi (NUTS 2021)"]
[null,null,"BE32C | Arr. Soignies (NUTS 2021)","BE32C","Arr. Soignies (NUTS 2021)"]
[null,null,"BE32D | Arr. Thuin (NUTS 2021)","BE32D","Arr. Thuin (NUTS 2021)"]
[null,null,"BE33 | Prov. Liège","BE33","Prov. Liège"]
[null,null,"BE331 | Arr. Huy","BE331","Arr. Huy"]
[null,null,"BE332 | Arr. Liège","BE332","Arr. Liège"]
[null,null,"BE334 | Arr. Waremme","BE334","Arr. Waremme"]
[null,null,"BE335 | Arr. Verviers - communes francophones","BE335","Arr. Verviers - communes francophones"]
[null,null,"BE336 | Bezirk Verviers - Deutschsprachige Gemeinschaft","BE336","Bezirk Verviers - Deutschsprachige Gemeinschaft"]
[null,null,"BE34 | Prov. Luxembourg (BE)","BE34","Prov. Luxembourg (BE)"]
[null,null,"BE341 | Arr. Arlon","BE341","Arr. Arlon"]
[null,null,"BE342 | Arr. Bastogne","BE342","Arr. Bastogne"]
[null,null,"BE343 | Arr. Marche-en-Famenne","BE343","Arr. Marche-en-Famenne"]
[null,null,"BE344 | Arr. Neufchâteau","BE344","Arr. Neufchâteau"]
[null,null,"BE345 | Arr. Virton","BE345","Arr. Virton"]
[null,null,"BE35 | Prov. Namur","BE35","Prov. Namur"]
[null,null,"BE351 | Arr. Dinant","BE351","Arr. Dinant"]
[null,null,"BE352 | Arr. Namur","BE352","Arr. Namur"]
[null,null,"BE353 | Arr. Philippeville","BE353","Arr. Philippeville"]
[null,null,"BEZ | Extra-Regio NUTS 1 (BELGIQUE-BELGIË )","BEZ","Extra-Regio NUTS 1 (BELGIQUE-BELGIË )"]
[null,null,"BEZZ | Extra-Regio NUTS 2 (BELGIQUE-BELGIË )","BEZZ","Extra-Regio NUTS 2 (BELGIQUE-BELGIË )"]
[null,null,"BEZZZ | Extra-Regio NUTS 3 (BELGIQUE-BELGIË )","BEZZZ","Extra-Regio NUTS 3 (BELGIQUE-BELGIË )"]
[null,null,"BG | BULGARIA","BG","BULGARIA"]
[null,null,"BG3 | СЕВЕРНА И ЮГОИЗТОЧНА БЪЛГАРИЯ","BG3","СЕВЕРНА И ЮГОИЗТОЧНА БЪЛГАРИЯ"]
[null,null,"BG31 | Северозападен","BG31","Северозападен"]
[null,null,"BG311 | Видин","BG311","Видин"]
[null,null,"BG312 | Монтана","BG312","Монтана"]
[null,null,"BG313 | Враца","BG313","Враца"]
[null,null,"BG314 | Плевен","BG314","Плевен"]
[null,null,"BG315 | Ловеч","BG315","Ловеч"]
[null,null,"BG32 | Северен централен","BG32","Северен централен"]
[null,null,"BG321 | Велико Търново","BG321","Велико Търново"]
[null,null,"BG322 | Габрово","BG322","Габрово"]
[null,null,"BG323 | Русе","BG323","Русе"]
[null,null,"BG324 | Разград","BG324","Разград"]
[null,null,"BG325 | Силистра","BG325","Силистра"]
[null,null,"BG33 | Североизточен","BG33","Североизточен"]
[null,null,"BG331 | Варна","BG331","Варна"]
[null,null,"BG332 | Добрич","BG332","Добрич"]
[null,null,"BG333 | Шумен","BG333","Шумен"]
[null,null,"BG334 | Търговище","BG334","Търговище"]
[null,null,"BG34 | Югоизточен","BG34","Югоизточен"]
[null,null,"BG341 | Бургас","BG341","Бургас"]
[null,null,"BG342 | Сливен","BG342","Сливен"]
[null,null,"BG343 | Ямбол","BG343","Ямбол"]
[null,null,"BG344 | Стара Загора","BG344","Стара Загора"]
[null,null,"BG4 | ЮГОЗАПАДНА И ЮЖНА ЦЕНТРАЛНА БЪЛГАРИЯ","BG4","ЮГОЗАПАДНА И ЮЖНА ЦЕНТРАЛНА БЪЛГАРИЯ"]
[null,null,"BG41 | Югозападен","BG41","Югозападен"]
[null,null,"BG411 | София (столица)","BG411","София (столица)"]
[null,null,"BG412 | София","BG412","София"]
[null,null,"BG413 | Благоевград","BG413","Благоевград"]
[null,null,"BG414 | Перник","BG414","Перник"]
[null,null,"BG415 | Кюстендил","BG415","Кюстендил"]
[null,null,"BG42 | Южен централен","BG42","Южен централен"]
[null,null,"BG421 | Пловдив","BG421","Пловдив"]
[null,null,"BG422 | Хасково","BG422","Хасково"]
[null,null,"BG423 | Пазарджик","BG423","Пазарджик"]
[null,null,"BG424 | Смолян","BG424","Смолян"]
[null,null,"BG425 | Кърджали","BG425","Кърджали"]
[null,null,"BGZ | Extra-Regio NUTS 1 (БЪЛГАРИЯ)","BGZ","Extra-Regio NUTS 1 (БЪЛГАРИЯ)"]
[null,null,"BGZZ | Extra-Regio NUTS 2 (БЪЛГАРИЯ)","BGZZ","Extra-Regio NUTS 2 (БЪЛГАРИЯ)"]
[null,null,"BGZZZ | Extra-Regio NUTS 3 (БЪЛГАРИЯ)","BGZZZ","Extra-Regio NUTS 3 (БЪЛГАРИЯ)"]
[null,null,"CH | SWITZERLAND","CH","SWITZERLAND"]
[null,null,"CH0 | Schweiz/Suisse/Svizzera","CH0","Schweiz/Suisse/Svizzera"]
[null,null,"CH01 | Région Lémanique","CH01","Région Lémanique"]
[null,null,"CH011 | Vaud","CH011","Vaud"]
[null,null,"CH012 | Valais / Wallis","CH012","Valais / Wallis"]
[null,null,"CH013 | Genève","CH013","Genève"]
[null,null,"CH02 | Espace Mittelland","CH02","Espace Mittelland"]
[null,null,"CH021 | Bern / Berne","CH021","Bern / Berne"]
[null,null,"CH022 | Fribourg / Freiburg","CH022","Fribourg / Freiburg"]
[null,null,"CH023 | Solothurn","CH023","Solothurn"]
[null,null,"CH024 | Neuchâtel","CH024","Neuchâtel"]
[null,null,"CH025 | Jura (Espace Mittelland)","CH025","Jura (Espace Mittelland)"]
[null,null,"CH03 | Nordwestschweiz","CH03","Nordwestschweiz"]
[null,null,"CH031 | Basel-Stadt","CH031","Basel-Stadt"]
[null,null,"CH032 | Basel-Landschaft","CH032","Basel-Landschaft"]
[null,null,"CH033 | Aargau","CH033","Aargau"]
[null,null,"CH04 | Zürich (NUTS level 2)","CH04","Zürich (NUTS level 2)"]
[null,null,"CH040 | Zürich (NUTS level 3)","CH040","Zürich (NUTS level 3)"]
[null,null,"CH05 | Ostschweiz","CH05","Ostschweiz"]
[null,null,"CH051 | Glarus","CH051","Glarus"]
[null,null,"CH052 | Schaffhausen","CH052","Schaffhausen"]
[null,null,"CH053 | Appenzell Ausserrhoden","CH053","Appenzell Ausserrhoden"]
[null,null,"CH054 | Appenzell Innerrhoden","CH054","Appenzell Innerrhoden"]
[null,null,"CH055 | St. Gallen","CH055","St. Gallen"]
[null,null,"CH056 | Graubünden / Grigioni / Grischun","CH056","Graubünden / Grigioni / Grischun"]
[null,null,"CH057 | Thurgau","CH057","Thurgau"]
[null,null,"CH06 | Zentralschweiz","CH06","Zentralschweiz"]
[null,null,"CH061 | Luzern","CH061","Luzern"]
[null,null,"CH062 | Uri","CH062","Uri"]
[null,null,"CH063 | Schwyz","CH063","Schwyz"]
[null,null,"CH064 | Obwalden","CH064","Obwalden"]
[null,null,"CH065 | Nidwalden","CH065","Nidwalden"]
[null,null,"CH066 | Zug","CH066","Zug"]
[null,null,"CH07 | Ticino (NUTS level 2)","CH07","Ticino (NUTS level 2)"]
[null,null,"CH070 | Ticino (NUTS level 3)","CH070","Ticino (NUTS level 3)"]
[null,null,"CHZ | Extra-Regio level 1 (SWITZERLAND)","CHZ","Extra-Regio level 1 (SWITZERLAND)"]
[null,null,"CHZZ | Extra-Regio level 2 (SWITZERLAND)","CHZZ","Extra-Regio level 2 (SWITZERLAND)"]
[null,null,"CHZZZ | Extra-Regio level 3 (SWITZERLAND)","CHZZZ","Extra-Regio level 3 (SWITZERLAND)"]
[null,null,"CY | CYPRUS","CY","CYPRUS"]
[null,null,"CY0 | ΚΥΠΡΟΣ (NUTS level 1)","CY0","ΚΥΠΡΟΣ (NUTS level 1)"]
[null,null,"CY00 | Κύπρος (NUTS level 2)","CY00","Κύπρος (NUTS level 2)"]
[null,null,"CY000 | Κύπρος (NUTS level 3)","CY000","Κύπρος (NUTS level 3)"]
[null,null,"CYZ | Extra-Regio NUTS 1 (ΚΥΠΡΟΣ)","CYZ","Extra-Regio NUTS 1 (ΚΥΠΡΟΣ)"]
[null,null,"CYZZ | Extra-Regio NUTS 2 (ΚΥΠΡΟΣ)","CYZZ","Extra-Regio NUTS 2 (ΚΥΠΡΟΣ)"]
[null,null,"CYZZZ | Extra-Regio NUTS 3 (ΚΥΠΡΟΣ)","CYZZZ","Extra-Regio NUTS 3 (ΚΥΠΡΟΣ)"]
[null,null,"CZ | Česko","CZ","Česko"]
[null,null,"CZ0 | Česko (NUTS level 1)","CZ0","Česko (NUTS level 1)"]
[null,null,"CZ01 | Praha","CZ01","Praha"]
[null,null,"CZ010 | Hlavní město Praha","CZ010","Hlavní město Praha"]
[null,null,"CZ02 | Střední Čechy","CZ02","Střední Čechy"]
[null,null,"CZ020 | Středočeský kraj","CZ020","Středočeský kraj"]
[null,null,"CZ03 | Jihozápad","CZ03","Jihozápad"]
[null,null,"CZ031 | Jihočeský kraj","CZ031","Jihočeský kraj"]
[null,null,"CZ032 | Plzeňský kraj","CZ032","Plzeňský kraj"]
[null,null,"CZ04 | Severozápad","CZ04","Severozápad"]
[null,null,"CZ041 | Karlovarský kraj","CZ041","Karlovarský kraj"]
[null,null,"CZ042 | Ústecký kraj","CZ042","Ústecký kraj"]
[null,null,"CZ05 | Severovýchod","CZ05","Severovýchod"]
[null,null,"CZ051 | Liberecký kraj","CZ051","Liberecký kraj"]
[null,null,"CZ052 | Královéhradecký kraj","CZ052","Královéhradecký kraj"]
[null,null,"CZ053 | Pardubický kraj","CZ053","Pardubický kraj"]
[null,null,"CZ06 | Jihovýchod","CZ06","Jihovýchod"]
[null,null,"CZ063 | Kraj Vysočina","CZ063","Kraj Vysočina"]
[null,null,"CZ064 | Jihomoravský kraj","CZ064","Jihomoravský kraj"]
[null,null,"CZ07 | Střední Morava","CZ07","Střední Morava"]
[null,null,"CZ071 | Olomoucký kraj","CZ071","Olomoucký kraj"]
[null,null,"CZ072 | Zlínský kraj","CZ072","Zlínský kraj"]
[null,null,"CZ08 | Moravskoslezsko","CZ08","Moravskoslezsko"]
[null,null,"CZ080 | Moravskoslezský kraj","CZ080","Moravskoslezský kraj"]
[null,null,"CZZ | Extra-Regio NUTS 1 (ČESKÁ REPUBLIKA)","CZZ","Extra-Regio NUTS 1 (ČESKÁ REPUBLIKA)"]
[null,null,"CZZZ | Extra-Regio NUTS 2 (ČESKÁ REPUBLIKA)","CZZZ","Extra-Regio NUTS 2 (ČESKÁ REPUBLIKA)"]
[null,null,"CZZZZ | Extra-Regio NUTS 3 (ČESKÁ REPUBLIKA)","CZZZZ","Extra-Regio NUTS 3 (ČESKÁ REPUBLIKA)"]
[null,null,"DE | GERMANY","DE","GERMANY"]
[null,null,"DE1 | BADEN-WÜRTTEMBERG","DE1","BADEN-WÜRTTEMBERG"]
[null,null,"DE11 | Stuttgart","DE11","Stuttgart"]
[null,null,"DE111 | Stuttgart, Stadtkreis","DE111","Stuttgart, Stadtkreis"]
[null,null,"DE112 | Böblingen","DE112","Böblingen"]
[null,null,"DE113 | Esslingen","DE113","Esslingen"]
[null,null,"DE114 | Göppingen","DE114","Göppingen"]
[null,null,"DE115 | Ludwigsburg","DE115","Ludwigsburg"]
[null,null,"DE116 | Rems-Murr-Kreis","DE116","Rems-Murr-Kreis"]
[null,null,"DE117 | Heilbronn, Stadtkreis","DE117","Heilbronn, Stadtkreis"]
[null,null,"DE118 | Heilbronn, Landkreis","DE118","Heilbronn, Landkreis"]
[null,null,"DE119 | Hohenlohekreis","DE119","Hohenlohekreis"]
[null,null,"DE11A | Schwäbisch Hall","DE11A","Schwäbisch Hall"]
[null,null,"DE11B | Main-Tauber-Kreis","DE11B","Main-Tauber-Kreis"]
[null,null,"DE11C | Heidenheim","DE11C","Heidenheim"]
[null,null,"DE11D | Ostalbkreis","DE11D","Ostalbkreis"]
[null,null,"DE12 | Karlsruhe","DE12","Karlsruhe"]
[null,null,"DE121 | Baden-Baden, Stadtkreis","DE121","Baden-Baden, Stadtkreis"]
[null,null,"DE122 | Karlsruhe, Stadtkreis","DE122","Karlsruhe, Stadtkreis"]
[null,null,"DE123 | Karlsruhe, Landkreis","DE123","Karlsruhe, Landkreis"]
[null,null,"DE124 | Rastatt","DE124","Rastatt"]
[null,null,"DE125 | Heidelberg, Stadtkreis","DE125","Heidelberg, Stadtkreis"]
[null,null,"DE126 | Mannheim, Stadtkreis","DE126","Mannheim, Stadtkreis"]
[null,null,"DE127 | Neckar-Odenwald-Kreis","DE127","Neckar-Odenwald-Kreis"]
[null,null,"DE128 | Rhein-Neckar-Kreis","DE128","Rhein-Neckar-Kreis"]
[null,null,"DE129 | Pforzheim, Stadtkreis","DE129","Pforzheim, Stadtkreis"]
[null,null,"DE12A | Calw","DE12A","Calw"]
[null,null,"DE12B | Enzkreis","DE12B","Enzkreis"]
[null,null,"DE12C | Freudenstadt","DE12C","Freudenstadt"]
[null,null,"DE13 | Freiburg (NUTS level 2)","DE13","Freiburg (NUTS level 2)"]
[null,null,"DE131 | Freiburg im Breisgau, Stadtkreis","DE131","Freiburg im Breisgau, Stadtkreis"]
[null,null,"DE132 | Breisgau-Hochschwarzwald","DE132","Breisgau-Hochschwarzwald"]
[null,null,"DE133 | Emmendingen","DE133","Emmendingen"]
[null,null,"DE134 | Ortenaukreis","DE134","Ortenaukreis"]
[null,null,"DE135 | Rottweil","DE135","Rottweil"]
[null,null,"DE136 | Schwarzwald-Baar-Kreis","DE136","Schwarzwald-Baar-Kreis"]
[null,null,"DE137 | Tuttlingen","DE137","Tuttlingen"]
[null,null,"DE138 | Konstanz","DE138","Konstanz"]
[null,null,"DE139 | Lörrach","DE139","Lörrach"]
[null,null,"DE13A | Waldshut","DE13A","Waldshut"]
[null,null,"DE14 | Tübingen","DE14","Tübingen"]
[null,null,"DE141 | Reutlingen","DE141","Reutlingen"]
[null,null,"DE142 | Tübingen, Landkreis","DE142","Tübingen, Landkreis"]
[null,null,"DE143 | Zollernalbkreis","DE143","Zollernalbkreis"]
[null,null,"DE144 | Ulm, Stadtkreis","DE144","Ulm, Stadtkreis"]
[null,null,"DE145 | Alb-Donau-Kreis","DE145","Alb-Donau-Kreis"]
[null,null,"DE146 | Biberach","DE146","Biberach"]
[null,null,"DE147 | Bodenseekreis","DE147","Bodenseekreis"]
[null,null,"DE148 | Ravensburg","DE148","Ravensburg"]
[null,null,"DE149 | Sigmaringen","DE149","Sigmaringen"]
[null,null,"DE2 | BAYERN","DE2","BAYERN"]
[null,null,"DE21 | Oberbayern","DE21","Oberbayern"]
[null,null,"DE211 | Ingolstadt, Kreisfreie Stadt","DE211","Ingolstadt, Kreisfreie Stadt"]
[null,null,"DE212 | München, Kreisfreie Stadt","DE212","München, Kreisfreie Stadt"]
[null,null,"DE213 | Rosenheim, Kreisfreie Stadt","DE213","Rosenheim, Kreisfreie Stadt"]
[null,null,"DE214 | Altötting","DE214","Altötting"]
[null,null,"DE215 | Berchtesgadener Land","DE215","Berchtesgadener Land"]
[null,null,"DE216 | Bad Tölz-Wolfratshausen","DE216","Bad Tölz-Wolfratshausen"]
[null,null,"DE217 | Dachau","DE217","Dachau"]
[null,null,"DE218 | Ebersberg","DE218","Ebersberg"]
[null,null,"DE219 | Eichstätt","DE219","Eichstätt"]
[null,null,"DE21A | Erding","DE21A","Erding"]
[null,null,"DE21B | Freising","DE21B","Freising"]
[null,null,"DE21C | Fürstenfeldbruck","DE21C","Fürstenfeldbruck"]
[null,null,"DE21D | Garmisch-Partenkirchen","DE21D","Garmisch-Partenkirchen"]
[null,null,"DE21E | Landsberg am Lech","DE21E","Landsberg am Lech"]
[null,null,"DE21F | Miesbach","DE21F","Miesbach"]
[null,null,"DE21G | Mühldorf a. Inn","DE21G","Mühldorf a. Inn"]
[null,null,"DE21H | München, Landkreis","DE21H","München, Landkreis"]
[null,null,"DE21I | Neuburg-Schrobenhausen","DE21I","Neuburg-Schrobenhausen"]
[null,null,"DE21J | Pfaffenhofen a. d. Ilm","DE21J","Pfaffenhofen a. d. Ilm"]
[null,null,"DE21K | Rosenheim, Landkreis","DE21K","Rosenheim, Landkreis"]
[null,null,"DE21L | Starnberg","DE21L","Starnberg"]
[null,null,"DE21M | Traunstein","DE21M","Traunstein"]
[null,null,"DE21N | Weilheim-Schongau","DE21N","Weilheim-Schongau"]
[null,null,"DE22 | Niederbayern","DE22","Niederbayern"]
[null,null,"DE221 | Landshut, Kreisfreie Stadt","DE221","Landshut, Kreisfreie Stadt"]
[null,null,"DE222 | Passau, Kreisfreie Stadt","DE222","Passau, Kreisfreie Stadt"]
[null,null,"DE223 | Straubing, Kreisfreie Stadt","DE223","Straubing, Kreisfreie Stadt"]
[null,null,"DE224 | Deggendorf","DE224","Deggendorf"]
[null,null,"DE225 | Freyung-Grafenau","DE225","Freyung-Grafenau"]
[null,null,"DE226 | Kelheim","DE226","Kelheim"]
[null,null,"DE227 | Landshut, Landkreis","DE227","Landshut, Landkreis"]
[null,null,"DE228 | Passau, Landkreis","DE228","Passau, Landkreis"]
[null,null,"DE229 | Regen","DE229","Regen"]
[null,null,"DE22A | Rottal-Inn","DE22A","Rottal-Inn"]
[null,null,"DE22B | Straubing-Bogen","DE22B","Straubing-Bogen"]
[null,null,"DE22C | Dingolfing-Landau","DE22C","Dingolfing-Landau"]
[null,null,"DE23 | Oberpfalz","DE23","Oberpfalz"]
[null,null,"DE231 | Amberg, Kreisfreie Stadt","DE231","Amberg, Kreisfreie Stadt"]
[null,null,"DE232 | Regensburg, Kreisfreie Stadt","DE232","Regensburg, Kreisfreie Stadt"]
[null,null,"DE233 | Weiden i. d. Opf, Kreisfreie Stadt","DE233","Weiden i. d. Opf, Kreisfreie Stadt"]
[null,null,"DE234 | Amberg-Sulzbach","DE234","Amberg-Sulzbach"]
[null,null,"DE235 | Cham","DE235","Cham"]
[null,null,"DE236 | Neumarkt i. d. OPf.","DE236","Neumarkt i. d. OPf."]
[null,null,"DE237 | Neustadt a. d. Waldnaab","DE237","Neustadt a. d. Waldnaab"]
[null,null,"DE238 | Regensburg, Landkreis","DE238","Regensburg, Landkreis"]
[null,null,"DE239 | Schwandorf","DE239","Schwandorf"]
[null,null,"DE23A | Tirschenreuth","DE23A","Tirschenreuth"]
[null,null,"DE24 | Oberfranken","DE24","Oberfranken"]
[null,null,"DE241 | Bamberg, Kreisfreie Stadt","DE241","Bamberg, Kreisfreie Stadt"]
[null,null,"DE242 | Bayreuth, Kreisfreie Stadt","DE242","Bayreuth, Kreisfreie Stadt"]
[null,null,"DE243 | Coburg, Kreisfreie Stadt","DE243","Coburg, Kreisfreie Stadt"]
[null,null,"DE244 | Hof, Kreisfreie Stadt","DE244","Hof, Kreisfreie Stadt"]
[null,null,"DE245 | Bamberg, Landkreis","DE245","Bamberg, Landkreis"]
[null,null,"DE246 | Bayreuth, Landkreis","DE246","Bayreuth, Landkreis"]
[null,null,"DE247 | Coburg, Landkreis","DE247","Coburg, Landkreis"]
[null,null,"DE248 | Forchheim","DE248","Forchheim"]
[null,null,"DE249 | Hof, Landkreis","DE249","Hof, Landkreis"]
[null,null,"DE24A | Kronach","DE24A","Kronach"]
[null,null,"DE24B | Kulmbach","DE24B","Kulmbach"]
[null,null,"DE24C | Lichtenfels","DE24C","Lichtenfels"]
[null,null,"DE24D | Wunsiedel i. Fichtelgebirge","DE24D","Wunsiedel i. Fichtelgebirge"]
[null,null,"DE25 | Mittelfranken","DE25","Mittelfranken"]
[null,null,"DE251 | Ansbach, Kreisfreie Stadt","DE251","Ansbach, Kreisfreie Stadt"]
[null,null,"DE252 | Erlangen, Kreisfreie Stadt","DE252","Erlangen, Kreisfreie Stadt"]
[null,null,"DE253 | Fürth, Kreisfreie Stadt","DE253","Fürth, Kreisfreie Stadt"]
[null,null,"DE254 | Nürnberg, Kreisfreie Stadt","DE254","Nürnberg, Kreisfreie Stadt"]
[null,null,"DE255 | Schwabach, Kreisfreie Stadt","DE255","Schwabach, Kreisfreie Stadt"]
[null,null,"DE256 | Ansbach, Landkreis","DE256","Ansbach, Landkreis"]
[null,null,"DE257 | Erlangen-Höchstadt","DE257","Erlangen-Höchstadt"]
[null,null,"DE258 | Fürth, Landkreis","DE258","Fürth, Landkreis"]
[null,null,"DE259 | Nürnberger Land","DE259","Nürnberger Land"]
[null,null,"DE25A | Neustadt a. d. Aisch-Bad Windsheim","DE25A","Neustadt a. d. Aisch-Bad Windsheim"]
[null,null,"DE25B | Roth","DE25B","Roth"]
[null,null,"DE25C | Weißenburg-Gunzenhausen","DE25C","Weißenburg-Gunzenhausen"]
[null,null,"DE26 | Unterfranken","DE26","Unterfranken"]
[null,null,"DE261 | Aschaffenburg, Kreisfreie Stadt","DE261","Aschaffenburg, Kreisfreie Stadt"]
[null,null,"DE262 | Schweinfurt, Kreisfreie Stadt","DE262","Schweinfurt, Kreisfreie Stadt"]
[null,null,"DE263 | Würzburg, Kreisfreie Stadt","DE263","Würzburg, Kreisfreie Stadt"]
[null,null,"DE264 | Aschaffenburg, Landkreis","DE264","Aschaffenburg, Landkreis"]
[null,null,"DE265 | Bad Kissingen","DE265","Bad Kissingen"]
[null,null,"DE266 | Rhön-Grabfeld","DE266","Rhön-Grabfeld"]
[null,null,"DE267 | Haßberge","DE267","Haßberge"]
[null,null,"DE268 | Kitzingen","DE268","Kitzingen"]
[null,null,"DE269 | Miltenberg","DE269","Miltenberg"]
[null,null,"DE26A | Main-Spessart","DE26A","Main-Spessart"]
[null,null,"DE26B | Schweinfurt, Landkreis","DE26B","Schweinfurt, Landkreis"]
[null,null,"DE26C | Würzburg, Landkreis","DE26C","Würzburg, Landkreis"]
[null,null,"DE27 | Schwaben","DE27","Schwaben"]
[null,null,"DE271 | Augsburg, Kreisfreie Stadt","DE271","Augsburg, Kreisfreie Stadt"]
[null,null,"DE272 | Kaufbeuren, Kreisfreie Stadt","DE272","Kaufbeuren, Kreisfreie Stadt"]
[null,null,"DE273 | Kempten (Allgäu), Kreisfreie Stadt","DE273","Kempten (Allgäu), Kreisfreie Stadt"]
[null,null,"DE274 | Memmingen, Kreisfreie Stadt","DE274","Memmingen, Kreisfreie Stadt"]
[null,null,"DE275 | Aichach-Friedberg","DE275","Aichach-Friedberg"]
[null,null,"DE276 | Augsburg, Landkreis","DE276","Augsburg, Landkreis"]
[null,null,"DE277 | Dillingen a.d. Donau","DE277","Dillingen a.d. Donau"]
[null,null,"DE278 | Günzburg","DE278","Günzburg"]
[null,null,"DE279 | Neu-Ulm","DE279","Neu-Ulm"]
[null,null,"DE27A | Lindau (Bodensee)","DE27A","Lindau (Bodensee)"]
[null,null,"DE27B | Ostallgäu","DE27B","Ostallgäu"]
[null,null,"DE27C | Unterallgäu","DE27C","Unterallgäu"]
[null,null,"DE27D | Donau-Ries","DE27D","Donau-Ries"]
[null,null,"DE27E | Oberallgäu","DE27E","Oberallgäu"]
[null,null,"DE3 | BERLIN (NUTS level 1)","DE3","BERLIN (NUTS level 1)"]
[null,null,"DE30 | Berlin (NUTS level 2)","DE30","Berlin (NUTS level 2)"]
[null,null,"DE300 | Berlin (NUTS level 3)","DE300","Berlin (NUTS level 3)"]
[null,null,"DE4 | BRANDENBURG (NUTS level 1)","DE4","BRANDENBURG (NUTS level 1)"]
[null,null,"DE40 | Brandenburg (NUTS level 2)","DE40","Brandenburg (NUTS level 2)"]
[null,null,"DE401 | Brandenburg an der Havel, Kreisfreie Stadt (NUTS 2010-2013)","DE401","Brandenburg an der Havel, Kreisfreie Stadt (NUTS 2010-2013)"]
[null,null,"DE402 | Cottbus, Kreisfreie Stadt (NUTS 2010-2013)","DE402","Cottbus, Kreisfreie Stadt (NUTS 2010-2013)"]
[null,null,"DE403 | Frankfurt (Oder), Kreisfreie Stadt (NUTS 2010-2013)","DE403","Frankfurt (Oder), Kreisfreie Stadt (NUTS 2010-2013)"]
[null,null,"DE404 | Potsdam, Kreisfreie Stadt (NUTS 2010-2013)","DE404","Potsdam, Kreisfreie Stadt (NUTS 2010-2013)"]
[null,null,"DE405 | Barnim (NUTS 2010-2013)","DE405","Barnim (NUTS 2010-2013)"]
[null,null,"DE406 | Dahme-Spreewald (NUTS 2010-2013)","DE406","Dahme-Spreewald (NUTS 2010-2013)"]
[null,null,"DE407 | Elbe-Elster (NUTS 2010-2013)","DE407","Elbe-Elster (NUTS 2010-2013)"]
[null,null,"DE408 | Havelland (NUTS 2010-2013)","DE408","Havelland (NUTS 2010-2013)"]
[null,null,"DE409 | Märkisch-Oderland (NUTS 2010-2013)","DE409","Märkisch-Oderland (NUTS 2010-2013)"]
[null,null,"DE40A | Oberhavel (NUTS 2010-2013)","DE40A","Oberhavel (NUTS 2010-2013)"]
[null,null,"DE40B | Oberspreewald-Lausitz (NUTS 2010-2013)","DE40B","Oberspreewald-Lausitz (NUTS 2010-2013)"]
[null,null,"DE40C | Oder-Spree (NUTS 2010-2013)","DE40C","Oder-Spree (NUTS 2010-2013)"]
[null,null,"DE40D | Ostprignitz-Ruppin (NUTS 2010-2013)","DE40D","Ostprignitz-Ruppin (NUTS 2010-2013)"]
[null,null,"DE40E | Potsdam-Mittelmark (NUTS 2010-2013)","DE40E","Potsdam-Mittelmark (NUTS 2010-2013)"]
[null,null,"DE40F | Prignitz (NUTS 2010-2013)","DE40F","Prignitz (NUTS 2010-2013)"]
[null,null,"DE40G | Spree-Neiße (NUTS 2010-2013)","DE40G","Spree-Neiße (NUTS 2010-2013)"]
[null,null,"DE40H | Teltow-Fläming (NUTS 2010-2013)","DE40H","Teltow-Fläming (NUTS 2010-2013)"]
[null,null,"DE40I | Uckermark (NUTS 2010-2013)","DE40I","Uckermark (NUTS 2010-2013)"]
[null,null,"DE5 | BREMEN (NUTS level 1)","DE5","BREMEN (NUTS level 1)"]
[null,null,"DE50 | Bremen (NUTS level 2)","DE50","Bremen (NUTS level 2)"]
[null,null,"DE501 | Bremen, Kreisfreie Stadt","DE501","Bremen, Kreisfreie Stadt"]
[null,null,"DE502 | Bremerhaven, Kreisfreie Stadt","DE502","Bremerhaven, Kreisfreie Stadt"]
[null,null,"DE6 | HAMBURG (NUTS level 1)","DE6","HAMBURG (NUTS level 1)"]
[null,null,"DE60 | Hamburg (NUTS level 2)","DE60","Hamburg (NUTS level 2)"]
[null,null,"DE600 | Hamburg (NUTS level 3)","DE600","Hamburg (NUTS level 3)"]
[null,null,"DE7 | HESSEN","DE7","HESSEN"]
[null,null,"DE71 | Darmstadt","DE71","Darmstadt"]
[null,null,"DE711 | Darmstadt, Kreisfreie Stadt","DE711","Darmstadt, Kreisfreie Stadt"]
[null,null,"DE712 | Frankfurt am Main, Kreisfreie Stadt","DE712","Frankfurt am Main, Kreisfreie Stadt"]
[null,null,"DE713 | Offenbach am Main, Kreisfreie Stadt","DE713","Offenbach am Main, Kreisfreie Stadt"]
[null,null,"DE714 | Wiesbaden, Kreisfreie Stadt","DE714","Wiesbaden, Kreisfreie Stadt"]
[null,null,"DE715 | Bergstraße","DE715","Bergstraße"]
[null,null,"DE716 | Darmstadt-Dieburg","DE716","Darmstadt-Dieburg"]
[null,null,"DE717 | Groß-Gerau","DE717","Groß-Gerau"]
[null,null,"DE718 | Hochtaunuskreis","DE718","Hochtaunuskreis"]
[null,null,"DE719 | Main-Kinzig-Kreis","DE719","Main-Kinzig-Kreis"]
[null,null,"DE71A | Main-Taunus-Kreis","DE71A","Main-Taunus-Kreis"]
[null,null,"DE71B | Odenwaldkreis","DE71B","Odenwaldkreis"]
[null,null,"DE71C | Offenbach, Landkreis","DE71C","Offenbach, Landkreis"]
[null,null,"DE71D | Rheingau-Taunus-Kreis","DE71D","Rheingau-Taunus-Kreis"]
[null,null,"DE71E | Wetteraukreis","DE71E","Wetteraukreis"]
[null,null,"DE72 | Gießen","DE72","Gießen"]
[null,null,"DE721 | Gießen, Landkreis","DE721","Gießen, Landkreis"]
[null,null,"DE722 | Lahn-Dill-Kreis","DE722","Lahn-Dill-Kreis"]
[null,null,"DE723 | Limburg-Weilburg","DE723","Limburg-Weilburg"]
[null,null,"DE724 | Marburg-Biedenkopf","DE724","Marburg-Biedenkopf"]
[null,null,"DE725 | Vogelsbergkreis","DE725","Vogelsbergkreis"]
[null,null,"DE73 | Kassel","DE73","Kassel"]
[null,null,"DE731 | Kassel, Kreisfreie Stadt","DE731","Kassel, Kreisfreie Stadt"]
[null,null,"DE732 | Fulda","DE732","Fulda"]
[null,null,"DE733 | Hersfeld-Rotenburg","DE733","Hersfeld-Rotenburg"]
[null,null,"DE734 | Kassel, Landkreis","DE734","Kassel, Landkreis"]
[null,null,"DE735 | Schwalm-Eder-Kreis","DE735","Schwalm-Eder-Kreis"]
[null,null,"DE736 | Waldeck-Frankenberg","DE736","Waldeck-Frankenberg"]
[null,null,"DE737 | Werra-Meißner-Kreis","DE737","Werra-Meißner-Kreis"]
[null,null,"DE8 | MECKLENBURG-VORPOMMERN (NUTS level 1)","DE8","MECKLENBURG-VORPOMMERN (NUTS level 1)"]
[null,null,"DE80 | Mecklenburg-Vorpommern (NUTS level 2)","DE80","Mecklenburg-Vorpommern (NUTS level 2)"]
[null,null,"DE803 | Rostock, Kreisfreie Stadt","DE803","Rostock, Kreisfreie Stadt"]
[null,null,"DE804 | Schwerin, Kreisfreie Stadt","DE804","Schwerin, Kreisfreie Stadt"]
[null,null,"DE80J | Mecklenburgische Seenplatte","DE80J","Mecklenburgische Seenplatte"]
[null,null,"DE80K | Landkreis Rostock","DE80K","Landkreis Rostock"]
[null,null,"DE80L | Vorpommern-Rügen","DE80L","Vorpommern-Rügen"]
[null,null,"DE80M | Nordwestmecklenburg (NUTS 2013)","DE80M","Nordwestmecklenburg (NUTS 2013)"]
[null,null,"DE80N | Vorpommern-Greifswald","DE80N","Vorpommern-Greifswald"]
[null,null,"DE80O | Ludwigslust-Parchim","DE80O","Ludwigslust-Parchim"]
[null,null,"DE9 | NIEDERSACHSEN","DE9","NIEDERSACHSEN"]
[null,null,"DE91 | Braunschweig","DE91","Braunschweig"]
[null,null,"DE911 | Braunschweig, Kreisfreie Stadt","DE911","Braunschweig, Kreisfreie Stadt"]
[null,null,"DE912 | Salzgitter, Kreisfreie Stadt","DE912","Salzgitter, Kreisfreie Stadt"]
[null,null,"DE913 | Wolfsburg, Kreisfreie Stadt","DE913","Wolfsburg, Kreisfreie Stadt"]
[null,null,"DE914 | Gifhorn","DE914","Gifhorn"]
[null,null,"DE916 | Goslar","DE916","Goslar"]
[null,null,"DE917 | Helmstedt","DE917","Helmstedt"]
[null,null,"DE918 | Northeim","DE918","Northeim"]
[null,null,"DE91A | Peine","DE91A","Peine"]
[null,null,"DE91B | Wolfenbüttel","DE91B","Wolfenbüttel"]
[null,null,"DE91C | Göttingen (NUTS 2016)","DE91C","Göttingen (NUTS 2016)"]
[null,null,"DE92 | Hannover","DE92","Hannover"]
[null,null,"DE922 | Diepholz","DE922","Diepholz"]
[null,null,"DE923 | Hameln-Pyrmont","DE923","Hameln-Pyrmont"]
[null,null,"DE925 | Hildesheim","DE925","Hildesheim"]
[null,null,"DE926 | Holzminden","DE926","Holzminden"]
[null,null,"DE927 | Nienburg (Weser)","DE927","Nienburg (Weser)"]
[null,null,"DE928 | Schaumburg","DE928","Schaumburg"]
[null,null,"DE929 | Region Hannover","DE929","Region Hannover"]
[null,null,"DE93 | Lüneburg","DE93","Lüneburg"]
[null,null,"DE931 | Celle","DE931","Celle"]
[null,null,"DE932 | Cuxhaven","DE932","Cuxhaven"]
[null,null,"DE933 | Harburg","DE933","Harburg"]
[null,null,"DE934 | Lüchow-Dannenberg","DE934","Lüchow-Dannenberg"]
[null,null,"DE935 | Lüneburg, Landkreis","DE935","Lüneburg, Landkreis"]
[null,null,"DE936 | Osterholz","DE936","Osterholz"]
[null,null,"DE937 | Rotenburg (Wümme)","DE937","Rotenburg (Wümme)"]
[null,null,"DE938 | Soltau-Fallingbostel","DE938","Soltau-Fallingbostel"]
[null,null,"DE939 | Stade","DE939","Stade"]
[null,null,"DE93A | Uelzen","DE93A","Uelzen"]
[null,null,"DE93B | Verden","DE93B","Verden"]
[null,null,"DE94 | Weser-Ems","DE94","Weser-Ems"]
[null,null,"DE941 | Delmenhorst, Kreisfreie Stadt","DE941","Delmenhorst, Kreisfreie Stadt"]
[null,null,"DE942 | Emden, Kreisfreie Stadt","DE942","Emden, Kreisfreie Stadt"]
[null,null,"DE943 | Oldenburg (Oldenburg), Kreisfreie Stadt","DE943","Oldenburg (Oldenburg), Kreisfreie Stadt"]
[null,null,"DE944 | Osnabrück, Kreisfreie Stadt","DE944","Osnabrück, Kreisfreie Stadt"]
[null,null,"DE945 | Wilhelmshaven, Kreisfreie Stadt","DE945","Wilhelmshaven, Kreisfreie Stadt"]
[null,null,"DE946 | Ammerland","DE946","Ammerland"]
[null,null,"DE947 | Aurich","DE947","Aurich"]
[null,null,"DE948 | Cloppenburg","DE948","Cloppenburg"]
[null,null,"DE949 | Emsland","DE949","Emsland"]
[null,null,"DE94A | Friesland (DE)","DE94A","Friesland (DE)"]
[null,null,"DE94B | Grafschaft Bentheim","DE94B","Grafschaft Bentheim"]
[null,null,"DE94C | Leer","DE94C","Leer"]
[null,null,"DE94D | Oldenburg, Landkreis","DE94D","Oldenburg, Landkreis"]
[null,null,"DE94E | Osnabrück, Landkreis","DE94E","Osnabrück, Landkreis"]
[null,null,"DE94F | Vechta","DE94F","Vechta"]
[null,null,"DE94G | Wesermarsch","DE94G","Wesermarsch"]
[null,null,"DE94H | Wittmund","DE94H","Wittmund"]
[null,null,"DEA | NORDRHEIN-WESTFALEN","DEA","NORDRHEIN-WESTFALEN"]
[null,null,"DEA1 | Düsseldorf","DEA1","Düsseldorf"]
[null,null,"DEA11 | Düsseldorf, Kreisfreie Stadt","DEA11","Düsseldorf, Kreisfreie Stadt"]
[null,null,"DEA12 | Duisburg, Kreisfreie Stadt","DEA12","Duisburg, Kreisfreie Stadt"]
[null,null,"DEA13 | Essen, Kreisfreie Stadt","DEA13","Essen, Kreisfreie Stadt"]
[null,null,"DEA14 | Krefeld, Kreisfreie Stadt","DEA14","Krefeld, Kreisfreie Stadt"]
[null,null,"DEA15 | Mönchengladbach, Kreisfreie Stadt","DEA15","Mönchengladbach, Kreisfreie Stadt"]
[null,null,"DEA16 | Mülheim an der Ruhr,Kreisfreie Stadt","DEA16","Mülheim an der Ruhr,Kreisfreie Stadt"]
[null,null,"DEA17 | Oberhausen, Kreisfreie Stadt","DEA17","Oberhausen, Kreisfreie Stadt"]
[null,null,"DEA18 | Remscheid, Kreisfreie Stadt","DEA18","Remscheid, Kreisfreie Stadt"]
[null,null,"DEA19 | Solingen, Kreisfreie Stadt","DEA19","Solingen, Kreisfreie Stadt"]
[null,null,"DEA1A | Wuppertal, Kreisfreie Stadt","DEA1A","Wuppertal, Kreisfreie Stadt"]
[null,null,"DEA1B | Kleve","DEA1B","Kleve"]
[null,null,"DEA1C | Mettmann","DEA1C","Mettmann"]
[null,null,"DEA1D | Rhein-Kreis Neuss","DEA1D","Rhein-Kreis Neuss"]
[null,null,"DEA1E | Viersen","DEA1E","Viersen"]
[null,null,"DEA1F | Wesel","DEA1F","Wesel"]
[null,null,"DEA2 | Köln","DEA2","Köln"]
[null,null,"DEA22 | Bonn, Kreisfreie Stadt","DEA22","Bonn, Kreisfreie Stadt"]
[null,null,"DEA23 | Köln, Kreisfreie Stadt","DEA23","Köln, Kreisfreie Stadt"]
[null,null,"DEA24 | Leverkusen, Kreisfreie Stadt","DEA24","Leverkusen, Kreisfreie Stadt"]
[null,null,"DEA26 | Düren","DEA26","Düren"]
[null,null,"DEA27 | Rhein-Erft-Kreis","DEA27","Rhein-Erft-Kreis"]
[null,null,"DEA28 | Euskirchen","DEA28","Euskirchen"]
[null,null,"DEA29 | Heinsberg","DEA29","Heinsberg"]
[null,null,"DEA2A | Oberbergischer Kreis","DEA2A","Oberbergischer Kreis"]
[null,null,"DEA2B | Rheinisch-Bergischer Kreis","DEA2B","Rheinisch-Bergischer Kreis"]
[null,null,"DEA2C | Rhein-Sieg-Kreis","DEA2C","Rhein-Sieg-Kreis"]
[null,null,"DEA2D | Städteregion Aachen","DEA2D","Städteregion Aachen"]
[null,null,"DEA3 | Münster","DEA3","Münster"]
[null,null,"DEA31 | Bottrop, Kreisfreie Stadt","DEA31","Bottrop, Kreisfreie Stadt"]
[null,null,"DEA32 | Gelsenkirchen, Kreisfreie Stadt","DEA32","Gelsenkirchen, Kreisfreie Stadt"]
[null,null,"DEA33 | Münster, Kreisfreie Stadt","DEA33","Münster, Kreisfreie Stadt"]
[null,null,"DEA34 | Borken","DEA34","Borken"]
[null,null,"DEA35 | Coesfeld","DEA35","Coesfeld"]
[null,null,"DEA36 | Recklinghausen","DEA36","Recklinghausen"]
[null,null,"DEA37 | Steinfurt","DEA37","Steinfurt"]
[null,null,"DEA38 | Warendorf","DEA38","Warendorf"]
[null,null,"DEA4 | Detmold","DEA4","Detmold"]
[null,null,"DEA41 | Bielefeld, Kreisfreie Stadt","DEA41","Bielefeld, Kreisfreie Stadt"]
[null,null,"DEA42 | Gütersloh","DEA42","Gütersloh"]
[null,null,"DEA43 | Herford","DEA43","Herford"]
[null,null,"DEA44 | Höxter","DEA44","Höxter"]
[null,null,"DEA45 | Lippe","DEA45","Lippe"]
[null,null,"DEA46 | Minden-Lübbecke","DEA46","Minden-Lübbecke"]
[null,null,"DEA47 | Paderborn","DEA47","Paderborn"]
[null,null,"DEA5 | Arnsberg","DEA5","Arnsberg"]
[null,null,"DEA51 | Bochum, Kreisfreie Stadt","DEA51","Bochum, Kreisfreie Stadt"]
[null,null,"DEA52 | Dortmund, Kreisfreie Stadt","DEA52","Dortmund, Kreisfreie Stadt"]
[null,null,"DEA53 | Hagen, Kreisfreie Stadt","DEA53","Hagen, Kreisfreie Stadt"]
[null,null,"DEA54 | Hamm, Kreisfreie Stadt","DEA54","Hamm, Kreisfreie Stadt"]
[null,null,"DEA55 | Herne, Kreisfreie Stadt","DEA55","Herne, Kreisfreie Stadt"]
[null,null,"DEA56 | Ennepe-Ruhr-Kreis","DEA56","Ennepe-Ruhr-Kreis"]
[null,null,"DEA57 | Hochsauerlandkreis","DEA57","Hochsauerlandkreis"]
[null,null,"DEA58 | Märkischer Kreis","DEA58","Märkischer Kreis"]
[null,null,"DEA59 | Olpe","DEA59","Olpe"]
[null,null,"DEA5A | Siegen-Wittgenstein","DEA5A","Siegen-Wittgenstein"]
[null,null,"DEA5B | Soest","DEA5B","Soest"]
[null,null,"DEA5C | Unna","DEA5C","Unna"]
[null,null,"DEB | RHEINLAND-PFALZ","DEB","RHEINLAND-PFALZ"]
[null,null,"DEB1 | Koblenz","DEB1","Koblenz"]
[null,null,"DEB11 | Koblenz, Kreisfreie Stadt","DEB11","Koblenz, Kreisfreie Stadt"]
[null,null,"DEB12 | Ahrweiler","DEB12","Ahrweiler"]
[null,null,"DEB13 | Altenkirchen (Westerwald)","DEB13","Altenkirchen (Westerwald)"]
[null,null,"DEB14 | Bad Kreuznach","DEB14","Bad Kreuznach"]
[null,null,"DEB15 | Birkenfeld","DEB15","Birkenfeld"]
[null,null,"DEB17 | Mayen-Koblenz","DEB17","Mayen-Koblenz"]
[null,null,"DEB18 | Neuwied","DEB18","Neuwied"]
[null,null,"DEB1A | Rhein-Lahn-Kreis","DEB1A","Rhein-Lahn-Kreis"]
[null,null,"DEB1B | Westerwaldkreis","DEB1B","Westerwaldkreis"]
[null,null,"DEB1C | Cochem-Zell (NUTS 2016)","DEB1C","Cochem-Zell (NUTS 2016)"]
[null,null,"DEB1D | Rhein-Hunsrück-Kreis (NUTS 2016)","DEB1D","Rhein-Hunsrück-Kreis (NUTS 2016)"]
[null,null,"DEB2 | Trier","DEB2","Trier"]
[null,null,"DEB21 | Trier, Kreisfreie Stadt","DEB21","Trier, Kreisfreie Stadt"]
[null,null,"DEB22 | Bernkastel-Wittlich","DEB22","Bernkastel-Wittlich"]
[null,null,"DEB23 | Eifelkreis Bitburg-Prüm","DEB23","Eifelkreis Bitburg-Prüm"]
[null,null,"DEB24 | Vulkaneifel","DEB24","Vulkaneifel"]
[null,null,"DEB25 | Trier-Saarburg","DEB25","Trier-Saarburg"]
[null,null,"DEB3 | Rheinhessen-Pfalz","DEB3","Rheinhessen-Pfalz"]
[null,null,"DEB31 | Frankenthal (Pfalz), Kreisfreie Stadt","DEB31","Frankenthal (Pfalz), Kreisfreie Stadt"]
[null,null,"DEB32 | Kaiserslautern, Kreisfreie Stadt","DEB32","Kaiserslautern, Kreisfreie Stadt"]
[null,null,"DEB33 | Landau in der Pfalz, Kreisfreie Stadt","DEB33","Landau in der Pfalz, Kreisfreie Stadt"]
[null,null,"DEB34 | Ludwigshafen am Rhein, Kreisfreie Stadt","DEB34","Ludwigshafen am Rhein, Kreisfreie Stadt"]
[null,null,"DEB35 | Mainz, Kreisfreie Stadt","DEB35","Mainz, Kreisfreie Stadt"]
[null,null,"DEB36 | Neustadt an der Weinstraße, Kreisfreie Stadt","DEB36","Neustadt an der Weinstraße, Kreisfreie Stadt"]
[null,null,"DEB37 | Pirmasens, Kreisfreie Stadt","DEB37","Pirmasens, Kreisfreie Stadt"]
[null,null,"DEB38 | Speyer, Kreisfreie Stadt","DEB38","Speyer, Kreisfreie Stadt"]
[null,null,"DEB39 | Worms, Kreisfreie Stadt","DEB39","Worms, Kreisfreie Stadt"]
[null,null,"DEB3A | Zweibrücken, Kreisfreie Stadt","DEB3A","Zweibrücken, Kreisfreie Stadt"]
[null,null,"DEB3B | Alzey-Worms","DEB3B","Alzey-Worms"]
[null,null,"DEB3C | Bad Dürkheim","DEB3C","Bad Dürkheim"]
[null,null,"DEB3D | Donnersbergkreis","DEB3D","Donnersbergkreis"]
[null,null,"DEB3E | Germersheim","DEB3E","Germersheim"]
[null,null,"DEB3F | Kaiserslautern, Landkreis","DEB3F","Kaiserslautern, Landkreis"]
[null,null,"DEB3G | Kusel","DEB3G","Kusel"]
[null,null,"DEB3H | Südliche Weinstraße","DEB3H","Südliche Weinstraße"]
[null,null,"DEB3I | Rhein-Pfalz-Kreis","DEB3I","Rhein-Pfalz-Kreis"]
[null,null,"DEB3J | Mainz-Bingen","DEB3J","Mainz-Bingen"]
[null,null,"DEB3K | Südwestpfalz","DEB3K","Südwestpfalz"]
[null,null,"DEC | SAARLAND (NUTS level 1)","DEC","SAARLAND (NUTS level 1)"]
[null,null,"DEC0 | Saarland (NUTS level 2)","DEC0","Saarland (NUTS level 2)"]
[null,null,"DEC01 | Regionalverband Saarbrücken","DEC01","Regionalverband Saarbrücken"]
[null,null,"DEC02 | Merzig-Wadern","DEC02","Merzig-Wadern"]
[null,null,"DEC03 | Neunkirchen","DEC03","Neunkirchen"]
[null,null,"DEC04 | Saarlouis","DEC04","Saarlouis"]
[null,null,"DEC05 | Saarpfalz-Kreis","DEC05","Saarpfalz-Kreis"]
[null,null,"DEC06 | St. Wendel","DEC06","St. Wendel"]
[null,null,"DED | SACHSEN","DED","SACHSEN"]
[null,null,"DED2 | Dresden","DED2","Dresden"]
[null,null,"DED21 | Dresden, Kreisfreie Stadt","DED21","Dresden, Kreisfreie Stadt"]
[null,null,"DED2C | Bautzen (NUTS 2010-2013)","DED2C","Bautzen (NUTS 2010-2013)"]
[null,null,"DED2D | Görlitz","DED2D","Görlitz"]
[null,null,"DED2E | Meißen (NUTS 2010-2013)","DED2E","Meißen (NUTS 2010-2013)"]
[null,null,"DED2F | Sächsische Schweiz-Osterzgebirge","DED2F","Sächsische Schweiz-Osterzgebirge"]
[null,null,"DED4 | Chemnitz (NUTS 2010-2013)","DED4","Chemnitz (NUTS 2010-2013)"]
[null,null,"DED41 | Chemnitz, Kreisfreie Stadt (NUTS 2010-2013)","DED41","Chemnitz, Kreisfreie Stadt (NUTS 2010-2013)"]
[null,null,"DED42 | Erzgebirgskreis","DED42","Erzgebirgskreis"]
[null,null,"DED43 | Mittelsachsen","DED43","Mittelsachsen"]
[null,null,"DED44 | Vogtlandkreis (NUTS 2010-2013)","DED44","Vogtlandkreis (NUTS 2010-2013)"]
[null,null,"DED45 | Zwickau","DED45","Zwickau"]
[null,null,"DED5 | Leipzig (NUTS 2010-2013)","DED5","Leipzig (NUTS 2010-2013)"]
[null,null,"DED51 | Leipzig, Kreisfreie Stadt (NUTS 2010-2013)","DED51","Leipzig, Kreisfreie Stadt (NUTS 2010-2013)"]
[null,null,"DED52 | Leipzig (NUTS level 3)","DED52","Leipzig (NUTS level 3)"]
[null,null,"DED53 | Nordsachsen","DED53","Nordsachsen"]
[null,null,"DEE | SACHSEN-ANHALT (NUTS level 1)","DEE","SACHSEN-ANHALT (NUTS level 1)"]
[null,null,"DEE0 | Sachsen-Anhalt (NUTS level 2)","DEE0","Sachsen-Anhalt (NUTS level 2)"]
[null,null,"DEE01 | Dessau-Roßlau, Kreisfreie Stadt","DEE01","Dessau-Roßlau, Kreisfreie Stadt"]
[null,null,"DEE02 | Halle (Saale), Kreisfreie Stadt","DEE02","Halle (Saale), Kreisfreie Stadt"]
[null,null,"DEE03 | Magdeburg, Kreisfreie Stadt","DEE03","Magdeburg, Kreisfreie Stadt"]
[null,null,"DEE04 | Altmarkkreis Salzwedel","DEE04","Altmarkkreis Salzwedel"]
[null,null,"DEE05 | Anhalt-Bitterfeld","DEE05","Anhalt-Bitterfeld"]
[null,null,"DEE06 | Jerichower Land","DEE06","Jerichower Land"]
[null,null,"DEE07 | Börde","DEE07","Börde"]
[null,null,"DEE08 | Burgenland (DE)","DEE08","Burgenland (DE)"]
[null,null,"DEE09 | Harz","DEE09","Harz"]
[null,null,"DEE0A | Mansfeld-Südharz","DEE0A","Mansfeld-Südharz"]
[null,null,"DEE0B | Saalekreis","DEE0B","Saalekreis"]
[null,null,"DEE0C | Salzlandkreis","DEE0C","Salzlandkreis"]
[null,null,"DEE0D | Stendal","DEE0D","Stendal"]
[null,null,"DEE0E | Wittenberg","DEE0E","Wittenberg"]
[null,null,"DEF | SCHLESWIG-HOLSTEIN (NUTS level 1)","DEF","SCHLESWIG-HOLSTEIN (NUTS level 1)"]
[null,null,"DEF0 | Schleswig-Holstein (NUTS level 2)","DEF0","Schleswig-Holstein (NUTS level 2)"]
[null,null,"DEF01 | Flensburg, Kreisfreie Stadt","DEF01","Flensburg, Kreisfreie Stadt"]
[null,null,"DEF02 | Kiel, Kreisfreie Stadt","DEF02","Kiel, Kreisfreie Stadt"]
[null,null,"DEF03 | Lübeck, Kreisfreie Stadt","DEF03","Lübeck, Kreisfreie Stadt"]
[null,null,"DEF04 | Neumünster, Kreisfreie Stadt","DEF04","Neumünster, Kreisfreie Stadt"]
[null,null,"DEF05 | Dithmarschen","DEF05","Dithmarschen"]
[null,null,"DEF06 | Herzogtum Lauenburg","DEF06","Herzogtum Lauenburg"]
[null,null,"DEF07 | Nordfriesland","DEF07","Nordfriesland"]
[null,null,"DEF08 | Ostholstein","DEF08","Ostholstein"]
[null,null,"DEF09 | Pinneberg","DEF09","Pinneberg"]
[null,null,"DEF0A | Plön","DEF0A","Plön"]
[null,null,"DEF0B | Rendsburg-Eckernförde","DEF0B","Rendsburg-Eckernförde"]
[null,null,"DEF0C | Schleswig-Flensburg","DEF0C","Schleswig-Flensburg"]
[null,null,"DEF0D | Segeberg","DEF0D","Segeberg"]
[null,null,"DEF0E | Steinburg","DEF0E","Steinburg"]
[null,null,"DEF0F | Stormarn","DEF0F","Stormarn"]
[null,null,"DEG | THÜRINGEN (NUTS level 1)","DEG","THÜRINGEN (NUTS level 1)"]
[null,null,"DEG0 | Thüringen (NUTS level 2)","DEG0","Thüringen (NUTS level 2)"]
[null,null,"DEG01 | Erfurt, Kreisfreie Stadt","DEG01","Erfurt, Kreisfreie Stadt"]
[null,null,"DEG02 | Gera, Kreisfreie Stadt","DEG02","Gera, Kreisfreie Stadt"]
[null,null,"DEG03 | Jena, Kreisfreie Stadt","DEG03","Jena, Kreisfreie Stadt"]
[null,null,"DEG05 | Weimar, Kreisfreie Stadt","DEG05","Weimar, Kreisfreie Stadt"]
[null,null,"DEG06 | Eichsfeld","DEG06","Eichsfeld"]
[null,null,"DEG07 | Nordhausen","DEG07","Nordhausen"]
[null,null,"DEG09 | Unstrut-Hainich-Kreis","DEG09","Unstrut-Hainich-Kreis"]
[null,null,"DEG0A | Kyffhäuserkreis","DEG0A","Kyffhäuserkreis"]
[null,null,"DEG0C | Gotha","DEG0C","Gotha"]
[null,null,"DEG0D | Sömmerda","DEG0D","Sömmerda"]
[null,null,"DEG0E | Hildburghausen","DEG0E","Hildburghausen"]
[null,null,"DEG0G | Weimarer Land","DEG0G","Weimarer Land"]
[null,null,"DEG0J | Saale-Holzland-Kreis","DEG0J","Saale-Holzland-Kreis"]
[null,null,"DEG0K | Saale-Orla-Kreis","DEG0K","Saale-Orla-Kreis"]
[null,null,"DEG0L | Greiz","DEG0L","Greiz"]
[null,null,"DEG0M | Altenburger Land","DEG0M","Altenburger Land"]
[null,null,"DEG0Q | Schmalkalden-Meiningen (NUTS 2024)","DEG0Q","Schmalkalden-Meiningen (NUTS 2024)"]
[null,null,"DEG0R | Wartburgkreis (NUTS 2024)","DEG0R","Wartburgkreis (NUTS 2024)"]
[null,null,"DEG0S | Suhl, Kreisfreie Stadt (NUTS 2024)","DEG0S","Suhl, Kreisfreie Stadt (NUTS 2024)"]
[null,null,"DEG0T | Ilm-Kreis (NUTS 2024)","DEG0T","Ilm-Kreis (NUTS 2024)"]
[null,null,"DEG0U | Saalfeld-Rudolstadt (NUTS 2024)","DEG0U","Saalfeld-Rudolstadt (NUTS 2024)"]
[null,null,"DEG0V | Sonneberg (NUTS 2024)","DEG0V","Sonneberg (NUTS 2024)"]
[null,null,"DEZ | Extra-Regio NUTS 1 (DEUTSCHLAND )","DEZ","Extra-Regio NUTS 1 (DEUTSCHLAND )"]
[null,null,"DEZZ | Extra-Regio NUTS 2 (DEUTSCHLAND )","DEZZ","Extra-Regio NUTS 2 (DEUTSCHLAND )"]
[null,null,"DEZZZ | Extra-Regio NUTS 3 (DEUTSCHLAND )","DEZZZ","Extra-Regio NUTS 3 (DEUTSCHLAND )"]
[null,null,"DK | DENMARK","DK","DENMARK"]
[null,null,"DK0 | DANMARK (NUTS level 1)","DK0","DANMARK (NUTS level 1)"]
[null,null,"DK01 | Hovedstaden","DK01","Hovedstaden"]
[null,null,"DK011 | Byen København","DK011","Byen København"]
[null,null,"DK012 | Københavns omegn","DK012","Københavns omegn"]
[null,null,"DK013 | Nordsjælland","DK013","Nordsjælland"]
[null,null,"DK014 | Bornholm","DK014","Bornholm"]
[null,null,"DK02 | Sjælland","DK02","Sjælland"]
[null,null,"DK021 | Østsjælland","DK021","Østsjælland"]
[null,null,"DK022 | Vest- og Sydsjælland","DK022","Vest- og Sydsjælland"]
[null,null,"DK03 | Syddanmark","DK03","Syddanmark"]
[null,null,"DK031 | Fyn","DK031","Fyn"]
[null,null,"DK032 | Sydjylland","DK032","Sydjylland"]
[null,null,"DK04 | Midtjylland","DK04","Midtjylland"]
[null,null,"DK041 | Vestjylland","DK041","Vestjylland"]
[null,null,"DK042 | Østjylland","DK042","Østjylland"]
[null,null,"DK05 | Nordjylland (NUTS level 2)","DK05","Nordjylland (NUTS level 2)"]
[null,null,"DK050 | Nordjylland (NUTS level 3)","DK050","Nordjylland (NUTS level 3)"]
[null,null,"DKZ | Extra-Regio NUTS 1 (DANMARK)","DKZ","Extra-Regio NUTS 1 (DANMARK)"]
[null,null,"DKZZ | Extra-Regio NUTS 2 (DANMARK)","DKZZ","Extra-Regio NUTS 2 (DANMARK)"]
[null,null,"DKZZZ | Extra-Regio NUTS 3 (DANMARK)","DKZZZ","Extra-Regio NUTS 3 (DANMARK)"]
[null,null,"EE | ESTONIA","EE","ESTONIA"]
[null,null,"EE0 | EESTI (NUTS level 1)","EE0","EESTI (NUTS level 1)"]
[null,null,"EE00 | Eesti (NUTS level 2)","EE00","Eesti (NUTS level 2)"]
[null,null,"EE001 | Põhja-Eesti","EE001","Põhja-Eesti"]
[null,null,"EE004 | Lääne-Eesti","EE004","Lääne-Eesti"]
[null,null,"EE008 | Lõuna-Eesti","EE008","Lõuna-Eesti"]
[null,null,"EE009 | Kesk-Eesti (NUTS 2021)","EE009","Kesk-Eesti (NUTS 2021)"]
[null,null,"EE00A | Kirde-Eesti (NUTS 2021)","EE00A","Kirde-Eesti (NUTS 2021)"]
[null,null,"EEZ | Extra-Regio NUTS 1 (EESTI)","EEZ","Extra-Regio NUTS 1 (EESTI)"]
[null,null,"EEZZ | Extra-Regio NUTS 2 (EESTI)","EEZZ","Extra-Regio NUTS 2 (EESTI)"]
[null,null,"EEZZZ | Extra-Regio NUTS 3 (EESTI)","EEZZZ","Extra-Regio NUTS 3 (EESTI)"]
[null,null,"EL | GREECE(NUTS 2010-2013)","EL","GREECE(NUTS 2010-2013)"]
[null,null,"EL3 | ATTIKΗ (NUTS 2010-2013)","EL3","ATTIKΗ (NUTS 2010-2013)"]
[null,null,"EL30 | Attiki (NUTS 2010-2013 level 2)","EL30","Attiki (NUTS 2010-2013 level 2)"]
[null,null,"EL301 | Βόρειος Τομέας Αθηνών","EL301","Βόρειος Τομέας Αθηνών"]
[null,null,"EL302 | Δυτικός Τομέας Αθηνών","EL302","Δυτικός Τομέας Αθηνών"]
[null,null,"EL303 | Κεντρικός Τομέας Αθηνών","EL303","Κεντρικός Τομέας Αθηνών"]
[null,null,"EL304 | Νότιος Τομέας Αθηνών","EL304","Νότιος Τομέας Αθηνών"]
[null,null,"EL305 | Ανατολική Αττική","EL305","Ανατολική Αττική"]
[null,null,"EL306 | Δυτική Αττική","EL306","Δυτική Αττική"]
[null,null,"EL307 | Πειραιάς, Νήσοι","EL307","Πειραιάς, Νήσοι"]
[null,null,"EL4 | NΗΣΙΑ ΑΙΓΑΙΟΥ, KΡΗΤΗ (NUTS 2010-2013)","EL4","NΗΣΙΑ ΑΙΓΑΙΟΥ, KΡΗΤΗ (NUTS 2010-2013)"]
[null,null,"EL41 | Βόρειο Αιγαίο (NUTS 2010-2013)","EL41","Βόρειο Αιγαίο (NUTS 2010-2013)"]
[null,null,"EL411 | Λέσβος (NUTS 2010-2013)","EL411","Λέσβος (NUTS 2010-2013)"]
[null,null,"EL412 | Σάμος (NUTS 2010-2013)","EL412","Σάμος (NUTS 2010-2013)"]
[null,null,"EL413 | Χίος (NUTS 2010-2013)","EL413","Χίος (NUTS 2010-2013)"]
[null,null,"EL42 | Νότιο Αιγαίο (NUTS 2010-2013)","EL42","Νότιο Αιγαίο (NUTS 2010-2013)"]
[null,null,"EL421 | Κάλυμνος, Κάρπαθος – Ηρωική Νήσος Κάσος, Κως, Ρόδος (NUTS 2010-2013)","EL421","Κάλυμνος, Κάρπαθος – Ηρωική Νήσος Κάσος, Κως, Ρόδος (NUTS 2010-2013)"]
[null,null,"EL422 | Κυκλάδες (NUTS 2010-2013)","EL422","Κυκλάδες (NUTS 2010-2013)"]
[null,null,"EL43 | Κρήτη (NUTS 2010-2013)","EL43","Κρήτη (NUTS 2010-2013)"]
[null,null,"EL431 | Ηράκλειο (NUTS 2010-2013)","EL431","Ηράκλειο (NUTS 2010-2013)"]
[null,null,"EL432 | Λασίθι (NUTS 2010-2013)","EL432","Λασίθι (NUTS 2010-2013)"]
[null,null,"EL433 | Ρεθύμνη (NUTS 2010-2013)","EL433","Ρεθύμνη (NUTS 2010-2013)"]
[null,null,"EL434 | Χανιά (NUTS 2010-2013)","EL434","Χανιά (NUTS 2010-2013)"]
[null,null,"EL5 | ΒΟΡΕΙΑ ΕΛΛΑΔΑ (NUTS 2013)","EL5","ΒΟΡΕΙΑ ΕΛΛΑΔΑ (NUTS 2013)"]
[null,null,"EL51 | Aνατολική Μακεδονία, Θράκη (NUTS 2013)","EL51","Aνατολική Μακεδονία, Θράκη (NUTS 2013)"]
[null,null,"EL511 | Έβρος (NUTS 2013)","EL511","Έβρος (NUTS 2013)"]
[null,null,"EL512 | Ξάνθη (NUTS 2013)","EL512","Ξάνθη (NUTS 2013)"]
[null,null,"EL513 | Ροδόπη (NUTS 2013)","EL513","Ροδόπη (NUTS 2013)"]
[null,null,"EL514 | Δράμα (NUTS 2013)","EL514","Δράμα (NUTS 2013)"]
[null,null,"EL515 | Θάσος, Καβάλα","EL515","Θάσος, Καβάλα"]
[null,null,"EL52 | Κεντρική Μακεδονία (NUTS 2013)","EL52","Κεντρική Μακεδονία (NUTS 2013)"]
[null,null,"EL521 | Ημαθία (NUTS 2013)","EL521","Ημαθία (NUTS 2013)"]
[null,null,"EL522 | Θεσσαλονίκη (NUTS 2013)","EL522","Θεσσαλονίκη (NUTS 2013)"]
[null,null,"EL523 | Κιλκίς (NUTS 2013)","EL523","Κιλκίς (NUTS 2013)"]
[null,null,"EL524 | Πέλλα (NUTS 2013)","EL524","Πέλλα (NUTS 2013)"]
[null,null,"EL525 | Πιερία (NUTS 2013)","EL525","Πιερία (NUTS 2013)"]
[null,null,"EL526 | Σέρρες (NUTS 2013)","EL526","Σέρρες (NUTS 2013)"]
[null,null,"EL527 | Χαλκιδική (NUTS 2013)","EL527","Χαλκιδική (NUTS 2013)"]
[null,null,"EL53 | Δυτική Μακεδονία (NUTS 2013)","EL53","Δυτική Μακεδονία (NUTS 2013)"]
[null,null,"EL531 | Γρεβενά, Κοζάνη","EL531","Γρεβενά, Κοζάνη"]
[null,null,"EL532 | Καστοριά (NUTS 2013)","EL532","Καστοριά (NUTS 2013)"]
[null,null,"EL533 | Φλώρινα (NUTS 2013)","EL533","Φλώρινα (NUTS 2013)"]
[null,null,"EL54 | Ήπειρος (NUTS 2013)","EL54","Ήπειρος (NUTS 2013)"]
[null,null,"EL541 | Άρτα, Πρέβεζα","EL541","Άρτα, Πρέβεζα"]
[null,null,"EL542 | Θεσπρωτία (NUTS 2013)","EL542","Θεσπρωτία (NUTS 2013)"]
[null,null,"EL543 | Ιωάννινα (NUTS 2013)","EL543","Ιωάννινα (NUTS 2013)"]
[null,null,"EL6 | ΚΕΝΤΡΙΚΗ ΕΛΛΑΔΑ (NUTS 2013)","EL6","ΚΕΝΤΡΙΚΗ ΕΛΛΑΔΑ (NUTS 2013)"]
[null,null,"EL61 | Θεσσαλία (NUTS 2013)","EL61","Θεσσαλία (NUTS 2013)"]
[null,null,"EL611 | Καρδίτσα, Τρίκαλα","EL611","Καρδίτσα, Τρίκαλα"]
[null,null,"EL612 | Λάρισα (NUTS 2013)","EL612","Λάρισα (NUTS 2013)"]
[null,null,"EL613 | Μαγνησία, Σποράδες","EL613","Μαγνησία, Σποράδες"]
[null,null,"EL62 | Ιόνια Νησιά (NUTS 2013)","EL62","Ιόνια Νησιά (NUTS 2013)"]
[null,null,"EL621 | Ζάκυνθος (NUTS 2013)","EL621","Ζάκυνθος (NUTS 2013)"]
[null,null,"EL622 | Κέρκυρα (NUTS 2013)","EL622","Κέρκυρα (NUTS 2013)"]
[null,null,"EL623 | Ιθάκη, Κεφαλληνία","EL623","Ιθάκη, Κεφαλληνία"]
[null,null,"EL624 | Λευκάδα (NUTS 2013)","EL624","Λευκάδα (NUTS 2013)"]
[null,null,"EL63 | Δυτική Ελλάδα (NUTS 2013)","EL63","Δυτική Ελλάδα (NUTS 2013)"]
[null,null,"EL631 | Αιτωλοακαρνανία (NUTS 2013)","EL631","Αιτωλοακαρνανία (NUTS 2013)"]
[null,null,"EL632 | Αχαΐα (NUTS 2013)","EL632","Αχαΐα (NUTS 2013)"]
[null,null,"EL633 | Ηλεία (NUTS 2013)","EL633","Ηλεία (NUTS 2013)"]
[null,null,"EL64 | Στερεά Ελλάδα (NUTS 2013)","EL64","Στερεά Ελλάδα (NUTS 2013)"]
[null,null,"EL641 | Βοιωτία (NUTS 2013)","EL641","Βοιωτία (NUTS 2013)"]
[null,null,"EL642 | Εύβοια (NUTS 2013)","EL642","Εύβοια (NUTS 2013)"]
[null,null,"EL643 | Ευρυτανία (NUTS 2013)","EL643","Ευρυτανία (NUTS 2013)"]
[null,null,"EL644 | Φθιώτιδα (NUTS 2013)","EL644","Φθιώτιδα (NUTS 2013)"]
[null,null,"EL645 | Φωκίδα (NUTS 2013)","EL645","Φωκίδα (NUTS 2013)"]
[null,null,"EL65 | Πελοπόννησος (NUTS 2013)","EL65","Πελοπόννησος (NUTS 2013)"]
[null,null,"EL651 | Αργολίδα, Αρκαδία","EL651","Αργολίδα, Αρκαδία"]
[null,null,"EL652 | Κορινθία (NUTS 2013)","EL652","Κορινθία (NUTS 2013)"]
[null,null,"EL653 | Λακωνία, Μεσσηνία","EL653","Λακωνία, Μεσσηνία"]
[null,null,"ELZ | EXTRA-REGIO NUTS 1 (NUTS 2010-2013)","ELZ","EXTRA-REGIO NUTS 1 (NUTS 2010-2013)"]
[null,null,"ELZZ | Extra-Regio NUTS 2 (NUTS 2010-2013)","ELZZ","Extra-Regio NUTS 2 (NUTS 2010-2013)"]
[null,null,"ELZZZ | Extra-Regio NUTS 3 (NUTS 2010-2013)","ELZZZ","Extra-Regio NUTS 3 (NUTS 2010-2013)"]
[null,null,"ES | SPAIN","ES","SPAIN"]
[null,null,"ES1 | NOROESTE","ES1","NOROESTE"]
[null,null,"ES11 | Galicia","ES11","Galicia"]
[null,null,"ES111 | A Coruña","ES111","A Coruña"]
[null,null,"ES112 | Lugo","ES112","Lugo"]
[null,null,"ES113 | Ourense","ES113","Ourense"]
[null,null,"ES114 | Pontevedra","ES114","Pontevedra"]
[null,null,"ES12 | Principado de Asturias","ES12","Principado de Asturias"]
[null,null,"ES120 | Asturias","ES120","Asturias"]
[null,null,"ES13 | Cantabria (NUTS level 2)","ES13","Cantabria (NUTS level 2)"]
[null,null,"ES130 | Cantabria (NUTS level 3)","ES130","Cantabria (NUTS level 3)"]
[null,null,"ES2 | NORESTE","ES2","NORESTE"]
[null,null,"ES21 | País Vasco","ES21","País Vasco"]
[null,null,"ES211 | Álava","ES211","Álava"]
[null,null,"ES212 | Guipúzcoa","ES212","Guipúzcoa"]
[null,null,"ES213 | Vizcaya","ES213","Vizcaya"]
[null,null,"ES22 | Comunidad Foral de Navarra","ES22","Comunidad Foral de Navarra"]
[null,null,"ES220 | Navarra","ES220","Navarra"]
[null,null,"ES23 | La Rioja (NUTS level 2)","ES23","La Rioja (NUTS level 2)"]
[null,null,"ES230 | La Rioja (NUTS level 3)","ES230","La Rioja (NUTS level 3)"]
[null,null,"ES24 | Aragón","ES24","Aragón"]
[null,null,"ES241 | Huesca","ES241","Huesca"]
[null,null,"ES242 | Teruel (NUTS level 3)","ES242","Teruel (NUTS level 3)"]
[null,null,"ES243 | Zaragoza (NUTS level 3)","ES243","Zaragoza (NUTS level 3)"]
[null,null,"ES3 | COMUNIDAD DE MADRID (NUTS level 1)","ES3","COMUNIDAD DE MADRID (NUTS level 1)"]
[null,null,"ES30 | Comunidad de Madrid (NUTS level 2)","ES30","Comunidad de Madrid (NUTS level 2)"]
[null,null,"ES300 | Madrid (NUTS level 3)","ES300","Madrid (NUTS level 3)"]
[null,null,"ES4 | CENTRO (ES)","ES4","CENTRO (ES)"]
[null,null,"ES41 | Castilla y León","ES41","Castilla y León"]
[null,null,"ES411 | Ávila","ES411","Ávila"]
[null,null,"ES412 | Burgos (NUTS level 3)","ES412","Burgos (NUTS level 3)"]
[null,null,"ES413 | León","ES413","León"]
[null,null,"ES414 | Palencia (NUTS level 3)","ES414","Palencia (NUTS level 3)"]
[null,null,"ES415 | Salamanca (NUTS level 3)","ES415","Salamanca (NUTS level 3)"]
[null,null,"ES416 | Segovia (NUTS level 3)","ES416","Segovia (NUTS level 3)"]
[null,null,"ES417 | Soria","ES417","Soria"]
[null,null,"ES418 | Valladolid (NUTS level 3)","ES418","Valladolid (NUTS level 3)"]
[null,null,"ES419 | Zamora (NUTS level 3)","ES419","Zamora (NUTS level 3)"]
[null,null,"ES42 | Castilla-La Mancha","ES42","Castilla-La Mancha"]
[null,null,"ES421 | Albacete","ES421","Albacete"]
[null,null,"ES422 | Ciudad Real","ES422","Ciudad Real"]
[null,null,"ES423 | Cuenca (NUTS level 3)","ES423","Cuenca (NUTS level 3)"]
[null,null,"ES424 | Guadalajara (NUTS level 3)","ES424","Guadalajara (NUTS level 3)"]
[null,null,"ES425 | Toledo (NUTS level 3)","ES425","Toledo (NUTS level 3)"]
[null,null,"ES43 | Extremadura","ES43","Extremadura"]
[null,null,"ES431 | Badajoz","ES431","Badajoz"]
[null,null,"ES432 | Cáceres","ES432","Cáceres"]
[null,null,"ES5 | ESTE","ES5","ESTE"]
[null,null,"ES51 | Cataluña","ES51","Cataluña"]
[null,null,"ES511 | Barcelona (NUTS level 3)","ES511","Barcelona (NUTS level 3)"]
[null,null,"ES512 | Girona","ES512","Girona"]
[null,null,"ES513 | Lleida","ES513","Lleida"]
[null,null,"ES514 | Tarragona","ES514","Tarragona"]
[null,null,"ES52 | Comunitat Valenciana","ES52","Comunitat Valenciana"]
[null,null,"ES521 | Alicante / Alacant","ES521","Alicante / Alacant"]
[null,null,"ES522 | Castellón / Castelló","ES522","Castellón / Castelló"]
[null,null,"ES523 | Valencia / València","ES523","Valencia / València"]
[null,null,"ES53 | Illes Balears","ES53","Illes Balears"]
[null,null,"ES531 | Eivissa y Formentera","ES531","Eivissa y Formentera"]
[null,null,"ES532 | Mallorca","ES532","Mallorca"]
[null,null,"ES533 | Menorca","ES533","Menorca"]
[null,null,"ES6 | SUR (NUTS level 1)","ES6","SUR (NUTS level 1)"]
[null,null,"ES61 | Andalucía","ES61","Andalucía"]
[null,null,"ES611 | Almería","ES611","Almería"]
[null,null,"ES612 | Cádiz","ES612","Cádiz"]
[null,null,"ES613 | Córdoba","ES613","Córdoba"]
[null,null,"ES614 | Granada (NUTS level 3)","ES614","Granada (NUTS level 3)"]
[null,null,"ES615 | Huelva","ES615","Huelva"]
[null,null,"ES616 | Jaén","ES616","Jaén"]
[null,null,"ES617 | Málaga","ES617","Málaga"]
[null,null,"ES618 | Sevilla (NUTS level 3)","ES618","Sevilla (NUTS level 3)"]
[null,null,"ES62 | Región de Murcia","ES62","Región de Murcia"]
[null,null,"ES620 | Murcia","ES620","Murcia"]
[null,null,"ES63 | Ciudad de Ceuta","ES63","Ciudad de Ceuta"]
[null,null,"ES630 | Ceuta","ES630","Ceuta"]
[null,null,"ES64 | Ciudad de Melilla","ES64","Ciudad de Melilla"]
[null,null,"ES640 | Melilla","ES640","Melilla"]
[null,null,"ES7 | CANARIAS (NUTS level 1)","ES7","CANARIAS (NUTS level 1)"]
[null,null,"ES70 | Canarias (NUTS level 2)","ES70","Canarias (NUTS level 2)"]
[null,null,"ES703 | El Hierro","ES703","El Hierro"]
[null,null,"ES704 | Fuerteventura","ES704","Fuerteventura"]
[null,null,"ES705 | Gran Canaria","ES705","Gran Canaria"]
[null,null,"ES706 | La Gomera (NUTS level 3)","ES706","La Gomera (NUTS level 3)"]
[null,null,"ES707 | La Palma (NUTS level 3)","ES707","La Palma (NUTS level 3)"]
[null,null,"ES708 | Lanzarote","ES708","Lanzarote"]
[null,null,"ES709 | Tenerife (NUTS level 3)","ES709","Tenerife (NUTS level 3)"]
[null,null,"ESZ | Extra-Regio NUTS 1 (ESPAÑA )","ESZ","Extra-Regio NUTS 1 (ESPAÑA )"]
[null,null,"ESZZ | Extra-Regio NUTS 2 (ESPAÑA )","ESZZ","Extra-Regio NUTS 2 (ESPAÑA )"]
[null,null,"ESZZZ | Extra-Regio NUTS 3 (ESPAÑA )","ESZZZ","Extra-Regio NUTS 3 (ESPAÑA )"]
[null,null,"FI | FINLAND","FI","FINLAND"]
[null,null,"FI1 | MANNER-SUOMI","FI1","MANNER-SUOMI"]
[null,null,"FI19 | Länsi-Suomi","FI19","Länsi-Suomi"]
[null,null,"FI196 | Satakunta","FI196","Satakunta"]
[null,null,"FI198 | Keski-Suomi (NUTS 2024)","FI198","Keski-Suomi (NUTS 2024)"]
[null,null,"FI199 | Etelä-Pohjanmaa (NUTS 2024)","FI199","Etelä-Pohjanmaa (NUTS 2024)"]
[null,null,"FI19A | Pohjanmaa (NUTS 2024)","FI19A","Pohjanmaa (NUTS 2024)"]
[null,null,"FI19B | Pirkanmaa (NUTS 2024)","FI19B","Pirkanmaa (NUTS 2024)"]
[null,null,"FI1B | Helsinki-Uusimaa (NUTS level 2)","FI1B","Helsinki-Uusimaa (NUTS level 2)"]
[null,null,"FI1B1 | Helsinki-Uusimaa (NUTS level 3)","FI1B1","Helsinki-Uusimaa (NUTS level 3)"]
[null,null,"FI1C | Etelä-Suomi (NUTS 2010-2013)","FI1C","Etelä-Suomi (NUTS 2010-2013)"]
[null,null,"FI1C1 | Varsinais-Suomi (NUTS 2010-2013)","FI1C1","Varsinais-Suomi (NUTS 2010-2013)"]
[null,null,"FI1C2 | Kanta-Häme (NUTS 2010-2013)","FI1C2","Kanta-Häme (NUTS 2010-2013)"]
[null,null,"FI1C5 | Etelä-Karjala (NUTS 2010-2013)","FI1C5","Etelä-Karjala (NUTS 2010-2013)"]
[null,null,"FI1C6 | Päijät-Häme (NUTS 2024)","FI1C6","Päijät-Häme (NUTS 2024)"]
[null,null,"FI1C7 | Kymenlaakso (NUTS 2024)","FI1C7","Kymenlaakso (NUTS 2024)"]
[null,null,"FI1D | Pohjois- ja Itä-Suomi","FI1D","Pohjois- ja Itä-Suomi"]
[null,null,"FI1D5 | Keski-Pohjanmaa (NUTS 2010-2013)","FI1D5","Keski-Pohjanmaa (NUTS 2010-2013)"]
[null,null,"FI1D7 | Lappi (NUTS 2010-2013)","FI1D7","Lappi (NUTS 2010-2013)"]
[null,null,"FI1D8 | Kainuu (NUTS 2016)","FI1D8","Kainuu (NUTS 2016)"]
[null,null,"FI1D9 | Pohjois-Pohjanmaa (NUTS 2016)","FI1D9","Pohjois-Pohjanmaa (NUTS 2016)"]
[null,null,"FI1DA | Etelä-Savo (NUTS 2024)","FI1DA","Etelä-Savo (NUTS 2024)"]
[null,null,"FI1DB | Pohjois-Savo (NUTS 2024)","FI1DB","Pohjois-Savo (NUTS 2024)"]
[null,null,"FI1DC | Pohjois-Karjala (NUTS 2024)","FI1DC","Pohjois-Karjala (NUTS 2024)"]
[null,null,"FI2 | ÅLAND (NUTS level 1)","FI2","ÅLAND (NUTS level 1)"]
[null,null,"FI20 | Åland (NUTS level 2)","FI20","Åland (NUTS level 2)"]
[null,null,"FI200 | Åland (NUTS level 3)","FI200","Åland (NUTS level 3)"]
[null,null,"FIZ | Extra-Regio NUTS 1 (SUOMI / FINLAND)","FIZ","Extra-Regio NUTS 1 (SUOMI / FINLAND)"]
[null,null,"FIZZ | Extra-Regio NUTS 2 (SUOMI / FINLAND)","FIZZ","Extra-Regio NUTS 2 (SUOMI / FINLAND)"]
[null,null,"FIZZZ | Extra-Regio NUTS 3 (SUOMI / FINLAND)","FIZZZ","Extra-Regio NUTS 3 (SUOMI / FINLAND)"]
[null,null,"FR | FRANCE","FR","FRANCE"]
[null,null,"FR1 | ÎLE DE FRANCE (NUTS level 1)","FR1","ÎLE DE FRANCE (NUTS level 1)"]
[null,null,"FR10 | Île de France (NUTS level 2)","FR10","Île de France (NUTS level 2)"]
[null,null,"FR101 | Paris","FR101","Paris"]
[null,null,"FR102 | Seine-et-Marne","FR102","Seine-et-Marne"]
[null,null,"FR103 | Yvelines","FR103","Yvelines"]
[null,null,"FR104 | Essonne","FR104","Essonne"]
[null,null,"FR105 | Hauts-de-Seine","FR105","Hauts-de-Seine"]
[null,null,"FR106 | Seine-Saint-Denis","FR106","Seine-Saint-Denis"]
[null,null,"FR107 | Val-de-Marne","FR107","Val-de-Marne"]
[null,null,"FR108 | Val-d'Oise","FR108","Val-d'Oise"]
[null,null,"FRB | CENTRE - VAL DE LOIRE NUTS 1 (NUTS 2016)","FRB","CENTRE - VAL DE LOIRE NUTS 1 (NUTS 2016)"]
[null,null,"FRB0 | Centre - Val de Loire (NUTS 2016)","FRB0","Centre - Val de Loire (NUTS 2016)"]
[null,null,"FRB01 | Cher (NUTS 2016)","FRB01","Cher (NUTS 2016)"]
[null,null,"FRB02 | Eure-et-Loir (NUTS 2016)","FRB02","Eure-et-Loir (NUTS 2016)"]
[null,null,"FRB03 | Indre (NUTS 2016)","FRB03","Indre (NUTS 2016)"]
[null,null,"FRB04 | Indre-et-Loire (NUTS 2016)","FRB04","Indre-et-Loire (NUTS 2016)"]
[null,null,"FRB05 | Loir-et-Cher (NUTS 2016)","FRB05","Loir-et-Cher (NUTS 2016)"]
[null,null,"FRB06 | Loiret (NUTS 2016)","FRB06","Loiret (NUTS 2016)"]
[null,null,"FRC | BOURGOGNE-FRANCHE-COMTÉ (NUTS 2016)","FRC","BOURGOGNE-FRANCHE-COMTÉ (NUTS 2016)"]
[null,null,"FRC1 | Bourgogne (NUTS 2016)","FRC1","Bourgogne (NUTS 2016)"]
[null,null,"FRC11 | Côte-d’Or (NUTS 2016)","FRC11","Côte-d’Or (NUTS 2016)"]
[null,null,"FRC12 | Nièvre (NUTS 2016)","FRC12","Nièvre (NUTS 2016)"]
[null,null,"FRC13 | Saône-et-Loire (NUTS 2016)","FRC13","Saône-et-Loire (NUTS 2016)"]
[null,null,"FRC14 | Yonne (NUTS 2016)","FRC14","Yonne (NUTS 2016)"]
[null,null,"FRC2 | Franche-Comté (NUTS 2016)","FRC2","Franche-Comté (NUTS 2016)"]
[null,null,"FRC21 | Doubs (NUTS 2016)","FRC21","Doubs (NUTS 2016)"]
[null,null,"FRC22 | Jura (NUTS 2016)","FRC22","Jura (NUTS 2016)"]
[null,null,"FRC23 | Haute-Saône (NUTS 2016)","FRC23","Haute-Saône (NUTS 2016)"]
[null,null,"FRC24 | Territoire de Belfort (NUTS 2016)","FRC24","Territoire de Belfort (NUTS 2016)"]
[null,null,"FRD | NORMANDIE (NUTS 2016)","FRD","NORMANDIE (NUTS 2016)"]
[null,null,"FRD1 | Basse-Normandie (NUTS 2016)","FRD1","Basse-Normandie (NUTS 2016)"]
[null,null,"FRD11 | Calvados (NUTS 2016)","FRD11","Calvados (NUTS 2016)"]
[null,null,"FRD12 | Manche  (NUTS 2016)","FRD12","Manche  (NUTS 2016)"]
[null,null,"FRD13 | Orne (NUTS 2016)","FRD13","Orne (NUTS 2016)"]
[null,null,"FRD2 | Haute-Normandie (NUTS 2016)","FRD2","Haute-Normandie (NUTS 2016)"]
[null,null,"FRD21 | Eure (NUTS 2016)","FRD21","Eure (NUTS 2016)"]
[null,null,"FRD22 | Seine-Maritime (NUTS 2016)","FRD22","Seine-Maritime (NUTS 2016)"]
[null,null,"FRE | HAUTS-DE-FRANCE (NUTS 2016)","FRE","HAUTS-DE-FRANCE (NUTS 2016)"]
[null,null,"FRE1 | Nord-Pas de Calais (NUTS 2016)","FRE1","Nord-Pas de Calais (NUTS 2016)"]
[null,null,"FRE11 | Nord (NUTS 2016)","FRE11","Nord (NUTS 2016)"]
[null,null,"FRE12 | Pas-de-Calais (NUTS 2016)","FRE12","Pas-de-Calais (NUTS 2016)"]
[null,null,"FRE2 | Picardie (NUTS 2016)","FRE2","Picardie (NUTS 2016)"]
[null,null,"FRE21 | Aisne (NUTS 2016)","FRE21","Aisne (NUTS 2016)"]
[null,null,"FRE22 | Oise (NUTS 2016)","FRE22","Oise (NUTS 2016)"]
[null,null,"FRE23 | Somme (NUTS 2016)","FRE23","Somme (NUTS 2016)"]
[null,null,"FRF | GRAND EST (NUTS 2016)","FRF","GRAND EST (NUTS 2016)"]
[null,null,"FRF1 | Alsace (NUTS 2016)","FRF1","Alsace (NUTS 2016)"]
[null,null,"FRF11 | Bas-Rhin (NUTS 2016)","FRF11","Bas-Rhin (NUTS 2016)"]
[null,null,"FRF12 | Haut-Rhin (NUTS 2016)","FRF12","Haut-Rhin (NUTS 2016)"]
[null,null,"FRF2 | Champagne-Ardenne (NUTS 2016)","FRF2","Champagne-Ardenne (NUTS 2016)"]
[null,null,"FRF21 | Ardennes (NUTS 2016)","FRF21","Ardennes (NUTS 2016)"]
[null,null,"FRF22 | Aube (NUTS 2016)","FRF22","Aube (NUTS 2016)"]
[null,null,"FRF23 | Marne (NUTS 2016)","FRF23","Marne (NUTS 2016)"]
[null,null,"FRF24 | Haute-Marne (NUTS 2016)","FRF24","Haute-Marne (NUTS 2016)"]
[null,null,"FRF3 | Lorraine (NUTS 2016)","FRF3","Lorraine (NUTS 2016)"]
[null,null,"FRF31 | Meurthe-et-Moselle (NUTS 2016)","FRF31","Meurthe-et-Moselle (NUTS 2016)"]
[null,null,"FRF32 | Meuse (NUTS 2016)","FRF32","Meuse (NUTS 2016)"]
[null,null,"FRF33 | Moselle (NUTS 2016)","FRF33","Moselle (NUTS 2016)"]
[null,null,"FRF34 | Vosges (NUTS 2016)","FRF34","Vosges (NUTS 2016)"]
[null,null,"FRG | PAYS DE LA LOIRE NUTS 1 (NUTS 2016)","FRG","PAYS DE LA LOIRE NUTS 1 (NUTS 2016)"]
[null,null,"FRG0 | Pays de la Loire NUTS 2 (NUTS 2016)","FRG0","Pays de la Loire NUTS 2 (NUTS 2016)"]
[null,null,"FRG01 | Loire-Atlantique (NUTS 2016)","FRG01","Loire-Atlantique (NUTS 2016)"]
[null,null,"FRG02 | Maine-et-Loire (NUTS 2016)","FRG02","Maine-et-Loire (NUTS 2016)"]
[null,null,"FRG03 | Mayenne (NUTS 2016)","FRG03","Mayenne (NUTS 2016)"]
[null,null,"FRG04 | Sarthe (NUTS 2016)","FRG04","Sarthe (NUTS 2016)"]
[null,null,"FRG05 | Vendée (NUTS 2016)","FRG05","Vendée (NUTS 2016)"]
[null,null,"FRH | BRETAGNE NUTS 1 (NUTS 2016)","FRH","BRETAGNE NUTS 1 (NUTS 2016)"]
[null,null,"FRH0 | Bretagne NUTS 2 (NUTS 2016)","FRH0","Bretagne NUTS 2 (NUTS 2016)"]
[null,null,"FRH01 | Côtes-d’Armor (NUTS 2016)","FRH01","Côtes-d’Armor (NUTS 2016)"]
[null,null,"FRH02 | Finistère (NUTS 2016)","FRH02","Finistère (NUTS 2016)"]
[null,null,"FRH03 | Ille-et-Vilaine (NUTS 2016)","FRH03","Ille-et-Vilaine (NUTS 2016)"]
[null,null,"FRH04 | Morbihan (NUTS 2016)","FRH04","Morbihan (NUTS 2016)"]
[null,null,"FRI | NOUVELLE-AQUITAINE (NUTS 2016)","FRI","NOUVELLE-AQUITAINE (NUTS 2016)"]
[null,null,"FRI1 | Aquitaine (NUTS 2016)","FRI1","Aquitaine (NUTS 2016)"]
[null,null,"FRI11 | Dordogne (NUTS 2016)","FRI11","Dordogne (NUTS 2016)"]
[null,null,"FRI12 | Gironde (NUTS 2016)","FRI12","Gironde (NUTS 2016)"]
[null,null,"FRI13 | Landes (NUTS 2016)","FRI13","Landes (NUTS 2016)"]
[null,null,"FRI14 | Lot-et-Garonne (NUTS 2016)","FRI14","Lot-et-Garonne (NUTS 2016)"]
[null,null,"FRI15 | Pyrénées-Atlantiques (NUTS 2016)","FRI15","Pyrénées-Atlantiques (NUTS 2016)"]
[null,null,"FRI2 | Limousin (NUTS 2016)","FRI2","Limousin (NUTS 2016)"]
[null,null,"FRI21 | Corrèze (NUTS 2016)","FRI21","Corrèze (NUTS 2016)"]
[null,null,"FRI22 | Creuse (NUTS 2016)","FRI22","Creuse (NUTS 2016)"]
[null,null,"FRI23 | Haute-Vienne (NUTS 2016)","FRI23","Haute-Vienne (NUTS 2016)"]
[null,null,"FRI3 | Poitou-Charentes (NUTS 2016)","FRI3","Poitou-Charentes (NUTS 2016)"]
[null,null,"FRI31 | Charente (NUTS 2016)","FRI31","Charente (NUTS 2016)"]
[null,null,"FRI32 | Charente-Maritime (NUTS 2016)","FRI32","Charente-Maritime (NUTS 2016)"]
[null,null,"FRI33 | Deux-Sèvres (NUTS 2016)","FRI33","Deux-Sèvres (NUTS 2016)"]
[null,null,"FRI34 | Vienne (NUTS 2016)","FRI34","Vienne (NUTS 2016)"]
[null,null,"FRJ | OCCITANIE (NUTS 2016)","FRJ","OCCITANIE (NUTS 2016)"]
[null,null,"FRJ1 | Languedoc-Roussillon (NUTS 2016)","FRJ1","Languedoc-Roussillon (NUTS 2016)"]
[null,null,"FRJ11 | Aude (NUTS 2016)","FRJ11","Aude (NUTS 2016)"]
[null,null,"FRJ12 | Gard (NUTS 2016)","FRJ12","Gard (NUTS 2016)"]
[null,null,"FRJ13 | Hérault (NUTS 2016)","FRJ13","Hérault (NUTS 2016)"]
[null,null,"FRJ14 | Lozère (NUTS 2016)","FRJ14","Lozère (NUTS 2016)"]
[null,null,"FRJ15 | Pyrénées-Orientales (NUTS 2016)","FRJ15","Pyrénées-Orientales (NUTS 2016)"]
[null,null,"FRJ2 | Midi-Pyrénées (NUTS 2016)","FRJ2","Midi-Pyrénées (NUTS 2016)"]
[null,null,"FRJ21 | Ariège (NUTS 2016)","FRJ21","Ariège (NUTS 2016)"]
[null,null,"FRJ22 | Aveyron (NUTS 2016)","FRJ22","Aveyron (NUTS 2016)"]
[null,null,"FRJ23 | Haute-Garonne (NUTS 2016)","FRJ23","Haute-Garonne (NUTS 2016)"]
[null,null,"FRJ24 | Gers (NUTS 2016)","FRJ24","Gers (NUTS 2016)"]
[null,null,"FRJ25 | Lot (NUTS 2016)","FRJ25","Lot (NUTS 2016)"]
[null,null,"FRJ26 | Hautes-Pyrénées (NUTS 2016)","FRJ26","Hautes-Pyrénées (NUTS 2016)"]
[null,null,"FRJ27 | Tarn (NUTS 2016)","FRJ27","Tarn (NUTS 2016)"]
[null,null,"FRJ28 | Tarn-et-Garonne (NUTS 2016)","FRJ28","Tarn-et-Garonne (NUTS 2016)"]
[null,null,"FRK | AUVERGNE-RHÔNE-ALPES (NUTS 2016)","FRK","AUVERGNE-RHÔNE-ALPES (NUTS 2016)"]
[null,null,"FRK1 | Auvergne (NUTS 2016)","FRK1","Auvergne (NUTS 2016)"]
[null,null,"FRK11 | Allier (NUTS 2016)","FRK11","Allier (NUTS 2016)"]
[null,null,"FRK12 | Cantal (NUTS 2016)","FRK12","Cantal (NUTS 2016)"]
[null,null,"FRK13 | Haute-Loire (NUTS 2016)","FRK13","Haute-Loire (NUTS 2016)"]
[null,null,"FRK14 | Puy-de-Dôme (NUTS 2016)","FRK14","Puy-de-Dôme (NUTS 2016)"]
[null,null,"FRK2 | Rhône-Alpes (NUTS 2016)","FRK2","Rhône-Alpes (NUTS 2016)"]
[null,null,"FRK21 | Ain (NUTS 2016)","FRK21","Ain (NUTS 2016)"]
[null,null,"FRK22 | Ardèche (NUTS 2016)","FRK22","Ardèche (NUTS 2016)"]
[null,null,"FRK23 | Drôme (NUTS 2016)","FRK23","Drôme (NUTS 2016)"]
[null,null,"FRK24 | Isère (NUTS 2016)","FRK24","Isère (NUTS 2016)"]
[null,null,"FRK25 | Loire (NUTS 2016)","FRK25","Loire (NUTS 2016)"]
[null,null,"FRK26 | Rhône (NUTS 2016)","FRK26","Rhône (NUTS 2016)"]
[null,null,"FRK27 | Savoie (NUTS 2016)","FRK27","Savoie (NUTS 2016)"]
[null,null,"FRK28 | Haute-Savoie (NUTS 2016)","FRK28","Haute-Savoie (NUTS 2016)"]
[null,null,"FRL | PROVENCE-ALPES-CÔTE D’AZUR NUTS 1 (NUTS 2016)","FRL","PROVENCE-ALPES-CÔTE D’AZUR NUTS 1 (NUTS 2016)"]
[null,null,"FRL0 | Provence-Alpes-Côte d’Azur NUTS 2 (NUTS 2016)","FRL0","Provence-Alpes-Côte d’Azur NUTS 2 (NUTS 2016)"]
[null,null,"FRL01 | Alpes-de-Haute-Provence (NUTS 2016)","FRL01","Alpes-de-Haute-Provence (NUTS 2016)"]
[null,null,"FRL02 | Hautes-Alpes (NUTS 2016)","FRL02","Hautes-Alpes (NUTS 2016)"]
[null,null,"FRL03 | Alpes-Maritimes (NUTS 2016)","FRL03","Alpes-Maritimes (NUTS 2016)"]
[null,null,"FRL04 | Bouches-du-Rhône (NUTS 2016)","FRL04","Bouches-du-Rhône (NUTS 2016)"]
[null,null,"FRL05 | Var (NUTS 2016)","FRL05","Var (NUTS 2016)"]
[null,null,"FRL06 | Vaucluse (NUTS 2016)","FRL06","Vaucluse (NUTS 2016)"]
[null,null,"FRM | CORSE NUTS 1 (NUTS 2016)","FRM","CORSE NUTS 1 (NUTS 2016)"]
[null,null,"FRM0 | Corse NUTS 2 (NUTS 2016)","FRM0","Corse NUTS 2 (NUTS 2016)"]
[null,null,"FRM01 | Corse-du-Sud (NUTS 2016)","FRM01","Corse-du-Sud (NUTS 2016)"]
[null,null,"FRM02 | Haute-Corse (NUTS 2016)","FRM02","Haute-Corse (NUTS 2016)"]
[null,null,"FRY | RUP FR - RÉGIONS ULTRAPÉRIPHÉRIQUES FRANÇAISES (NUTS 2016)","FRY","RUP FR - RÉGIONS ULTRAPÉRIPHÉRIQUES FRANÇAISES (NUTS 2016)"]
[null,null,"FRY1 | Guadeloupe NUTS 2 (NUTS 2016)","FRY1","Guadeloupe NUTS 2 (NUTS 2016)"]
[null,null,"FRY10 | Guadeloupe (NUTS 2016)","FRY10","Guadeloupe (NUTS 2016)"]
[null,null,"FRY2 | Martinique NUTS 2 (NUTS 2016)","FRY2","Martinique NUTS 2 (NUTS 2016)"]
[null,null,"FRY20 | Martinique (NUTS 2016)","FRY20","Martinique (NUTS 2016)"]
[null,null,"FRY3 | Guyane NUTS 2 (NUTS 2016)","FRY3","Guyane NUTS 2 (NUTS 2016)"]
[null,null,"FRY30 | Guyane (NUTS 2016)","FRY30","Guyane (NUTS 2016)"]
[null,null,"FRY4 | La Réunion NUTS 2 (NUTS 2016)","FRY4","La Réunion NUTS 2 (NUTS 2016)"]
[null,null,"FRY40 | La Réunion (NUTS 2016)","FRY40","La Réunion (NUTS 2016)"]
[null,null,"FRY5 | Mayotte NUTS 2 (NUTS 2016)","FRY5","Mayotte NUTS 2 (NUTS 2016)"]
[null,null,"FRY50 | Mayotte (NUTS 2016)","FRY50","Mayotte (NUTS 2016)"]
[null,null,"FRZ | Extra-Regio NUTS 1 (FRANCE)","FRZ","Extra-Regio NUTS 1 (FRANCE)"]
[null,null,"FRZZ | Extra-Regio NUTS 2 (FRANCE)","FRZZ","Extra-Regio NUTS 2 (FRANCE)"]
[null,null,"FRZZZ | Extra-Regio NUTS 3 (FRANCE)","FRZZZ","Extra-Regio NUTS 3 (FRANCE)"]
[null,null,"HR | CROATIA","HR","CROATIA"]
[null,null,"HR0 | Hrvatska (NUTS level 1)","HR0","Hrvatska (NUTS level 1)"]
[null,null,"HR02 | Panonska Hrvatska","HR02","Panonska Hrvatska"]
[null,null,"HR021 | Bjelovarsko-bilogorska županija (NUTS 2006 2021)","HR021","Bjelovarsko-bilogorska županija (NUTS 2006 2021)"]
[null,null,"HR022 | Virovitičko-podravska županija (NUTS 2006 2021)","HR022","Virovitičko-podravska županija (NUTS 2006 2021)"]
[null,null,"HR023 | Požeško-slavonska županija (NUTS 2006 2021)","HR023","Požeško-slavonska županija (NUTS 2006 2021)"]
[null,null,"HR024 | Brodsko-posavska županija (NUTS 2006 2021)","HR024","Brodsko-posavska županija (NUTS 2006 2021)"]
[null,null,"HR025 | Osječko-baranjska županija (NUTS 2006 2021)","HR025","Osječko-baranjska županija (NUTS 2006 2021)"]
[null,null,"HR026 | Vukovarsko-srijemska županija (NUTS 2006 2021)","HR026","Vukovarsko-srijemska županija (NUTS 2006 2021)"]
[null,null,"HR027 | Karlovačka županija (NUTS 2006 2021)","HR027","Karlovačka županija (NUTS 2006 2021)"]
[null,null,"HR028 | Sisačko-moslavačka županija (NUTS 2006)","HR028","Sisačko-moslavačka županija (NUTS 2006)"]
[null,null,"HR03 | Jadranska Hrvatska","HR03","Jadranska Hrvatska"]
[null,null,"HR031 | Primorsko-goranska županija","HR031","Primorsko-goranska županija"]
[null,null,"HR032 | Ličko-senjska županija","HR032","Ličko-senjska županija"]
[null,null,"HR033 | Zadarska županija","HR033","Zadarska županija"]
[null,null,"HR034 | Šibensko-kninska županija","HR034","Šibensko-kninska županija"]
[null,null,"HR035 | Splitsko-dalmatinska županija","HR035","Splitsko-dalmatinska županija"]
[null,null,"HR036 | Istarska županija","HR036","Istarska županija"]
[null,null,"HR037 | Dubrovačko-neretvanska županija","HR037","Dubrovačko-neretvanska županija"]
[null,null,"HR05 | Grad Zagreb (NUTS 2021 level 2)","HR05","Grad Zagreb (NUTS 2021 level 2)"]
[null,null,"HR050 | Grad Zagreb (NUTS 2021 level 3)","HR050","Grad Zagreb (NUTS 2021 level 3)"]
[null,null,"HR06 | Sjeverna Hrvatska (NUTS 2021)","HR06","Sjeverna Hrvatska (NUTS 2021)"]
[null,null,"HR061 | Međimurska županija (NUTS 2021)","HR061","Međimurska županija (NUTS 2021)"]
[null,null,"HR062 | Varaždinska županija (NUTS 2021)","HR062","Varaždinska županija (NUTS 2021)"]
[null,null,"HR063 | Koprivničko-križevačka županija (NUTS 2021)","HR063","Koprivničko-križevačka županija (NUTS 2021)"]
[null,null,"HR064 | Krapinsko-zagorska županija (NUTS 2021)","HR064","Krapinsko-zagorska županija (NUTS 2021)"]
[null,null,"HR065 | Zagrebačka županija (NUTS 2021)","HR065","Zagrebačka županija (NUTS 2021)"]
[null,null,"HRZ | Extra-Regio NUTS 1 (HRVATSKA)","HRZ","Extra-Regio NUTS 1 (HRVATSKA)"]
[null,null,"HRZZ | Extra-Regio NUTS 2 (HRVATSKA)","HRZZ","Extra-Regio NUTS 2 (HRVATSKA)"]
[null,null,"HRZZZ | Extra-Regio NUTS 3 (HRVATSKA)","HRZZZ","Extra-Regio NUTS 3 (HRVATSKA)"]
[null,null,"HU | HUNGARY","HU","HUNGARY"]
[null,null,"HU1 | KÖZÉP-MAGYARORSZÁG (NUTS level 1)","HU1","KÖZÉP-MAGYARORSZÁG (NUTS level 1)"]
[null,null,"HU11 | Budapest NUTS2 (NUTS 2016)","HU11","Budapest NUTS2 (NUTS 2016)"]
[null,null,"HU110 | Budapest NUTS 3 (NUTS 2016)","HU110","Budapest NUTS 3 (NUTS 2016)"]
[null,null,"HU12 | Pest NUTS 2 (NUTS 2016)","HU12","Pest NUTS 2 (NUTS 2016)"]
[null,null,"HU120 | Pest NUTS 3 (NUTS 2016)","HU120","Pest NUTS 3 (NUTS 2016)"]
[null,null,"HU2 | DUNÁNTÚL","HU2","DUNÁNTÚL"]
[null,null,"HU21 | Közép-Dunántúl","HU21","Közép-Dunántúl"]
[null,null,"HU211 | Fejér","HU211","Fejér"]
[null,null,"HU212 | Komárom-Esztergom","HU212","Komárom-Esztergom"]
[null,null,"HU213 | Veszprém","HU213","Veszprém"]
[null,null,"HU22 | Nyugat-Dunántúl","HU22","Nyugat-Dunántúl"]
[null,null,"HU221 | Győr-Moson-Sopron","HU221","Győr-Moson-Sopron"]
[null,null,"HU222 | Vas","HU222","Vas"]
[null,null,"HU223 | Zala","HU223","Zala"]
[null,null,"HU23 | Dél-Dunántúl","HU23","Dél-Dunántúl"]
[null,null,"HU231 | Baranya","HU231","Baranya"]
[null,null,"HU232 | Somogy","HU232","Somogy"]
[null,null,"HU233 | Tolna","HU233","Tolna"]
[null,null,"HU3 | ALFÖLD ÉS ÉSZAK","HU3","ALFÖLD ÉS ÉSZAK"]
[null,null,"HU31 | Észak-Magyarország","HU31","Észak-Magyarország"]
[null,null,"HU311 | Borsod-Abaúj-Zemplén","HU311","Borsod-Abaúj-Zemplén"]
[null,null,"HU312 | Heves","HU312","Heves"]
[null,null,"HU313 | Nógrád","HU313","Nógrád"]
[null,null,"HU32 | Észak-Alföld","HU32","Észak-Alföld"]
[null,null,"HU321 | Hajdú-Bihar","HU321","Hajdú-Bihar"]
[null,null,"HU322 | Jász-Nagykun-Szolnok","HU322","Jász-Nagykun-Szolnok"]
[null,null,"HU323 | Szabolcs-Szatmár-Bereg","HU323","Szabolcs-Szatmár-Bereg"]
[null,null,"HU33 | Dél-Alföld","HU33","Dél-Alföld"]
[null,null,"HU331 | Bács-Kiskun","HU331","Bács-Kiskun"]
[null,null,"HU332 | Békés","HU332","Békés"]
[null,null,"HU333 | Csongrád-Csanád","HU333","Csongrád-Csanád"]
[null,null,"HUZ | Extra-Regio NUTS 1 (MAGYARORSZÁG)","HUZ","Extra-Regio NUTS 1 (MAGYARORSZÁG)"]
[null,null,"HUZZ | Extra-Regio NUTS 2 (MAGYARORSZÁG)","HUZZ","Extra-Regio NUTS 2 (MAGYARORSZÁG)"]
[null,null,"HUZZZ | Extra-Regio NUTS 3 (MAGYARORSZÁG)","HUZZZ","Extra-Regio NUTS 3 (MAGYARORSZÁG)"]
[null,null,"IE | IRELAND","IE","IRELAND"]
[null,null,"IE0 | IRELAND (NUTS level 1)","IE0","IRELAND (NUTS level 1)"]
[null,null,"IE04 | Northern and Western","IE04","Northern and Western"]
[null,null,"IE041 | Border (NUTS 2016)","IE041","Border (NUTS 2016)"]
[null,null,"IE042 | West (NUTS 2016)","IE042","West (NUTS 2016)"]
[null,null,"IE05 | Southern  Southern (NUTS 2016)","IE05","Southern  Southern (NUTS 2016)"]
[null,null,"IE051 | Mid-West (IE 2016)","IE051","Mid-West (IE 2016)"]
[null,null,"IE052 | South-East (IE 2016)","IE052","South-East (IE 2016)"]
[null,null,"IE053 | South-West (IE 2016)","IE053","South-West (IE 2016)"]
[null,null,"IE06 | Eastern and Midland","IE06","Eastern and Midland"]
[null,null,"IE061 | Dublin (NUTS 2016)","IE061","Dublin (NUTS 2016)"]
[null,null,"IE062 | Mid-East (IE 2016)","IE062","Mid-East (IE 2016)"]
[null,null,"IE063 | Midland  (IE 2016)","IE063","Midland  (IE 2016)"]
[null,null,"IEZ | Extra-Regio NUTS 1 (ÉIRE / IRELAND)","IEZ","Extra-Regio NUTS 1 (ÉIRE / IRELAND)"]
[null,null,"IEZZ | Extra-Regio NUTS 2 (ÉIRE / IRELAND)","IEZZ","Extra-Regio NUTS 2 (ÉIRE / IRELAND)"]
[null,null,"IEZZZ | Extra-Regio NUTS 3 (ÉIRE / IRELAND)","IEZZZ","Extra-Regio NUTS 3 (ÉIRE / IRELAND)"]
[null,null,"IS | ISLAND","IS","ISLAND"]
[null,null,"IS0 | Island (NUTS level 1)","IS0","Island (NUTS level 1)"]
[null,null,"IS00 | Island (NUTS level 2)","IS00","Island (NUTS level 2)"]
[null,null,"IS001 | Höfuðborgarsvæði","IS001","Höfuðborgarsvæði"]
[null,null,"IS002 | Landsbyggð","IS002","Landsbyggð"]
[null,null,"ISZ | Extra-Regio level 1 (ISLAND)","ISZ","Extra-Regio level 1 (ISLAND)"]
[null,null,"ISZZ | Extra-Regio level 2 (ISLAND)","ISZZ","Extra-Regio level 2 (ISLAND)"]
[null,null,"ISZZZ | Extra-Regio level 3 (ISLAND)","ISZZZ","Extra-Regio level 3 (ISLAND)"]
[null,null,"IT | ITALIA","IT","ITALIA"]
[null,null,"ITC | NORD-OVEST","ITC","NORD-OVEST"]
[null,null,"ITC1 | Piemonte","ITC1","Piemonte"]
[null,null,"ITC11 | Torino","ITC11","Torino"]
[null,null,"ITC12 | Vercelli","ITC12","Vercelli"]
[null,null,"ITC13 | Biella","ITC13","Biella"]
[null,null,"ITC14 | Verbano-Cusio-Ossola","ITC14","Verbano-Cusio-Ossola"]
[null,null,"ITC15 | Novara","ITC15","Novara"]
[null,null,"ITC16 | Cuneo","ITC16","Cuneo"]
[null,null,"ITC17 | Asti","ITC17","Asti"]
[null,null,"ITC18 | Alessandria","ITC18","Alessandria"]
[null,null,"ITC2 | Valle d'Aosta/Vallée d'Aoste (NUTS level 2)","ITC2","Valle d'Aosta/Vallée d'Aoste (NUTS level 2)"]
[null,null,"ITC20 | Valle d'Aosta/Vallée d'Aoste (NUTS level 3)","ITC20","Valle d'Aosta/Vallée d'Aoste (NUTS level 3)"]
[null,null,"ITC3 | Liguria","ITC3","Liguria"]
[null,null,"ITC31 | Imperia","ITC31","Imperia"]
[null,null,"ITC32 | Savona","ITC32","Savona"]
[null,null,"ITC33 | Genova (NUTS level 3)","ITC33","Genova (NUTS level 3)"]
[null,null,"ITC34 | La Spezia","ITC34","La Spezia"]
[null,null,"ITC4 | Lombardia","ITC4","Lombardia"]
[null,null,"ITC41 | Varese","ITC41","Varese"]
[null,null,"ITC42 | Como","ITC42","Como"]
[null,null,"ITC43 | Lecco","ITC43","Lecco"]
[null,null,"ITC44 | Sondrio","ITC44","Sondrio"]
[null,null,"ITC46 | Bergamo","ITC46","Bergamo"]
[null,null,"ITC47 | Brescia","ITC47","Brescia"]
[null,null,"ITC48 | Pavia","ITC48","Pavia"]
[null,null,"ITC49 | Lodi","ITC49","Lodi"]
[null,null,"ITC4A | Cremona","ITC4A","Cremona"]
[null,null,"ITC4B | Mantova","ITC4B","Mantova"]
[null,null,"ITC4C | Milano (NUTS 2010-2013)","ITC4C","Milano (NUTS 2010-2013)"]
[null,null,"ITC4D | Monza e della Brianza","ITC4D","Monza e della Brianza"]
[null,null,"ITF | SUD (NUTS level 1)","ITF","SUD (NUTS level 1)"]
[null,null,"ITF1 | Abruzzo","ITF1","Abruzzo"]
[null,null,"ITF11 | L'Aquila","ITF11","L'Aquila"]
[null,null,"ITF12 | Teramo","ITF12","Teramo"]
[null,null,"ITF13 | Pescara","ITF13","Pescara"]
[null,null,"ITF14 | Chieti","ITF14","Chieti"]
[null,null,"ITF2 | Molise","ITF2","Molise"]
[null,null,"ITF21 | Isernia","ITF21","Isernia"]
[null,null,"ITF22 | Campobasso","ITF22","Campobasso"]
[null,null,"ITF3 | Campania","ITF3","Campania"]
[null,null,"ITF31 | Caserta","ITF31","Caserta"]
[null,null,"ITF32 | Benevento","ITF32","Benevento"]
[null,null,"ITF33 | Napoli","ITF33","Napoli"]
[null,null,"ITF34 | Avellino","ITF34","Avellino"]
[null,null,"ITF35 | Salerno","ITF35","Salerno"]
[null,null,"ITF4 | Puglia","ITF4","Puglia"]
[null,null,"ITF43 | Taranto","ITF43","Taranto"]
[null,null,"ITF44 | Brindisi","ITF44","Brindisi"]
[null,null,"ITF45 | Lecce","ITF45","Lecce"]
[null,null,"ITF46 | Foggia (NUTS 2010-2013)","ITF46","Foggia (NUTS 2010-2013)"]
[null,null,"ITF47 | Bari (NUTS 2010-2013)","ITF47","Bari (NUTS 2010-2013)"]
[null,null,"ITF48 | Barletta-Andria-Trani","ITF48","Barletta-Andria-Trani"]
[null,null,"ITF5 | Basilicata","ITF5","Basilicata"]
[null,null,"ITF51 | Potenza","ITF51","Potenza"]
[null,null,"ITF52 | Matera","ITF52","Matera"]
[null,null,"ITF6 | Calabria","ITF6","Calabria"]
[null,null,"ITF61 | Cosenza","ITF61","Cosenza"]
[null,null,"ITF62 | Crotone","ITF62","Crotone"]
[null,null,"ITF63 | Catanzaro","ITF63","Catanzaro"]
[null,null,"ITF64 | Vibo Valentia","ITF64","Vibo Valentia"]
[null,null,"ITF65 | Reggio Calabria","ITF65","Reggio Calabria"]
[null,null,"ITG | ISOLE","ITG","ISOLE"]
[null,null,"ITG1 | Sicilia","ITG1","Sicilia"]
[null,null,"ITG11 | Trapani","ITG11","Trapani"]
[null,null,"ITG12 | Palermo (NUTS level 3)","ITG12","Palermo (NUTS level 3)"]
[null,null,"ITG13 | Messina","ITG13","Messina"]
[null,null,"ITG14 | Agrigento","ITG14","Agrigento"]
[null,null,"ITG15 | Caltanissetta","ITG15","Caltanissetta"]
[null,null,"ITG16 | Enna","ITG16","Enna"]
[null,null,"ITG17 | Catania","ITG17","Catania"]
[null,null,"ITG18 | Ragusa","ITG18","Ragusa"]
[null,null,"ITG19 | Siracusa","ITG19","Siracusa"]
[null,null,"ITG2 | Sardegna","ITG2","Sardegna"]
[null,null,"ITG2D | Sassari (NUTS 2021)","ITG2D","Sassari (NUTS 2021)"]
[null,null,"ITG2E | Nuoro (NUTS 2021)","ITG2E","Nuoro (NUTS 2021)"]
[null,null,"ITG2F | Cagliari (NUTS 2021)","ITG2F","Cagliari (NUTS 2021)"]
[null,null,"ITG2G | Oristano (NUTS 2021)","ITG2G","Oristano (NUTS 2021)"]
[null,null,"ITG2H | Sud Sardegna","ITG2H","Sud Sardegna"]
[null,null,"ITH | NORD-EST (NUTS 2010-2013)","ITH","NORD-EST (NUTS 2010-2013)"]
[null,null,"ITH1 | Provincia Autonoma di Bolzano/Bozen (NUTS 2010-2013)","ITH1","Provincia Autonoma di Bolzano/Bozen (NUTS 2010-2013)"]
[null,null,"ITH10 | Bolzano-Bozen (NUTS 2010-2013)","ITH10","Bolzano-Bozen (NUTS 2010-2013)"]
[null,null,"ITH2 | Provincia Autonoma di Trento (NUTS 2010-2013)","ITH2","Provincia Autonoma di Trento (NUTS 2010-2013)"]
[null,null,"ITH20 | Trento (NUTS 2010-2013)","ITH20","Trento (NUTS 2010-2013)"]
[null,null,"ITH3 | Veneto (NUTS 2010-2013)","ITH3","Veneto (NUTS 2010-2013)"]
[null,null,"ITH31 | Verona (NUTS 2010-2013)","ITH31","Verona (NUTS 2010-2013)"]
[null,null,"ITH32 | Vicenza (NUTS 2010-2013)","ITH32","Vicenza (NUTS 2010-2013)"]
[null,null,"ITH33 | Belluno (NUTS 2010-2013)","ITH33","Belluno (NUTS 2010-2013)"]
[null,null,"ITH34 | Treviso (NUTS 2010-2013)","ITH34","Treviso (NUTS 2010-2013)"]
[null,null,"ITH35 | Venezia (NUTS 2010-2013)","ITH35","Venezia (NUTS 2010-2013)"]
[null,null,"ITH36 | Padova (NUTS 2010-2013)","ITH36","Padova (NUTS 2010-2013)"]
[null,null,"ITH37 | Rovigo (NUTS 2010-2013)","ITH37","Rovigo (NUTS 2010-2013)"]
[null,null,"ITH4 | Friuli-Venezia Giulia (NUTS 2010-2013)","ITH4","Friuli-Venezia Giulia (NUTS 2010-2013)"]
[null,null,"ITH41 | Pordenone (NUTS 2010-2013)","ITH41","Pordenone (NUTS 2010-2013)"]
[null,null,"ITH42 | Udine (NUTS 2010-2013)","ITH42","Udine (NUTS 2010-2013)"]
[null,null,"ITH43 | Gorizia (NUTS 2010-2013)","ITH43","Gorizia (NUTS 2010-2013)"]
[null,null,"ITH44 | Trieste (NUTS 2010-2013)","ITH44","Trieste (NUTS 2010-2013)"]
[null,null,"ITH5 | Emilia-Romagna (NUTS 2010-2013)","ITH5","Emilia-Romagna (NUTS 2010-2013)"]
[null,null,"ITH51 | Piacenza (NUTS 2010-2013)","ITH51","Piacenza (NUTS 2010-2013)"]
[null,null,"ITH52 | Parma (NUTS 2010-2013)","ITH52","Parma (NUTS 2010-2013)"]
[null,null,"ITH53 | Reggio nell'Emilia (NUTS 2010-2013)","ITH53","Reggio nell'Emilia (NUTS 2010-2013)"]
[null,null,"ITH54 | Modena (NUTS 2010-2013)","ITH54","Modena (NUTS 2010-2013)"]
[null,null,"ITH55 | Bologna (NUTS 2010-2013)","ITH55","Bologna (NUTS 2010-2013)"]
[null,null,"ITH56 | Ferrara (NUTS 2010-2013)","ITH56","Ferrara (NUTS 2010-2013)"]
[null,null,"ITH57 | Ravenna (NUTS 2010-2013)","ITH57","Ravenna (NUTS 2010-2013)"]
[null,null,"ITH58 | Forlì-Cesena (NUTS 2010-2013)","ITH58","Forlì-Cesena (NUTS 2010-2013)"]
[null,null,"ITH59 | Rimini (NUTS 2010-2013)","ITH59","Rimini (NUTS 2010-2013)"]
[null,null,"ITI | CENTRO (IT) (NUTS 2010-2013)","ITI","CENTRO (IT) (NUTS 2010-2013)"]
[null,null,"ITI1 | Toscana (NUTS 2010-2013)","ITI1","Toscana (NUTS 2010-2013)"]
[null,null,"ITI11 | Massa-Carrara (NUTS 2010-2013)","ITI11","Massa-Carrara (NUTS 2010-2013)"]
[null,null,"ITI12 | Lucca (NUTS 2010-2013)","ITI12","Lucca (NUTS 2010-2013)"]
[null,null,"ITI13 | Pistoia (NUTS 2010-2013)","ITI13","Pistoia (NUTS 2010-2013)"]
[null,null,"ITI14 | Firenze (NUTS 2010-2013)","ITI14","Firenze (NUTS 2010-2013)"]
[null,null,"ITI15 | Prato (NUTS 2010-2013)","ITI15","Prato (NUTS 2010-2013)"]
[null,null,"ITI16 | Livorno (NUTS 2010-2013)","ITI16","Livorno (NUTS 2010-2013)"]
[null,null,"ITI17 | Pisa (NUTS 2010-2013)","ITI17","Pisa (NUTS 2010-2013)"]
[null,null,"ITI18 | Arezzo (NUTS 2010-2013)","ITI18","Arezzo (NUTS 2010-2013)"]
[null,null,"ITI19 | Siena (NUTS 2010-2013)","ITI19","Siena (NUTS 2010-2013)"]
[null,null,"ITI1A | Grosseto (NUTS 2010-2013)","ITI1A","Grosseto (NUTS 2010-2013)"]
[null,null,"ITI2 | Umbria (NUTS 2010-2013)","ITI2","Umbria (NUTS 2010-2013)"]
[null,null,"ITI21 | Perugia (NUTS 2010-2013)","ITI21","Perugia (NUTS 2010-2013)"]
[null,null,"ITI22 | Terni (NUTS 2010-2013)","ITI22","Terni (NUTS 2010-2013)"]
[null,null,"ITI3 | Marche (NUTS 2010-2013)","ITI3","Marche (NUTS 2010-2013)"]
[null,null,"ITI31 | Pesaro e Urbino (NUTS 2010-2013)","ITI31","Pesaro e Urbino (NUTS 2010-2013)"]
[null,null,"ITI32 | Ancona (NUTS 2010-2013)","ITI32","Ancona (NUTS 2010-2013)"]
[null,null,"ITI33 | Macerata (NUTS 2010-2013)","ITI33","Macerata (NUTS 2010-2013)"]
[null,null,"ITI34 | Ascoli Piceno (NUTS 2010-2013)","ITI34","Ascoli Piceno (NUTS 2010-2013)"]
[null,null,"ITI35 | Fermo","ITI35","Fermo"]
[null,null,"ITI4 | Lazio (NUTS 2010-2013)","ITI4","Lazio (NUTS 2010-2013)"]
[null,null,"ITI41 | Viterbo (NUTS 2010-2013)","ITI41","Viterbo (NUTS 2010-2013)"]
[null,null,"ITI42 | Rieti (NUTS 2010-2013)","ITI42","Rieti (NUTS 2010-2013)"]
[null,null,"ITI43 | Roma (NUTS 2010-2013)","ITI43","Roma (NUTS 2010-2013)"]
[null,null,"ITI44 | Latina (NUTS 2010-2013)","ITI44","Latina (NUTS 2010-2013)"]
[null,null,"ITI45 | Frosinone (NUTS 2010-2013)","ITI45","Frosinone (NUTS 2010-2013)"]
[null,null,"ITZ | Extra-Regio NUTS 1 (ITALIA )","ITZ","Extra-Regio NUTS 1 (ITALIA )"]
[null,null,"ITZZ | Extra-Regio NUTS 2 (ITALIA )","ITZZ","Extra-Regio NUTS 2 (ITALIA )"]
[null,null,"ITZZZ | Extra-Regio NUTS 3 (ITALIA )","ITZZZ","Extra-Regio NUTS 3 (ITALIA )"]
[null,null,"LI | LIECHTENSTEIN","LI","LIECHTENSTEIN"]
[null,null,"LI0 | Liechtenstein (NUTS level 1)","LI0","Liechtenstein (NUTS level 1)"]
[null,null,"LI00 | Liechtenstein (NUTS level 2)","LI00","Liechtenstein (NUTS level 2)"]
[null,null,"LI000 | Liechtenstein (NUTS level 3)","LI000","Liechtenstein (NUTS level 3)"]
[null,null,"LIZ | Extra-Regio level 1 (LIECHTENSTEIN)","LIZ","Extra-Regio level 1 (LIECHTENSTEIN)"]
[null,null,"LIZZ | Extra-Regio level 2 (LIECHTENSTEIN)","LIZZ","Extra-Regio level 2 (LIECHTENSTEIN)"]
[null,null,"LIZZZ | Extra-Regio level 3 (LIECHTENSTEIN)","LIZZZ","Extra-Regio level 3 (LIECHTENSTEIN)"]
[null,null,"LT | LITHUANIA","LT","LITHUANIA"]
[null,null,"LT0 | LIETUVA (NUTS level 1)","LT0","LIETUVA (NUTS level 1)"]
[null,null,"LT01 | Sostinės regionas","LT01","Sostinės regionas"]
[null,null,"LT011 | Vilniaus apskritis (NUTS 2016)","LT011","Vilniaus apskritis (NUTS 2016)"]
[null,null,"LT02 | Vidurio ir vakarų Lietuvos regionas","LT02","Vidurio ir vakarų Lietuvos regionas"]
[null,null,"LT021 | Alytaus apskritis (NUTS 2016)","LT021","Alytaus apskritis (NUTS 2016)"]
[null,null,"LT022 | Kauno apskritis (NUTS 2016)","LT022","Kauno apskritis (NUTS 2016)"]
[null,null,"LT023 | Klaipėdos apskritis (NUTS 2016)","LT023","Klaipėdos apskritis (NUTS 2016)"]
[null,null,"LT024 | Marijampolės apskritis (NUTS 2016)","LT024","Marijampolės apskritis (NUTS 2016)"]
[null,null,"LT025 | Panevėžio apskritis (NUTS 2016)","LT025","Panevėžio apskritis (NUTS 2016)"]
[null,null,"LT026 | Šiaulių apskritis (NUTS 2016)","LT026","Šiaulių apskritis (NUTS 2016)"]
[null,null,"LT027 | Tauragės apskritis (NUTS 2016)","LT027","Tauragės apskritis (NUTS 2016)"]
[null,null,"LT028 | Telšių apskritis (NUTS 2016)","LT028","Telšių apskritis (NUTS 2016)"]
[null,null,"LT029 | Utenos apskritis (NUTS 2016)","LT029","Utenos apskritis (NUTS 2016)"]
[null,null,"LTZ | Extra-Regio NUTS 1 (LIETUVA)","LTZ","Extra-Regio NUTS 1 (LIETUVA)"]
[null,null,"LTZZ | Extra-Regio NUTS 2 (LIETUVA)","LTZZ","Extra-Regio NUTS 2 (LIETUVA)"]
[null,null,"LTZZZ | Extra-Regio NUTS 3 (LIETUVA)","LTZZZ","Extra-Regio NUTS 3 (LIETUVA)"]
[null,null,"LU | LUXEMBOURG","LU","LUXEMBOURG"]
[null,null,"LU0 | LUXEMBOURG (NUTS level 1)","LU0","LUXEMBOURG (NUTS level 1)"]
[null,null,"LU00 | Luxembourg (NUTS level 2)","LU00","Luxembourg (NUTS level 2)"]
[null,null,"LU000 | Luxembourg (NUTS level 3)","LU000","Luxembourg (NUTS level 3)"]
[null,null,"LUZ | Extra-Regio NUTS 1 (LUXEMBOURG)","LUZ","Extra-Regio NUTS 1 (LUXEMBOURG)"]
[null,null,"LUZZ | Extra-Regio NUTS 2 (LUXEMBOURG)","LUZZ","Extra-Regio NUTS 2 (LUXEMBOURG)"]
[null,null,"LUZZZ | Extra-Regio NUTS 3 (LUXEMBOURG)","LUZZZ","Extra-Regio NUTS 3 (LUXEMBOURG)"]
[null,null,"LV | LATVIA","LV","LATVIA"]
[null,null,"LV0 | LATVIJA (NUTS level 1)","LV0","LATVIJA (NUTS level 1)"]
[null,null,"LV00 | Latvija (NUTS level 2)","LV00","Latvija (NUTS level 2)"]
[null,null,"LV005 | Latgale","LV005","Latgale"]
[null,null,"LV009 | Zemgale","LV009","Zemgale"]
[null,null,"LV00A | Rīga (NUTS 2024)","LV00A","Rīga (NUTS 2024)"]
[null,null,"LV00B | Kurzeme (NUTS 2024)","LV00B","Kurzeme (NUTS 2024)"]
[null,null,"LV00C | Vidzeme (NUTS 2024)","LV00C","Vidzeme (NUTS 2024)"]
[null,null,"LVZ | Extra-Regio NUTS 1 (LATVIJA)","LVZ","Extra-Regio NUTS 1 (LATVIJA)"]
[null,null,"LVZZ | Extra-Regio NUTS 2 (LATVIJA)","LVZZ","Extra-Regio NUTS 2 (LATVIJA)"]
[null,null,"LVZZZ | Extra-Regio NUTS 3 (LATVIJA)","LVZZZ","Extra-Regio NUTS 3 (LATVIJA)"]
[null,null,"ME | Montenegro","ME","Montenegro"]
[null,null,"ME0 | Црна Гора (NUTS level 1)","ME0","Црна Гора (NUTS level 1)"]
[null,null,"ME00 | Црна Гора (NUTS level 2)","ME00","Црна Гора (NUTS level 2)"]
[null,null,"ME000 | Црна Гора (NUTS level 3)","ME000","Црна Гора (NUTS level 3)"]
[null,null,"MEZ | Extra-Regio level 1 (Montenegro)","MEZ","Extra-Regio level 1 (Montenegro)"]
[null,null,"MEZZ | Extra-Regio level 2 (Montenegro)","MEZZ","Extra-Regio level 2 (Montenegro)"]
[null,null,"MEZZZ | Extra-Regio level 3 (Montenegro)","MEZZZ","Extra-Regio level 3 (Montenegro)"]
[null,null,"MK | North Macedonia","MK","North Macedonia"]
[null,null,"MK0 | Северна Македонија (NUTS level 1)","MK0","Северна Македонија (NUTS level 1)"]
[null,null,"MK00 | Северна Македонија (NUTS level 2)","MK00","Северна Македонија (NUTS level 2)"]
[null,null,"MK001 | Вардарски (Vardarski)","MK001","Вардарски (Vardarski)"]
[null,null,"MK002 | Источен (Istočen)","MK002","Источен (Istočen)"]
[null,null,"MK003 | Југозападен (Jugozapaden)","MK003","Југозападен (Jugozapaden)"]
[null,null,"MK004 | Југоисточен (Jugoistočen)","MK004","Југоисточен (Jugoistočen)"]
[null,null,"MK005 | Пелагониски (Pelagoniski)","MK005","Пелагониски (Pelagoniski)"]
[null,null,"MK006 | Полошки (Pološki)","MK006","Полошки (Pološki)"]
[null,null,"MK007 | Североисточен (Severoistočen)","MK007","Североисточен (Severoistočen)"]
[null,null,"MK008 | Скопски (Skopski)","MK008","Скопски (Skopski)"]
[null,null,"MKZ | Extra-Regio level 1 (North Macedonia)","MKZ","Extra-Regio level 1 (North Macedonia)"]
[null,null,"MKZZ | Extra-Regio level 2 (North Macedonia)","MKZZ","Extra-Regio level 2 (North Macedonia)"]
[null,null,"MKZZZ | Extra-Regio level 3 (North Macedonia)","MKZZZ","Extra-Regio level 3 (North Macedonia)"]
[null,null,"MT | MALTA","MT","MALTA"]
[null,null,"MT0 | MALTA (NUTS level 1)","MT0","MALTA (NUTS level 1)"]
[null,null,"MT00 | Malta (NUTS level 2)","MT00","Malta (NUTS level 2)"]
[null,null,"MT001 | Malta (NUTS level 3)","MT001","Malta (NUTS level 3)"]
[null,null,"MT002 | Gozo and Comino / Għawdex u Kemmuna","MT002","Gozo and Comino / Għawdex u Kemmuna"]
[null,null,"MTZ | Extra-Regio NUTS 1 (MALTA)","MTZ","Extra-Regio NUTS 1 (MALTA)"]
[null,null,"MTZZ | Extra-Regio NUTS 2 (MALTA)","MTZZ","Extra-Regio NUTS 2 (MALTA)"]
[null,null,"MTZZZ | Extra-Regio NUTS 3 (MALTA)","MTZZZ","Extra-Regio NUTS 3 (MALTA)"]
[null,null,"NL | NETHERLANDS","NL","NETHERLANDS"]
[null,null,"NL1 | NOORD-NEDERLAND","NL1","NOORD-NEDERLAND"]
[null,null,"NL11 | Groningen (NUTS level 2)","NL11","Groningen (NUTS level 2)"]
[null,null,"NL112 | Delfzijl en omgeving","NL112","Delfzijl en omgeving"]
[null,null,"NL114 | Oost-Groningen (NUTS 2024)","NL114","Oost-Groningen (NUTS 2024)"]
[null,null,"NL115 | Overig Groningen (NUTS 2024)","NL115","Overig Groningen (NUTS 2024)"]
[null,null,"NL12 | Friesland (NL)","NL12","Friesland (NL)"]
[null,null,"NL126 | Zuidoost-Friesland (NUTS 2016)","NL126","Zuidoost-Friesland (NUTS 2016)"]
[null,null,"NL127 | Noord-Friesland (NUTS 2024)","NL127","Noord-Friesland (NUTS 2024)"]
[null,null,"NL128 | Zuidwest-Friesland (NUTS 2024)","NL128","Zuidwest-Friesland (NUTS 2024)"]
[null,null,"NL13 | Drenthe","NL13","Drenthe"]
[null,null,"NL131 | Noord-Drenthe","NL131","Noord-Drenthe"]
[null,null,"NL132 | Zuidoost-Drenthe","NL132","Zuidoost-Drenthe"]
[null,null,"NL133 | Zuidwest-Drenthe","NL133","Zuidwest-Drenthe"]
[null,null,"NL2 | OOST-NEDERLAND","NL2","OOST-NEDERLAND"]
[null,null,"NL21 | Overijssel","NL21","Overijssel"]
[null,null,"NL211 | Noord-Overijssel","NL211","Noord-Overijssel"]
[null,null,"NL212 | Zuidwest-Overijssel","NL212","Zuidwest-Overijssel"]
[null,null,"NL213 | Twente","NL213","Twente"]
[null,null,"NL22 | Gelderland","NL22","Gelderland"]
[null,null,"NL221 | Veluwe","NL221","Veluwe"]
[null,null,"NL224 | Zuidwest-Gelderland","NL224","Zuidwest-Gelderland"]
[null,null,"NL225 | Achterhoek","NL225","Achterhoek"]
[null,null,"NL226 | Arnhem/Nijmegen","NL226","Arnhem/Nijmegen"]
[null,null,"NL23 | Flevoland (NUTS level 2)","NL23","Flevoland (NUTS level 2)"]
[null,null,"NL230 | Flevoland (NUTS level 3)","NL230","Flevoland (NUTS level 3)"]
[null,null,"NL3 | WEST-NEDERLAND","NL3","WEST-NEDERLAND"]
[null,null,"NL32 | Noord-Holland","NL32","Noord-Holland"]
[null,null,"NL321 | Kop van Noord-Holland","NL321","Kop van Noord-Holland"]
[null,null,"NL323 | IJmond","NL323","IJmond"]
[null,null,"NL325 | Zaanstreek","NL325","Zaanstreek"]
[null,null,"NL327 | Het Gooi en Vechtstreek","NL327","Het Gooi en Vechtstreek"]
[null,null,"NL328 | Alkmaar en omgeving (NUTS 2016)","NL328","Alkmaar en omgeving (NUTS 2016)"]
[null,null,"NL32A | Agglomeratie Haarlem (NUTS 2024)","NL32A","Agglomeratie Haarlem (NUTS 2024)"]
[null,null,"NL32B | Groot-Amsterdam (NUTS 2024)","NL32B","Groot-Amsterdam (NUTS 2024)"]
[null,null,"NL34 | Zeeland","NL34","Zeeland"]
[null,null,"NL341 | Zeeuwsch-Vlaanderen","NL341","Zeeuwsch-Vlaanderen"]
[null,null,"NL342 | Overig Zeeland","NL342","Overig Zeeland"]
[null,null,"NL35 | Utrecht (NUTS 2024 level 2)","NL35","Utrecht (NUTS 2024 level 2)"]
[null,null,"NL350 | Utrecht (NUTS 2024 level 3)","NL350","Utrecht (NUTS 2024 level 3)"]
[null,null,"NL36 | Zuid-Holland (NUTS 2024)","NL36","Zuid-Holland (NUTS 2024)"]
[null,null,"NL361 | Agglomeratie ’s-Gravenhage (NUTS 2024)","NL361","Agglomeratie ’s-Gravenhage (NUTS 2024)"]
[null,null,"NL362 | Delft en Westland (NUTS 2024)","NL362","Delft en Westland (NUTS 2024)"]
[null,null,"NL363 | Agglomeratie Leiden en Bollenstreek (NUTS 2024)","NL363","Agglomeratie Leiden en Bollenstreek (NUTS 2024)"]
[null,null,"NL364 | Zuidoost-Zuid-Holland (NUTS 2024)","NL364","Zuidoost-Zuid-Holland (NUTS 2024)"]
[null,null,"NL365 | Oost-Zuid-Holland (NUTS 2024)","NL365","Oost-Zuid-Holland (NUTS 2024)"]
[null,null,"NL366 | Groot-Rijnmond (NUTS 2024)","NL366","Groot-Rijnmond (NUTS 2024)"]
[null,null,"NL4 | ZUID-NEDERLAND","NL4","ZUID-NEDERLAND"]
[null,null,"NL41 | Noord-Brabant","NL41","Noord-Brabant"]
[null,null,"NL411 | West-Noord-Brabant","NL411","West-Noord-Brabant"]
[null,null,"NL414 | Zuidoost-Noord-Brabant","NL414","Zuidoost-Noord-Brabant"]
[null,null,"NL415 | Midden-Noord-Brabant (NUTS 2024)","NL415","Midden-Noord-Brabant (NUTS 2024)"]
[null,null,"NL416 | Noordoost-Noord-Brabant (NUTS 2024)","NL416","Noordoost-Noord-Brabant (NUTS 2024)"]
[null,null,"NL42 | Limburg (NL)","NL42","Limburg (NL)"]
[null,null,"NL421 | Noord-Limburg","NL421","Noord-Limburg"]
[null,null,"NL422 | Midden-Limburg","NL422","Midden-Limburg"]
[null,null,"NL423 | Zuid-Limburg","NL423","Zuid-Limburg"]
[null,null,"NLZ | Extra-Regio NUTS 1 (NEDERLAND )","NLZ","Extra-Regio NUTS 1 (NEDERLAND )"]
[null,null,"NLZZ | Extra-Regio NUTS 2 (NEDERLAND )","NLZZ","Extra-Regio NUTS 2 (NEDERLAND )"]
[null,null,"NLZZZ | Extra-Regio NUTS 3 (NEDERLAND )","NLZZZ","Extra-Regio NUTS 3 (NEDERLAND )"]
[null,null,"NO | NORGE","NO","NORGE"]
[null,null,"NO0 | Norge (NUTS level 1)","NO0","Norge (NUTS level 1)"]
[null,null,"NO02 | Innlandet","NO02","Innlandet"]
[null,null,"NO020 | Innlandet (NUTS level 3)","NO020","Innlandet (NUTS level 3)"]
[null,null,"NO06 | Trøndelag/Trööndelage","NO06","Trøndelag/Trööndelage"]
[null,null,"NO060 | Trøndelag/Trööndelage (NUTS level 3)","NO060","Trøndelag/Trööndelage (NUTS level 3)"]
[null,null,"NO07 | Nord-Norge","NO07","Nord-Norge"]
[null,null,"NO071 | Nordland/Nordlánnda","NO071","Nordland/Nordlánnda"]
[null,null,"NO072 | Troms/Romsa/Tromssa","NO072","Troms/Romsa/Tromssa"]
[null,null,"NO073 | Finnmark/Finnmárku/Finmarkku","NO073","Finnmark/Finnmárku/Finmarkku"]
[null,null,"NO074 | Troms og Finnmark","NO074","Troms og Finnmark"]
[null,null,"NO08 | Oslo og Viken","NO08","Oslo og Viken"]
[null,null,"NO081 | Oslo (NUTS 2021)","NO081","Oslo (NUTS 2021)"]
[null,null,"NO082 | Viken","NO082","Viken"]
[null,null,"NO083 | Østfold (NUTS 2024)","NO083","Østfold (NUTS 2024)"]
[null,null,"NO084 | Akershus (NUTS 2024)","NO084","Akershus (NUTS 2024)"]
[null,null,"NO085 | Buskerud (NUTS 2024)","NO085","Buskerud (NUTS 2024)"]
[null,null,"NO09 | Agder og Sør-Østlandet","NO09","Agder og Sør-Østlandet"]
[null,null,"NO091 | Vestfold og Telemark","NO091","Vestfold og Telemark"]
[null,null,"NO092 | Agder","NO092","Agder"]
[null,null,"NO093 | Vestfold (NUTS 2024)","NO093","Vestfold (NUTS 2024)"]
[null,null,"NO094 | Telemark (NUTS 2024)","NO094","Telemark (NUTS 2024)"]
[null,null,"NO0A | Vestlandet (NUTS 2021)","NO0A","Vestlandet (NUTS 2021)"]
[null,null,"NO0A1 | Rogaland (NUTS 2021)","NO0A1","Rogaland (NUTS 2021)"]
[null,null,"NO0A2 | Vestland","NO0A2","Vestland"]
[null,null,"NO0A3 | Møre og Romsdal (NUTS 2021)","NO0A3","Møre og Romsdal (NUTS 2021)"]
[null,null,"NO0B | Svalbard og Jan Mayen","NO0B","Svalbard og Jan Mayen"]
[null,null,"NO0B1 | Jan Mayen","NO0B1","Jan Mayen"]
[null,null,"NO0B2 | Svalbard","NO0B2","Svalbard"]
[null,null,"NOZ | Extra-Regio level 1 (NORGE)","NOZ","Extra-Regio level 1 (NORGE)"]
[null,null,"NOZZ | Extra-Regio level 2 (NORGE)","NOZZ","Extra-Regio level 2 (NORGE)"]
[null,null,"NOZZZ | Extra-Regio level 3 (NUTS 2024)","NOZZZ","Extra-Regio level 3 (NUTS 2024)"]
[null,null,"PL | POLAND","PL","POLAND"]
[null,null,"PL2 | MAKROREGION POŁUDNIOWY","PL2","MAKROREGION POŁUDNIOWY"]
[null,null,"PL21 | Małopolskie","PL21","Małopolskie"]
[null,null,"PL213 | Miasto Kraków","PL213","Miasto Kraków"]
[null,null,"PL214 | Krakowski","PL214","Krakowski"]
[null,null,"PL217 | Tarnowski","PL217","Tarnowski"]
[null,null,"PL218 | Nowosądecki (NUTS 2013)","PL218","Nowosądecki (NUTS 2013)"]
[null,null,"PL219 | Nowotarski","PL219","Nowotarski"]
[null,null,"PL21A | Oświęcimski (NUTS 2013)","PL21A","Oświęcimski (NUTS 2013)"]
[null,null,"PL22 | Śląskie","PL22","Śląskie"]
[null,null,"PL224 | Częstochowski","PL224","Częstochowski"]
[null,null,"PL225 | Bielski","PL225","Bielski"]
[null,null,"PL227 | Rybnicki","PL227","Rybnicki"]
[null,null,"PL228 | Bytomski","PL228","Bytomski"]
[null,null,"PL229 | Gliwicki","PL229","Gliwicki"]
[null,null,"PL22A | Katowicki","PL22A","Katowicki"]
[null,null,"PL22B | Sosnowiecki","PL22B","Sosnowiecki"]
[null,null,"PL22C | Tyski","PL22C","Tyski"]
[null,null,"PL4 | MAKROREGION PÓŁNOCNO-ZACHODNI","PL4","MAKROREGION PÓŁNOCNO-ZACHODNI"]
[null,null,"PL41 | Wielkopolskie","PL41","Wielkopolskie"]
[null,null,"PL411 | Pilski","PL411","Pilski"]
[null,null,"PL414 | Koniński","PL414","Koniński"]
[null,null,"PL415 | Miasto Poznań","PL415","Miasto Poznań"]
[null,null,"PL416 | Kaliski","PL416","Kaliski"]
[null,null,"PL417 | Leszczyński","PL417","Leszczyński"]
[null,null,"PL418 | Poznański","PL418","Poznański"]
[null,null,"PL42 | Zachodniopomorskie","PL42","Zachodniopomorskie"]
[null,null,"PL424 | Miasto Szczecin","PL424","Miasto Szczecin"]
[null,null,"PL426 | Koszaliński (NUTS 2013)","PL426","Koszaliński (NUTS 2013)"]
[null,null,"PL427 | Szczecinecko-pyrzycki","PL427","Szczecinecko-pyrzycki"]
[null,null,"PL428 | Szczeciński (NUTS 2013)","PL428","Szczeciński (NUTS 2013)"]
[null,null,"PL43 | Lubuskie","PL43","Lubuskie"]
[null,null,"PL431 | Gorzowski","PL431","Gorzowski"]
[null,null,"PL432 | Zielonogórski","PL432","Zielonogórski"]
[null,null,"PL5 | MAKROREGION POŁUDNIOWO-ZACHODNI","PL5","MAKROREGION POŁUDNIOWO-ZACHODNI"]
[null,null,"PL51 | Dolnośląskie","PL51","Dolnośląskie"]
[null,null,"PL514 | Miasto Wrocław","PL514","Miasto Wrocław"]
[null,null,"PL515 | Jeleniogórski","PL515","Jeleniogórski"]
[null,null,"PL516 | Legnicko-Głogowski","PL516","Legnicko-Głogowski"]
[null,null,"PL517 | Wałbrzyski","PL517","Wałbrzyski"]
[null,null,"PL518 | Wrocławski","PL518","Wrocławski"]
[null,null,"PL52 | Opolskie","PL52","Opolskie"]
[null,null,"PL523 | Nyski (NUTS 2013)","PL523","Nyski (NUTS 2013)"]
[null,null,"PL524 | Opolski (NUTS 2013)","PL524","Opolski (NUTS 2013)"]
[null,null,"PL6 | MAKROREGION PÓŁNOCNY","PL6","MAKROREGION PÓŁNOCNY"]
[null,null,"PL61 | Kujawsko-Pomorskie","PL61","Kujawsko-Pomorskie"]
[null,null,"PL613 | Bydgosko-Toruński","PL613","Bydgosko-Toruński"]
[null,null,"PL616 | Grudziądzki (NUTS 2013)","PL616","Grudziądzki (NUTS 2013)"]
[null,null,"PL617 | Inowrocławski","PL617","Inowrocławski"]
[null,null,"PL618 | Świecki","PL618","Świecki"]
[null,null,"PL619 | Włocławski (NUTS 2013)","PL619","Włocławski (NUTS 2013)"]
[null,null,"PL62 | Warmińsko-Mazurskie","PL62","Warmińsko-Mazurskie"]
[null,null,"PL621 | Elbląski","PL621","Elbląski"]
[null,null,"PL622 | Olsztyński","PL622","Olsztyński"]
[null,null,"PL623 | Ełcki","PL623","Ełcki"]
[null,null,"PL63 | Pomorskie","PL63","Pomorskie"]
[null,null,"PL633 | Trójmiejski","PL633","Trójmiejski"]
[null,null,"PL634 | Gdański","PL634","Gdański"]
[null,null,"PL636 | Słupski (NUTS 2013)","PL636","Słupski (NUTS 2013)"]
[null,null,"PL637 | Chojnicki","PL637","Chojnicki"]
[null,null,"PL638 | Starogardzki (NUTS 2013)","PL638","Starogardzki (NUTS 2013)"]
[null,null,"PL7 | MAKROREGION CENTRALNY (NUTS 2016)","PL7","MAKROREGION CENTRALNY (NUTS 2016)"]
[null,null,"PL71 | Łódzkie (NUTS 2016)","PL71","Łódzkie (NUTS 2016)"]
[null,null,"PL711 | Miasto Łódź (NUTS 2016)","PL711","Miasto Łódź (NUTS 2016)"]
[null,null,"PL712 | Łódzki (NUTS 2016)","PL712","Łódzki (NUTS 2016)"]
[null,null,"PL713 | Piotrkowski (NUTS 2016)","PL713","Piotrkowski (NUTS 2016)"]
[null,null,"PL714 | Sieradzki (NUTS 2016)","PL714","Sieradzki (NUTS 2016)"]
[null,null,"PL715 | Skierniewicki (NUTS 2016)","PL715","Skierniewicki (NUTS 2016)"]
[null,null,"PL72 | Świętokrzyskie (NUTS 2016)","PL72","Świętokrzyskie (NUTS 2016)"]
[null,null,"PL721 | Kielecki (NUTS 2016)","PL721","Kielecki (NUTS 2016)"]
[null,null,"PL722 | Sandomiersko-jędrzejowski (NUTS 2016)","PL722","Sandomiersko-jędrzejowski (NUTS 2016)"]
[null,null,"PL8 | MAKROREGION WSCHODNI (NUTS 2016)","PL8","MAKROREGION WSCHODNI (NUTS 2016)"]
[null,null,"PL81 | Lubelskie (NUTS 2016)","PL81","Lubelskie (NUTS 2016)"]
[null,null,"PL811 | Bialski (NUTS 2016)","PL811","Bialski (NUTS 2016)"]
[null,null,"PL812 | Chełmsko-zamojski (NUTS 2016)","PL812","Chełmsko-zamojski (NUTS 2016)"]
[null,null,"PL814 | Lubelski (NUTS 2016)","PL814","Lubelski (NUTS 2016)"]
[null,null,"PL815 | Puławski (NUTS 2016)","PL815","Puławski (NUTS 2016)"]
[null,null,"PL82 | Podkarpackie (NUTS 2016)","PL82","Podkarpackie (NUTS 2016)"]
[null,null,"PL821 | Krośnieński (NUTS 2016)","PL821","Krośnieński (NUTS 2016)"]
[null,null,"PL822 | Przemyski (NUTS 2016)","PL822","Przemyski (NUTS 2016)"]
[null,null,"PL823 | Rzeszowski (NUTS 2016)","PL823","Rzeszowski (NUTS 2016)"]
[null,null,"PL824 | Tarnobrzeski (NUTS 2016)","PL824","Tarnobrzeski (NUTS 2016)"]
[null,null,"PL84 | Podlaskie (NUTS 2016)","PL84","Podlaskie (NUTS 2016)"]
[null,null,"PL841 | Białostocki (NUTS 2016)","PL841","Białostocki (NUTS 2016)"]
[null,null,"PL842 | Łomżyński (NUTS 2016)","PL842","Łomżyński (NUTS 2016)"]
[null,null,"PL843 | Suwalski (NUTS 2016)","PL843","Suwalski (NUTS 2016)"]
[null,null,"PL9 | MAKROREGION WOJEWÓDZTWO MAZOWIECKIE (NUTS 2016)","PL9","MAKROREGION WOJEWÓDZTWO MAZOWIECKIE (NUTS 2016)"]
[null,null,"PL91 | Warszawski stołeczny (NUTS 2016)","PL91","Warszawski stołeczny (NUTS 2016)"]
[null,null,"PL911 | Miasto Warszawa (NUTS 2016)","PL911","Miasto Warszawa (NUTS 2016)"]
[null,null,"PL912 | Warszawski wschodni (NUTS 2016)","PL912","Warszawski wschodni (NUTS 2016)"]
[null,null,"PL913 | Warszawski zachodni (NUTS 2016)","PL913","Warszawski zachodni (NUTS 2016)"]
[null,null,"PL92 | Mazowiecki regionalny (NUTS 2016)","PL92","Mazowiecki regionalny (NUTS 2016)"]
[null,null,"PL921 | Radomski (NUTS 2016)","PL921","Radomski (NUTS 2016)"]
[null,null,"PL922 | Ciechanowski (NUTS 2016)","PL922","Ciechanowski (NUTS 2016)"]
[null,null,"PL923 | Płocki (NUTS 2016)","PL923","Płocki (NUTS 2016)"]
[null,null,"PL924 | Ostrołęcki (NUTS 2016)","PL924","Ostrołęcki (NUTS 2016)"]
[null,null,"PL925 | Siedlecki (NUTS 2016)","PL925","Siedlecki (NUTS 2016)"]
[null,null,"PL926 | Żyrardowski (NUTS 2016)","PL926","Żyrardowski (NUTS 2016)"]
[null,null,"PLZ | Extra-Regio NUTS 1 (POLSKA)","PLZ","Extra-Regio NUTS 1 (POLSKA)"]
[null,null,"PLZZ | Extra-Regio NUTS 2 (POLSKA)","PLZZ","Extra-Regio NUTS 2 (POLSKA)"]
[null,null,"PLZZZ | Extra-Regio NUTS 3 (POLSKA)","PLZZZ","Extra-Regio NUTS 3 (POLSKA)"]
[null,null,"PT | PORTUGAL","PT","PORTUGAL"]
[null,null,"PT1 | CONTINENTE","PT1","CONTINENTE"]
[null,null,"PT11 | Norte","PT11","Norte"]
[null,null,"PT111 | Minho-Lima","PT111","Minho-Lima"]
[null,null,"PT112 | Cávado","PT112","Cávado"]
[null,null,"PT119 | Ave (NUTS 2013)","PT119","Ave (NUTS 2013)"]
[null,null,"PT11A | Área Metropolitana do Porto","PT11A","Área Metropolitana do Porto"]
[null,null,"PT11B | Alto Tâmega e Barroso","PT11B","Alto Tâmega e Barroso"]
[null,null,"PT11C | Tâmega e Sousa","PT11C","Tâmega e Sousa"]
[null,null,"PT11D | Douro (NUTS 2013)","PT11D","Douro (NUTS 2013)"]
[null,null,"PT11E | Terras de Trás-os-Montes","PT11E","Terras de Trás-os-Montes"]
[null,null,"PT15 | Algarve (NUTS level 2)","PT15","Algarve (NUTS level 2)"]
[null,null,"PT150 | Algarve (NUTS level 3)","PT150","Algarve (NUTS level 3)"]
[null,null,"PT19 | Centro (PT) (NUTS 2024)","PT19","Centro (PT) (NUTS 2024)"]
[null,null,"PT191 | Região de Aveiro (NUTS 2024)","PT191","Região de Aveiro (NUTS 2024)"]
[null,null,"PT192 | Região de Coimbra (NUTS 2024)","PT192","Região de Coimbra (NUTS 2024)"]
[null,null,"PT193 | Região de Leiria (NUTS 2024)","PT193","Região de Leiria (NUTS 2024)"]
[null,null,"PT194 | Viseu Dão Lafões (NUTS 2024)","PT194","Viseu Dão Lafões (NUTS 2024)"]
[null,null,"PT195 | Beira Baixa (NUTS 2024)","PT195","Beira Baixa (NUTS 2024)"]
[null,null,"PT196 | Beiras e Serra da Estrela (NUTS 2024)","PT196","Beiras e Serra da Estrela (NUTS 2024)"]
[null,null,"PT1A | Grande Lisboa (NUTS 2024 level 2)","PT1A","Grande Lisboa (NUTS 2024 level 2)"]
[null,null,"PT1A0 | Grande Lisboa (NUTS 2024 level 3)","PT1A0","Grande Lisboa (NUTS 2024 level 3)"]
[null,null,"PT1B | Península de Setúbal (NUTS 2024 level 2)","PT1B","Península de Setúbal (NUTS 2024 level 2)"]
[null,null,"PT1B0 | Península de Setúbal (NUTS 2024 level 3)","PT1B0","Península de Setúbal (NUTS 2024 level 3)"]
[null,null,"PT1C | Alentejo (NUTS 2024)","PT1C","Alentejo (NUTS 2024)"]
[null,null,"PT1C1 | Alentejo Litoral (NUTS 2024)","PT1C1","Alentejo Litoral (NUTS 2024)"]
[null,null,"PT1C2 | Baixo Alentejo (NUTS 2024)","PT1C2","Baixo Alentejo (NUTS 2024)"]
[null,null,"PT1C3 | Alto Alentejo (NUTS 2024)","PT1C3","Alto Alentejo (NUTS 2024)"]
[null,null,"PT1C4 | Alentejo Central (NUTS 2024)","PT1C4","Alentejo Central (NUTS 2024)"]
[null,null,"PT1D | Oeste e Vale do Tejo","PT1D","Oeste e Vale do Tejo"]
[null,null,"PT1D1 | Oeste (NUTS 2024)","PT1D1","Oeste (NUTS 2024)"]
[null,null,"PT1D2 | Médio Tejo (NUTS 2024)","PT1D2","Médio Tejo (NUTS 2024)"]
[null,null,"PT1D3 | Lezíria do Tejo (NUTS 2024)","PT1D3","Lezíria do Tejo (NUTS 2024)"]
[null,null,"PT2 | REGIÃO AUTÓNOMA DOS AÇORES (NUTS level 1)","PT2","REGIÃO AUTÓNOMA DOS AÇORES (NUTS level 1)"]
[null,null,"PT20 | Região Autónoma dos Açores (NUTS level 2)","PT20","Região Autónoma dos Açores (NUTS level 2)"]
[null,null,"PT200 | Região Autónoma dos Açores (NUTS level 3)","PT200","Região Autónoma dos Açores (NUTS level 3)"]
[null,null,"PT3 | REGIÃO AUTÓNOMA DA MADEIRA (NUTS level 1)","PT3","REGIÃO AUTÓNOMA DA MADEIRA (NUTS level 1)"]
[null,null,"PT30 | Região Autónoma da Madeira (NUTS level 2)","PT30","Região Autónoma da Madeira (NUTS level 2)"]
[null,null,"PT300 | Região Autónoma da Madeira (NUTS level 3)","PT300","Região Autónoma da Madeira (NUTS level 3)"]
[null,null,"PTZ | Extra-Regio NUTS 1 (PORTUGAL)","PTZ","Extra-Regio NUTS 1 (PORTUGAL)"]
[null,null,"PTZZ | Extra-Regio NUTS 2 (PORTUGAL)","PTZZ","Extra-Regio NUTS 2 (PORTUGAL)"]
[null,null,"PTZZZ | Extra-Regio NUTS 3 (PORTUGAL)","PTZZZ","Extra-Regio NUTS 3 (PORTUGAL)"]
[null,null,"RO | ROMANIA","RO","ROMANIA"]
[null,null,"RO1 | MACROREGIUNEA UNU","RO1","MACROREGIUNEA UNU"]
[null,null,"RO11 | Nord-Vest","RO11","Nord-Vest"]
[null,null,"RO111 | Bihor","RO111","Bihor"]
[null,null,"RO112 | Bistriţa-Năsăud","RO112","Bistriţa-Năsăud"]
[null,null,"RO113 | Cluj","RO113","Cluj"]
[null,null,"RO114 | Maramureş","RO114","Maramureş"]
[null,null,"RO115 | Satu Mare","RO115","Satu Mare"]
[null,null,"RO116 | Sălaj","RO116","Sălaj"]
[null,null,"RO12 | Centru","RO12","Centru"]
[null,null,"RO121 | Alba","RO121","Alba"]
[null,null,"RO122 | Braşov","RO122","Braşov"]
[null,null,"RO123 | Covasna","RO123","Covasna"]
[null,null,"RO124 | Harghita","RO124","Harghita"]
[null,null,"RO125 | Mureş","RO125","Mureş"]
[null,null,"RO126 | Sibiu","RO126","Sibiu"]
[null,null,"RO2 | MACROREGIUNEA DOI","RO2","MACROREGIUNEA DOI"]
[null,null,"RO21 | Nord-Est (NUTS level 2)","RO21","Nord-Est (NUTS level 2)"]
[null,null,"RO211 | Bacău","RO211","Bacău"]
[null,null,"RO212 | Botoşani","RO212","Botoşani"]
[null,null,"RO213 | Iaşi","RO213","Iaşi"]
[null,null,"RO214 | Neamţ","RO214","Neamţ"]
[null,null,"RO215 | Suceava","RO215","Suceava"]
[null,null,"RO216 | Vaslui","RO216","Vaslui"]
[null,null,"RO22 | Sud-Est","RO22","Sud-Est"]
[null,null,"RO221 | Brăila","RO221","Brăila"]
[null,null,"RO222 | Buzău","RO222","Buzău"]
[null,null,"RO223 | Constanţa","RO223","Constanţa"]
[null,null,"RO224 | Galaţi","RO224","Galaţi"]
[null,null,"RO225 | Tulcea","RO225","Tulcea"]
[null,null,"RO226 | Vrancea","RO226","Vrancea"]
[null,null,"RO3 | MACROREGIUNEA TREI","RO3","MACROREGIUNEA TREI"]
[null,null,"RO31 | Sud - Muntenia","RO31","Sud - Muntenia"]
[null,null,"RO311 | Argeş","RO311","Argeş"]
[null,null,"RO312 | Călăraşi","RO312","Călăraşi"]
[null,null,"RO313 | Dâmboviţa","RO313","Dâmboviţa"]
[null,null,"RO314 | Giurgiu","RO314","Giurgiu"]
[null,null,"RO315 | Ialomiţa","RO315","Ialomiţa"]
[null,null,"RO316 | Prahova","RO316","Prahova"]
[null,null,"RO317 | Teleorman","RO317","Teleorman"]
[null,null,"RO32 | Bucureşti - Ilfov","RO32","Bucureşti - Ilfov"]
[null,null,"RO321 | Bucureşti","RO321","Bucureşti"]
[null,null,"RO322 | Ilfov","RO322","Ilfov"]
[null,null,"RO4 | MACROREGIUNEA PATRU","RO4","MACROREGIUNEA PATRU"]
[null,null,"RO41 | Sud-Vest Oltenia","RO41","Sud-Vest Oltenia"]
[null,null,"RO411 | Dolj","RO411","Dolj"]
[null,null,"RO412 | Gorj","RO412","Gorj"]
[null,null,"RO413 | Mehedinţi","RO413","Mehedinţi"]
[null,null,"RO414 | Olt","RO414","Olt"]
[null,null,"RO415 | Vâlcea","RO415","Vâlcea"]
[null,null,"RO42 | Vest","RO42","Vest"]
[null,null,"RO421 | Arad","RO421","Arad"]
[null,null,"RO422 | Caraş-Severin","RO422","Caraş-Severin"]
[null,null,"RO423 | Hunedoara","RO423","Hunedoara"]
[null,null,"RO424 | Timiş","RO424","Timiş"]
[null,null,"ROZ | Extra-Regio NUTS 1 (ROMÂNIA)","ROZ","Extra-Regio NUTS 1 (ROMÂNIA)"]
[null,null,"ROZZ | Extra-Regio NUTS 2 (ROMÂNIA)","ROZZ","Extra-Regio NUTS 2 (ROMÂNIA)"]
[null,null,"ROZZZ | Extra-Regio NUTS 3 (ROMÂNIA)","ROZZZ","Extra-Regio NUTS 3 (ROMÂNIA)"]
[null,null,"RS | Serbia","RS","Serbia"]
[null,null,"RS1 | Србија - cевер","RS1","Србија - cевер"]
[null,null,"RS11 | Београдcки регион","RS11","Београдcки регион"]
[null,null,"RS110 | Београдcка облаcт","RS110","Београдcка облаcт"]
[null,null,"RS12 | Регион Војводине","RS12","Регион Војводине"]
[null,null,"RS121 | Западнобачка облаcт","RS121","Западнобачка облаcт"]
[null,null,"RS122 | Јужнобанатcка облаcт","RS122","Јужнобанатcка облаcт"]
[null,null,"RS123 | Јужнобачка облаcт","RS123","Јужнобачка облаcт"]
[null,null,"RS124 | Севернобанатcка облаcт","RS124","Севернобанатcка облаcт"]
[null,null,"RS125 | Севернобачка облаcт","RS125","Севернобачка облаcт"]
[null,null,"RS126 | Средњобанатcка облаcт","RS126","Средњобанатcка облаcт"]
[null,null,"RS127 | Сремcка облаcт","RS127","Сремcка облаcт"]
[null,null,"RS2 | Србија - југ","RS2","Србија - југ"]
[null,null,"RS21 | Регион Шумадије и Западне Србије","RS21","Регион Шумадије и Западне Србије"]
[null,null,"RS211 | Златиборcка облаcт","RS211","Златиборcка облаcт"]
[null,null,"RS212 | Колубарcка облаcт","RS212","Колубарcка облаcт"]
[null,null,"RS213 | Мачванcка облаcт","RS213","Мачванcка облаcт"]
[null,null,"RS214 | Моравичка облаcт","RS214","Моравичка облаcт"]
[null,null,"RS215 | Поморавcка облаcт","RS215","Поморавcка облаcт"]
[null,null,"RS216 | Раcинcка облаcт","RS216","Раcинcка облаcт"]
[null,null,"RS217 | Рашка облаcт","RS217","Рашка облаcт"]
[null,null,"RS218 | Шумадијcка облаcт","RS218","Шумадијcка облаcт"]
[null,null,"RS22 | Регион Јужне и Иcточне Србије","RS22","Регион Јужне и Иcточне Србије"]
[null,null,"RS221 | Борcка облаcт","RS221","Борcка облаcт"]
[null,null,"RS222 | Браничевcка облаcт","RS222","Браничевcка облаcт"]
[null,null,"RS223 | Зајечарcка облаcт","RS223","Зајечарcка облаcт"]
[null,null,"RS224 | Јабланичка облаcт","RS224","Јабланичка облаcт"]
[null,null,"RS225 | Hишавcка облаcт","RS225","Hишавcка облаcт"]
[null,null,"RS226 | Пиротcка облаcт","RS226","Пиротcка облаcт"]
[null,null,"RS227 | Подунавcка облаcт","RS227","Подунавcка облаcт"]
[null,null,"RS228 | Пчињcка облаcт","RS228","Пчињcка облаcт"]
[null,null,"RS229 | Топличка облаcт","RS229","Топличка облаcт"]
[null,null,"RSZ | Extra-Regio level 1 (Srbija/Сpбија)","RSZ","Extra-Regio level 1 (Srbija/Сpбија)"]
[null,null,"RSZZ | Extra-Regio level 2 (Srbija/Сpбија)","RSZZ","Extra-Regio level 2 (Srbija/Сpбија)"]
[null,null,"RSZZZ | Extra-Regio level 3 (Srbija/Сpбија)","RSZZZ","Extra-Regio level 3 (Srbija/Сpбија)"]
[null,null,"SE | SWEDEN","SE","SWEDEN"]
[null,null,"SE1 | ÖSTRA SVERIGE","SE1","ÖSTRA SVERIGE"]
[null,null,"SE11 | Stockholm","SE11","Stockholm"]
[null,null,"SE110 | Stockholms län","SE110","Stockholms län"]
[null,null,"SE12 | Östra Mellansverige","SE12","Östra Mellansverige"]
[null,null,"SE121 | Uppsala län","SE121","Uppsala län"]
[null,null,"SE122 | Södermanlands län","SE122","Södermanlands län"]
[null,null,"SE123 | Östergötlands län","SE123","Östergötlands län"]
[null,null,"SE124 | Örebro län","SE124","Örebro län"]
[null,null,"SE125 | Västmanlands län","SE125","Västmanlands län"]
[null,null,"SE2 | SÖDRA SVERIGE","SE2","SÖDRA SVERIGE"]
[null,null,"SE21 | Småland med öarna","SE21","Småland med öarna"]
[null,null,"SE211 | Jönköpings län","SE211","Jönköpings län"]
[null,null,"SE212 | Kronobergs län","SE212","Kronobergs län"]
[null,null,"SE213 | Kalmar län","SE213","Kalmar län"]
[null,null,"SE214 | Gotlands län","SE214","Gotlands län"]
[null,null,"SE22 | Sydsverige","SE22","Sydsverige"]
[null,null,"SE221 | Blekinge län","SE221","Blekinge län"]
[null,null,"SE224 | Skåne län","SE224","Skåne län"]
[null,null,"SE23 | Västsverige","SE23","Västsverige"]
[null,null,"SE231 | Hallands län","SE231","Hallands län"]
[null,null,"SE232 | Västra Götalands län","SE232","Västra Götalands län"]
[null,null,"SE3 | NORRA SVERIGE","SE3","NORRA SVERIGE"]
[null,null,"SE31 | Norra Mellansverige","SE31","Norra Mellansverige"]
[null,null,"SE311 | Värmlands län","SE311","Värmlands län"]
[null,null,"SE312 | Dalarnas län","SE312","Dalarnas län"]
[null,null,"SE313 | Gävleborgs län","SE313","Gävleborgs län"]
[null,null,"SE32 | Mellersta Norrland","SE32","Mellersta Norrland"]
[null,null,"SE321 | Västernorrlands län","SE321","Västernorrlands län"]
[null,null,"SE322 | Jämtlands län","SE322","Jämtlands län"]
[null,null,"SE33 | Övre Norrland","SE33","Övre Norrland"]
[null,null,"SE331 | Västerbottens län","SE331","Västerbottens län"]
[null,null,"SE332 | Norrbottens län","SE332","Norrbottens län"]
[null,null,"SEZ | Extra-Regio NUTS 1 (SVERIGE)","SEZ","Extra-Regio NUTS 1 (SVERIGE)"]
[null,null,"SEZZ | Extra-Regio NUTS 2 (SVERIGE)","SEZZ","Extra-Regio NUTS 2 (SVERIGE)"]
[null,null,"SEZZZ | Extra-Regio NUTS 3 (SVERIGE)","SEZZZ","Extra-Regio NUTS 3 (SVERIGE)"]
[null,null,"SI | SLOVENIA","SI","SLOVENIA"]
[null,null,"SI0 | SLOVENIJA (NUTS level 1)","SI0","SLOVENIJA (NUTS level 1)"]
[null,null,"SI03 | Vzhodna Slovenija (NUTS 2013)","SI03","Vzhodna Slovenija (NUTS 2013)"]
[null,null,"SI031 | Pomurska (NUTS 2013)","SI031","Pomurska (NUTS 2013)"]
[null,null,"SI032 | Podravska (NUTS 2013)","SI032","Podravska (NUTS 2013)"]
[null,null,"SI033 | Koroška (NUTS 2013)","SI033","Koroška (NUTS 2013)"]
[null,null,"SI034 | Savinjska (NUTS 2013)","SI034","Savinjska (NUTS 2013)"]
[null,null,"SI035 | Zasavska (NUTS 2013)","SI035","Zasavska (NUTS 2013)"]
[null,null,"SI036 | Posavska","SI036","Posavska"]
[null,null,"SI037 | Jugovzhodna Slovenija (NUTS 2013)","SI037","Jugovzhodna Slovenija (NUTS 2013)"]
[null,null,"SI038 | Primorsko-notranjska","SI038","Primorsko-notranjska"]
[null,null,"SI04 | Zahodna Slovenija (NUTS 2013)","SI04","Zahodna Slovenija (NUTS 2013)"]
[null,null,"SI041 | Osrednjeslovenska (NUTS 2013)","SI041","Osrednjeslovenska (NUTS 2013)"]
[null,null,"SI042 | Gorenjska (NUTS 2013)","SI042","Gorenjska (NUTS 2013)"]
[null,null,"SI043 | Goriška (NUTS 2013)","SI043","Goriška (NUTS 2013)"]
[null,null,"SI044 | Obalno-kraška (NUTS 2013)","SI044","Obalno-kraška (NUTS 2013)"]
[null,null,"SIZ | Extra-Regio NUTS 1 (SLOVENIJA)","SIZ","Extra-Regio NUTS 1 (SLOVENIJA)"]
[null,null,"SIZZ | Extra-Regio NUTS 2 (SLOVENIJA)","SIZZ","Extra-Regio NUTS 2 (SLOVENIJA)"]
[null,null,"SIZZZ | Extra-Regio NUTS 3 (SLOVENIJA)","SIZZZ","Extra-Regio NUTS 3 (SLOVENIJA)"]
[null,null,"SK | SLOVENSKO","SK","SLOVENSKO"]
[null,null,"SK0 | SLOVENSKO (NUTS level 1)","SK0","SLOVENSKO (NUTS level 1)"]
[null,null,"SK01 | Bratislavský kraj (NUTS level 2)","SK01","Bratislavský kraj (NUTS level 2)"]
[null,null,"SK010 | Bratislavský kraj (NUTS level 3)","SK010","Bratislavský kraj (NUTS level 3)"]
[null,null,"SK02 | Západné Slovensko","SK02","Západné Slovensko"]
[null,null,"SK021 | Trnavský kraj","SK021","Trnavský kraj"]
[null,null,"SK022 | Trenčiansky kraj","SK022","Trenčiansky kraj"]
[null,null,"SK023 | Nitriansky kraj","SK023","Nitriansky kraj"]
[null,null,"SK03 | Stredné Slovensko","SK03","Stredné Slovensko"]
[null,null,"SK031 | Žilinský kraj","SK031","Žilinský kraj"]
[null,null,"SK032 | Banskobystrický kraj","SK032","Banskobystrický kraj"]
[null,null,"SK04 | Východné Slovensko","SK04","Východné Slovensko"]
[null,null,"SK041 | Prešovský kraj","SK041","Prešovský kraj"]
[null,null,"SK042 | Košický kraj","SK042","Košický kraj"]
[null,null,"SKZ | Extra-Regio NUTS 1 (SLOVENSKO)","SKZ","Extra-Regio NUTS 1 (SLOVENSKO)"]
[null,null,"SKZZ | Extra-Regio NUTS 2 (SLOVENSKO)","SKZZ","Extra-Regio NUTS 2 (SLOVENSKO)"]
[null,null,"SKZZZ | Extra-Regio NUTS 3 (SLOVENSKO)","SKZZZ","Extra-Regio NUTS 3 (SLOVENSKO)"]
[null,null,"TR | Türkiye","TR","Türkiye"]
[null,null,"TR1 | Istabul (NUTS level 1)","TR1","Istabul (NUTS level 1)"]
[null,null,"TR10 | Istanbul (NUTS level 2)","TR10","Istanbul (NUTS level 2)"]
[null,null,"TR100 | Istanbul (NUTS level 3)","TR100","Istanbul (NUTS level 3)"]
[null,null,"TR2 | Bati Marmara","TR2","Bati Marmara"]
[null,null,"TR21 | Tekirdag, Edirne, Kirklareli","TR21","Tekirdag, Edirne, Kirklareli"]
[null,null,"TR211 | Tekirdağ","TR211","Tekirdağ"]
[null,null,"TR212 | Edirne","TR212","Edirne"]
[null,null,"TR213 | Kirklareli","TR213","Kirklareli"]
[null,null,"TR22 | Balikesir, Çanakkale","TR22","Balikesir, Çanakkale"]
[null,null,"TR221 | Balikesir","TR221","Balikesir"]
[null,null,"TR222 | Çanakkale","TR222","Çanakkale"]
[null,null,"TR3 | Ege","TR3","Ege"]
[null,null,"TR31 | Izmir (NUTS level 2)","TR31","Izmir (NUTS level 2)"]
[null,null,"TR310 | Izmir (NUTS level 3)","TR310","Izmir (NUTS level 3)"]
[null,null,"TR32 | Aydın, Denizli, Muğla","TR32","Aydın, Denizli, Muğla"]
[null,null,"TR321 | Aydın","TR321","Aydın"]
[null,null,"TR322 | Denizli","TR322","Denizli"]
[null,null,"TR323 | Muğla","TR323","Muğla"]
[null,null,"TR33 | Manisa, Afyonkarahisar, Kütahya, Uşak","TR33","Manisa, Afyonkarahisar, Kütahya, Uşak"]
[null,null,"TR331 | Manisa","TR331","Manisa"]
[null,null,"TR332 | Afyonkarahisar","TR332","Afyonkarahisar"]
[null,null,"TR333 | Kütahya","TR333","Kütahya"]
[null,null,"TR334 | Uşak","TR334","Uşak"]
[null,null,"TR4 | Dogu Marmara","TR4","Dogu Marmara"]
[null,null,"TR41 | Bursa, Eskisehir, Bilecik","TR41","Bursa, Eskisehir, Bilecik"]
[null,null,"TR411 | Bursa","TR411","Bursa"]
[null,null,"TR412 | Eskisehir","TR412","Eskisehir"]
[null,null,"TR413 | Bilecik","TR413","Bilecik"]
[null,null,"TR42 | Kocaeli, Sakarya, Düzce, Bolu, Yalova","TR42","Kocaeli, Sakarya, Düzce, Bolu, Yalova"]
[null,null,"TR421 | Kocaeli","TR421","Kocaeli"]
[null,null,"TR422 | Sakarya","TR422","Sakarya"]
[null,null,"TR423 | Düzce","TR423","Düzce"]
[null,null,"TR424 | Bolu","TR424","Bolu"]
[null,null,"TR425 | Yalova","TR425","Yalova"]
[null,null,"TR5 | Bati Anadolu","TR5","Bati Anadolu"]
[null,null,"TR51 | Ankara (NUTS level 2)","TR51","Ankara (NUTS level 2)"]
[null,null,"TR510 | Ankara (NUTS level 3)","TR510","Ankara (NUTS level 3)"]
[null,null,"TR52 | Konya, Karaman","TR52","Konya, Karaman"]
[null,null,"TR521 | Konya","TR521","Konya"]
[null,null,"TR522 | Karaman","TR522","Karaman"]
[null,null,"TR6 | Akdeniz","TR6","Akdeniz"]
[null,null,"TR61 | Antalya, Isparta, Burdur","TR61","Antalya, Isparta, Burdur"]
[null,null,"TR611 | Antalya","TR611","Antalya"]
[null,null,"TR612 | Isparta","TR612","Isparta"]
[null,null,"TR613 | Burdur","TR613","Burdur"]
[null,null,"TR62 | Adana, Mersin","TR62","Adana, Mersin"]
[null,null,"TR621 | Adana","TR621","Adana"]
[null,null,"TR622 | Mersin","TR622","Mersin"]
[null,null,"TR63 | Hatay, Kahramanmaras, Osmaniye","TR63","Hatay, Kahramanmaras, Osmaniye"]
[null,null,"TR631 | Hatay","TR631","Hatay"]
[null,null,"TR632 | Kahramanmaras","TR632","Kahramanmaras"]
[null,null,"TR633 | Osmaniye","TR633","Osmaniye"]
[null,null,"TR7 | Orta anadolu","TR7","Orta anadolu"]
[null,null,"TR71 | Kirikkale, Aksaray, Nigde, Nevsehir, Kirsehir","TR71","Kirikkale, Aksaray, Nigde, Nevsehir, Kirsehir"]
[null,null,"TR711 | Kirikkale","TR711","Kirikkale"]
[null,null,"TR712 | Aksaray","TR712","Aksaray"]
[null,null,"TR713 | Nigde","TR713","Nigde"]
[null,null,"TR714 | Nevsehir","TR714","Nevsehir"]
[null,null,"TR715 | Kirsehir","TR715","Kirsehir"]
[null,null,"TR72 | Kayseri, Sivas, Yozgat","TR72","Kayseri, Sivas, Yozgat"]
[null,null,"TR721 | Kayseri","TR721","Kayseri"]
[null,null,"TR722 | Sivas","TR722","Sivas"]
[null,null,"TR723 | Yozgat","TR723","Yozgat"]
[null,null,"TR8 | Bati karadeniz","TR8","Bati karadeniz"]
[null,null,"TR81 | Zonguldak, Karabük, Bartin","TR81","Zonguldak, Karabük, Bartin"]
[null,null,"TR811 | Zonguldak","TR811","Zonguldak"]
[null,null,"TR812 | Karabük","TR812","Karabük"]
[null,null,"TR813 | Bartin","TR813","Bartin"]
[null,null,"TR82 | Kastamonu, Çankiri, Sinop","TR82","Kastamonu, Çankiri, Sinop"]
[null,null,"TR821 | Kastamonu","TR821","Kastamonu"]
[null,null,"TR822 | Çankiri","TR822","Çankiri"]
[null,null,"TR823 | Sinop (TR)","TR823","Sinop (TR)"]
[null,null,"TR83 | Samsun, Tokat, Çorum, Amasya","TR83","Samsun, Tokat, Çorum, Amasya"]
[null,null,"TR831 | Samsun","TR831","Samsun"]
[null,null,"TR832 | Tokat","TR832","Tokat"]
[null,null,"TR833 | Çorum","TR833","Çorum"]
[null,null,"TR834 | Amasya","TR834","Amasya"]
[null,null,"TR9 | Doğu Karadeniz","TR9","Doğu Karadeniz"]
[null,null,"TR90 | Trabzon, Ordu, Giresun, Rize, Artvin, Gümüshane","TR90","Trabzon, Ordu, Giresun, Rize, Artvin, Gümüshane"]
[null,null,"TR901 | Trabzon","TR901","Trabzon"]
[null,null,"TR902 | Ordu","TR902","Ordu"]
[null,null,"TR903 | Giresun","TR903","Giresun"]
[null,null,"TR904 | Rize","TR904","Rize"]
[null,null,"TR905 | Artvin","TR905","Artvin"]
[null,null,"TR906 | Gümüshane","TR906","Gümüshane"]
[null,null,"TRA | Kuzeydogu Anadolu","TRA","Kuzeydogu Anadolu"]
[null,null,"TRA1 | Erzurum, Erzincan, Bayburt","TRA1","Erzurum, Erzincan, Bayburt"]
[null,null,"TRA11 | Erzurum","TRA11","Erzurum"]
[null,null,"TRA12 | Erzincan","TRA12","Erzincan"]
[null,null,"TRA13 | Bayburt","TRA13","Bayburt"]
[null,null,"TRA2 | Ağrı, Kars, Iğdır, Ardahan","TRA2","Ağrı, Kars, Iğdır, Ardahan"]
[null,null,"TRA21 | Ağrı","TRA21","Ağrı"]
[null,null,"TRA22 | Kars","TRA22","Kars"]
[null,null,"TRA23 | Iğdır","TRA23","Iğdır"]
[null,null,"TRA24 | Ardahan","TRA24","Ardahan"]
[null,null,"TRB | Ortadoğu Anadolu","TRB","Ortadoğu Anadolu"]
[null,null,"TRB1 | Malatya, Elazig, Bingöl, Tunceli","TRB1","Malatya, Elazig, Bingöl, Tunceli"]
[null,null,"TRB11 | Malatya","TRB11","Malatya"]
[null,null,"TRB12 | Elazig","TRB12","Elazig"]
[null,null,"TRB13 | Bingöl","TRB13","Bingöl"]
[null,null,"TRB14 | Tunceli","TRB14","Tunceli"]
[null,null,"TRB2 | Van, Muş, Bitlis, Hakkari","TRB2","Van, Muş, Bitlis, Hakkari"]
[null,null,"TRB21 | Van","TRB21","Van"]
[null,null,"TRB22 | Muş","TRB22","Muş"]
[null,null,"TRB23 | Bitlis","TRB23","Bitlis"]
[null,null,"TRB24 | Hakkâri","TRB24","Hakkâri"]
[null,null,"TRC | Güneydogu Anadolu","TRC","Güneydogu Anadolu"]
[null,null,"TRC1 | Gaziantep, Adiyaman, Kilis","TRC1","Gaziantep, Adiyaman, Kilis"]
[null,null,"TRC11 | Gaziantep","TRC11","Gaziantep"]
[null,null,"TRC12 | Adiyaman","TRC12","Adiyaman"]
[null,null,"TRC13 | Kilis","TRC13","Kilis"]
[null,null,"TRC2 | Sanliurfa, Diyarbakir","TRC2","Sanliurfa, Diyarbakir"]
[null,null,"TRC21 | Sanliurfa","TRC21","Sanliurfa"]
[null,null,"TRC22 | Diyarbakir","TRC22","Diyarbakir"]
[null,null,"TRC3 | Mardin, Batman, Sirnak, Siirt","TRC3","Mardin, Batman, Sirnak, Siirt"]
[null,null,"TRC31 | Mardin","TRC31","Mardin"]
[null,null,"TRC32 | Batman","TRC32","Batman"]
[null,null,"TRC33 | Sirnak","TRC33","Sirnak"]
[null,null,"TRC34 | Siirt","TRC34","Siirt"]
[null,null,"TRZ | Extra-Regio level 1 (Türkiye)","TRZ","Extra-Regio level 1 (Türkiye)"]
[null,null,"TRZZ | Extra-Regio level 2 (Türkiye)","TRZZ","Extra-Regio level 2 (Türkiye)"]
[null,null,"TRZZZ | Extra-Regio level 3 (Türkiye)","TRZZZ","Extra-Regio level 3 (Türkiye)"]
[null,null,"UK | UNITED KINGDOM","UK","UNITED KINGDOM"]
[null,null,"UKN | NORTHERN IRELAND (NUTS level 1)","UKN","NORTHERN IRELAND (NUTS level 1)"]
[null,null,"UKN0 | Northern Ireland (NUTS level 2)","UKN0","Northern Ireland (NUTS level 2)"]
[null,null,"UKN01 | Belfast","UKN01","Belfast"]
[null,null,"UKN02 | Outer Belfast","UKN02","Outer Belfast"]
[null,null,"UKN03 | East of Northern Ireland","UKN03","East of Northern Ireland"]
[null,null,"UKN04 | North of Northern Ireland","UKN04","North of Northern Ireland"]
[null,null,"UKN05 | West and South of Northern Ireland","UKN05","West and South of Northern Ireland"]
[null,null,"UKN06 | Belfast (NUTS 2016)","UKN06","Belfast (NUTS 2016)"]
[null,null,"UKN07 | Armagh City, Banbridge and Craigavon (NUTS 2016)","UKN07","Armagh City, Banbridge and Craigavon (NUTS 2016)"]
[null,null,"UKN08 | Newry, Mourne and Down (NUTS 2016)","UKN08","Newry, Mourne and Down (NUTS 2016)"]
[null,null,"UKN09 | Ards and North Down  (NUTS 2016)","UKN09","Ards and North Down  (NUTS 2016)"]
[null,null,"UKN0A | Derry City and Strabane","UKN0A","Derry City and Strabane"]
[null,null,"UKN0B | Mid Ulster (NUTS 2021)","UKN0B","Mid Ulster (NUTS 2021)"]
[null,null,"UKN0C | Causeway Coast and Glens (NUTS 2021)","UKN0C","Causeway Coast and Glens (NUTS 2021)"]
[null,null,"UKN0D | Antrim and Newtownabbey (NUTS 2021)","UKN0D","Antrim and Newtownabbey (NUTS 2021)"]
[null,null,"UKN0E | Lisburn and Castlereagh (NUTS 2021)","UKN0E","Lisburn and Castlereagh (NUTS 2021)"]
[null,null,"UKN0F | Mid and East Antrim (NUTS 2021)","UKN0F","Mid and East Antrim (NUTS 2021)"]
[null,null,"UKN0G | Fermanagh and Omagh (NUTS 2021)","UKN0G","Fermanagh and Omagh (NUTS 2021)"]
[null,null,"UKN10 | Derry City and Strabane (NUTS 2016)","UKN10","Derry City and Strabane (NUTS 2016)"]
[null,null,"UKN11 | Mid Ulster (NUTS 2016)","UKN11","Mid Ulster (NUTS 2016)"]
[null,null,"UKN12 | Causeway Coast and Glens (NUTS 2016)","UKN12","Causeway Coast and Glens (NUTS 2016)"]
[null,null,"UKN13 | Antrim and Newtownabbey (NUTS 2016)","UKN13","Antrim and Newtownabbey (NUTS 2016)"]
[null,null,"UKN14 | Lisburn and Castlereagh (NUTS 2016)","UKN14","Lisburn and Castlereagh (NUTS 2016)"]
[null,null,"UKN15 | Mid and East Antrim (NUTS 2016)","UKN15","Mid and East Antrim (NUTS 2016)"]
[null,null,"UKN16 | Fermanagh and Omagh (NUTS 2016)","UKN16","Fermanagh and Omagh (NUTS 2016)"]
[null,null,"XK | Kosovo","XK","Kosovo"]
[null,null,"XK0 | Kosovë/Kosovo NUTS1","XK0","Kosovë/Kosovo NUTS1"]
[null,null,"XK00 | Kosovë/Kosovo NUTS2","XK00","Kosovë/Kosovo NUTS2"]
[null,null,"XK001 | Prishtinë/Priština","XK001","Prishtinë/Priština"]
[null,null,"XK002 | Mitrovicë/Mitrovica","XK002","Mitrovicë/Mitrovica"]
[null,null,"XK003 | Pejë/Peć","XK003","Pejë/Peć"]
[null,null,"XK004 | Prizren/Prizren","XK004","Prizren/Prizren"]
[null,null,"XK005 | Ferizaj/Uroševac","XK005","Ferizaj/Uroševac"]
[null,null,"XK006 | Gjilan/Gnjilane","XK006","Gjilan/Gnjilane"]
[null,null,"XK007 | Gjakovë","XK007","Gjakovë"]
[null,null,"XKZ | Extra-Regio NUTS 1 (Kosovë/Kosovo)","XKZ","Extra-Regio NUTS 1 (Kosovë/Kosovo)"]
[null,null,"XKZZ | Extra-Regio NUTS 2 (Kosovë/Kosovo)","XKZZ","Extra-Regio NUTS 2 (Kosovë/Kosovo)"]
[null,null,"XKZZZ | Extra-Regio NUTS 3 (Kosovë/Kosovo)","XKZZZ","Extra-Regio NUTS 3 (Kosovë/Kosovo)"]

{"sheet":"CAT_MTXTYP","index":16,"n_rows":2,"n_cols":6,"rows_kept":2,"cut":false,"hidden":false,"merged":[]}
["MemberState_TERMS","EFSA_TERM","CAT_MTXTYP","SSD_Code","term","level_0"]
[null,null,"S000A | Animal sample","S000A","Animal sample"]

{"sheet":"CAT_FoodEx2","index":17,"n_rows":4,"n_cols":6,"rows_kept":4,"cut":false,"hidden":false,"merged":[]}
["MemberState_TERMS","EFSA_TERM","CAT_FoodEx2","SSD_Code","term","level_0"]
[null,null,"A0C9Y#F02.A16HC | Fattening pigs - nasal swab","A0C9Y#F02.A16HC","Fattening pigs - nasal swab"]
[null,null,"A0C9Y#F02.A16HC$F21.A0C6Y | Fattening pigs - conventional - nasal swab","A0C9Y#F02.A16HC$F21.A0C6Y","Fattening pigs - conventional - nasal swab"]
[null,null,"A0C9Y#F02.A16HC$F21.A07SE | Fattening pigs - organic - nasal swab","A0C9Y#F02.A16HC$F21.A07SE","Fattening pigs - organic - nasal swab"]

{"sheet":"CAT_PARAMTYP","index":18,"n_rows":2,"n_cols":6,"rows_kept":2,"cut":false,"hidden":false,"merged":[]}
["MemberState_TERMS","EFSA_TERM","CAT_PARAMTYP","SSD_Code","term","level_0"]
[null,null,"P001A | Individual","P001A","Individual"]

{"sheet":"CAT_PARAM_microParam","index":19,"n_rows":2,"n_cols":6,"rows_kept":2,"cut":false,"hidden":false,"merged":[]}
["MemberState_TERMS","EFSA_TERM","CAT_PARAM_microParam","SSD_Code","term","level_0"]
[null,null,"RF-00003853-MCG | Methicillin resistant Staphylococcus aureus (MRSA)","RF-00003853-MCG","Methicillin resistant Staphylococcus aureus (MRSA)"]

{"sheet":"CAT_PARAM_mrsaGenes","index":20,"n_rows":6,"n_cols":6,"rows_kept":6,"cut":false,"hidden":false,"merged":[]}
["MemberState_TERMS","EFSA_TERM","CAT_PARAM_mrsaGenes","SSD_Code","term","level_0"]
[null,null,"RF-00015580-PAR | lukF-PV","RF-00015580-PAR","lukF-PV"]
[null,null,"RF-00015596-PAR | mecA","RF-00015596-PAR","mecA"]
[null,null,"RF-00015597-PAR | mecC","RF-00015597-PAR","mecC"]
[null,null,"RF-00015497-PAR | sau1-hsdS1","RF-00015497-PAR","sau1-hsdS1"]
[null,null,"RF-00015545-PAR | scn","RF-00015545-PAR","scn"]

{"sheet":"CAT_ANLYREFMD","index":21,"n_rows":2,"n_cols":6,"rows_kept":2,"cut":false,"hidden":false,"merged":[]}
["MemberState_TERMS","EFSA_TERM","CAT_ANLYREFMD","SSD_Code","term","level_0"]
[null,null,"R049A | EURL method","R049A","EURL method"]

{"sheet":"CAT_ANLYTYP","index":22,"n_rows":2,"n_cols":6,"rows_kept":2,"cut":false,"hidden":false,"merged":[]}
["MemberState_TERMS","EFSA_TERM","CAT_ANLYTYP","SSD_Code","term","level_0"]
[null,null,"AT01A | Detection","AT01A","Detection"]

{"sheet":"CAT_ANLYMD_prvam","index":23,"n_rows":5,"n_cols":6,"rows_kept":5,"cut":false,"hidden":false,"merged":[]}
["MemberState_TERMS","EFSA_TERM","CAT_ANLYMD_prvam","SSD_Code","term","level_0"]
[null,null,"F842A | MRSA isolation in accordance with the EURL-AR protocol","F842A","MRSA isolation in accordance with the EURL-AR protocol"]
[null,null,"F843A | MRSA isolation in accordance with the EURL-AR protocol followed by PCR-1","F843A","MRSA isolation in accordance with the EURL-AR protocol followed by PCR-1"]
[null,null,"F844A | MRSA isolation in accordance with the EURL-AR protocol followed by PCR-1 and PCR-2","F844A","MRSA isolation in accordance with the EURL-AR protocol followed by PCR-1 and PCR-2"]
[null,null,"F845A | MRSA isolation in accordance with the EURL-AR protocol followed by WGS","F845A","MRSA isolation in accordance with the EURL-AR protocol followed by WGS"]

{"sheet":"CAT_POSNEG","index":24,"n_rows":3,"n_cols":6,"rows_kept":3,"cut":false,"hidden":false,"merged":[]}
["MemberState_TERMS","EFSA_TERM","CAT_POSNEG","SSD_Code","term","level_0"]
[null,null,"NEG | Negative/Absent","NEG","Negative/Absent"]
[null,null,"POS | Positive/Present","POS","Positive/Present"]

{"sheet":"CAT_VALTYP","index":25,"n_rows":2,"n_cols":6,"rows_kept":2,"cut":false,"hidden":false,"merged":[]}
["MemberState_TERMS","EFSA_TERM","CAT_VALTYP","SSD_Code","term","level_0"]
[null,null,"BIN | Qualitative Value (Binary)","BIN","Qualitative Value (Binary)"]

{"sheet":"CAT_LMTTYP","index":26,"n_rows":2,"n_cols":6,"rows_kept":2,"cut":false,"hidden":false,"merged":[]}
["MemberState_TERMS","EFSA_TERM","CAT_LMTTYP","SSD_Code","term","level_0"]
[null,null,"W012A | Presence","W012A","Presence"]

{"sheet":"CAT_RESEVAL","index":27,"n_rows":5,"n_cols":6,"rows_kept":5,"cut":false,"hidden":false,"merged":[]}
["MemberState_TERMS","EFSA_TERM","CAT_RESEVAL","SSD_Code","term","level_0"]
[null,null,"J041A | Detected","J041A","Detected"]
[null,null,"J040A | Not detected","J040A","Not detected"]
[null,null,"J034A | Satisfactory","J034A","Satisfactory"]
[null,null,"J036A | Unsatisfactory","J036A","Unsatisfactory"]

{"sheet":"CAT_AMTYPE","index":28,"n_rows":3,"n_cols":6,"rows_kept":3,"cut":false,"hidden":false,"merged":[]}
["MemberState_TERMS","EFSA_TERM","CAT_AMTYPE","SSD_Code","term","level_0"]
[null,null,"D | Amend Delete","D","Amend Delete"]
[null,null,"U | Amend Update","U","Amend Update"]